Workbook

Sheet Fig 4a

Sheet Fig 4b
A1: n=1
A2: Enzyme | B2: DNA concentration (μM) | C2: RLU (Relative Light Unit) | D2: SAH concentration (μM) | E2: DNMT1 Metylation rate (mol/h/mol) | G2: 8.144e-07 | H2: 0.0019728088
A3: DNMT1 WT/H3Ub2 | B3: 0.8 | C3: 746800 | D3: =C3*$G$2-$H$2 -> 0.6062211112 | E3: =(D3-AVERAGE(D$9:D$10))/0.015 -> 30.17
B4: 0.4 | C4: 686800 | D4: =C4*$G$2-$H$2 -> 0.5573571112 | E4: =(D4-AVERAGE(D$9:D$10))/0.015 -> 26.92
B5: 0.2 | C5: 562000 | D5: 0.4557199912 | E5: 20.14
B6: 0.1 | C6: 469000 | D6: 0.3799807912 | E6: 15.09
B7: 0.05 | C7: 332900 | D7: 0.2691409512 | E7: 7.70
B8: 0.025 | C8: 294100 | D8: 0.2375422312 | E8: 5.59
B9: 0 | C9: 186400 | D9: =C9*$G$2-$H$2 -> 0.1498313512 | E9: -0.25
B10: 0 | C10: 195700 | D10: =C10*$G$2-$H$2 -> 0.1574052712 | E10: 0.25
A11: DNMT1 F631A,F632A/H3Ub2 | B11: 0.8 | C11: 210600 | D11: 0.1695398312 | E11: =(D11-AVERAGE(D$17:D$18))/0.015 -> 2.11
B12: 0.4 | C12: 207900 | D12: 0.1673409512 | E12: =(D12-AVERAGE(D$17:D$18))/0.015 -> 1.96
B13: 0.2 | C13: 209700 | D13: 0.1688068712 | E13: 2.06
B14: 0.1 | C14: 243400 | D14: 0.1962521512 | E14: 3.89
B15: 0.05 | C15: 218200 | D15: 0.1757292712 | E15: 2.52
B16: 0.025 | C16: 193000 | D16: 0.1552063912 | E16: 1.15
B17: 0 | C17: 164100 | D17: =C17*$G$2-$H$2 -> 0.1316702312 | E17: -0.42
B18: 0 | C18: 179400 | D18: =C18*$G$2-$H$2 -> 0.1441305512 | E18: 0.42
A20: Calibration curve | B20: SAH concentration (μM) | C20: RLU (Relative Light Unit) | D20: RLU-RLU(SAH=0 μM)
B21: 1 | C21: 1440000 | D21: =C21-C$25 -> 1241200
B22: 0.5 | C22: 780700 | D22: =C22-C$25 -> 581900
B23: 0.2 | C23: 468800 | D23: =C23-C$25 -> 270000
B24: 0.1 | C24: 327900 | D24: =C24-C$25 -> 129100
B25: 0 | C25: 198800 | D25: =C25-C$25 -> 0
A28: n=2
A29: Enzyme | B29: DNA concentration (μM) | C29: RLU (Relative Light Unit) | D29: SAH concentration (μM) | E29: DNMT1 Metylation rate (mol/h/mol)
A30: DNMT1 WT/H3Ub2 | B30: 0.8 | C30: 559800 | D30: =C30*$G$33+$H$33 -> 0.5711329778 | E30: =(D30-AVERAGE(D$36:D$37))/0.015 -> 24.14
B31: 0.4 | C31: 480200 | D31: 0.4961258978 | E31: =(D31-AVERAGE(D$36:D$37))/0.015 -> 19.14
B32: 0.2 | C32: 408900 | D32: 0.4289399078 | E32: 14.67
B33: 0.1 | C33: 302000 | D33: 0.3282080378 | E33: 7.95 | G33: 9.423e-07 | H33: 0.0436334378
B34: 0.05 | C34: 252300 | D34: 0.2813757278 | E34: =(D34-AVERAGE(D$36:D$37))/0.015 -> 4.83
B35: 0.025 | C35: 212600 | D35: 0.2439664178 | E35: 2.33
B36: 0 | C36: 173500 | D36: 0.2071224878 | E36: -0.12
B37: 0 | C37: 177400 | D37: 0.2107974578 | E37: 0.12
A38: DNMT1 F631A,F632A/H3Ub2 | B38: 0.8 | C38: 200500 | D38: 0.2325645878 | E38: =(D38-AVERAGE(D$44:D$45))/0.015 -> 1.45
B39: 0.4 | C39: 213700 | D39: 0.2450029478 | E39: =(D39-AVERAGE(D$44:D$45))/0.015 -> 2.28
B40: 0.2 | C40: 195700 | D40: 0.2280415478 | E40: =(D40-AVERAGE(D$44:D$45))/0.015 -> 1.15
B41: 0.1 | C41: 179900 | D41: 0.2131532078 | E41: =(D41-AVERAGE(D$44:D$45))/0.015 -> 0.16
B42: 0.05 | C42: 186500 | D42: 0.2193723878 | E42: 0.57
B43: 0.025 | C43: 181700 | D43: 0.2148493478 | E43: 0.27
B44: 0 | C44: 164300 | D44: 0.1984533278 | E44: -0.82
B45: 0 | C45: 190400 | D45: 0.2230473578 | E45: =(D45-AVERAGE(D$44:D$45))/0.015 -> 0.82
A47: Calibration curve | B47: SAH concentration (μM) | C47: RLU (Relative Light Unit) | D47: RLU-RLU(SAH=0 μM)
B48: 1 | C48: 1231000 | D48: =C48-$C$52 -> 1047700
B49: 0.5 | C49: 580100 | D49: =C49-$C$52 -> 396800
B50: 0.2 | C50: 347100 | D50: =C50-$C$52 -> 163800
B51: 0.1 | C51: 253700 | D51: =C51-$C$52 -> 70400
B52: 0 | C52: 183300 | D52: =C52-$C$52 -> 0
A56: n=3
A57: Enzyme | B57: DNA concentration (μM) | C57: RLU (Relative Light Unit) | D57: SAH concentration (μM) | E57: DNMT1 Metylation rate (mol/h/mol)
A58: DNMT1 WT/H3Ub2 | B58: 0.8 | C58: 446900 | D58: =C58*$G$61+$H$61 -> 0.4145030045 | E58: =(D58-AVERAGE(D$64:D$65))/0.015 -> 16.26
B59: 0.4 | C59: 497700 | D59: 0.4599131245 | E59: =(D59-AVERAGE(D$64:D$65))/0.015 -> 19.29
B60: 0.2 | C60: 388900 | D60: 0.3626568045 | E60: =(D60-AVERAGE(D$64:D$65))/0.015 -> 12.80
B61: 0.1 | C61: 298200 | D61: 0.2815800745 | E61: 7.40 | G61: 8.939e-07 | H61: 0.0150190945
B62: 0.05 | C62: 284200 | D62: 0.2690654745 | E62: 6.56
B63: 0.025 | C63: 240100 | D63: 0.2296444845 | E63: =(D63-AVERAGE(D$64:D$65))/0.015 -> 3.94
B64: 0 | C64: 175900 | D64: 0.1722561045 | E64: 0.11
B65: 0 | C65: 172200 | D65: =C65*$G$61+$H$61 -> 0.1689486745 | E65: =(D65-AVERAGE(D$64:D$65))/0.015 -> -0.11
A66: DNMT1 F631A,F632A/H3Ub2 | B66: 0.8 | C66: 210200 | D66: 0.2029168745 | E66: =(D66-AVERAGE(D$72:D$73))/0.015 -> 1.73
B67: 0.4 | C67: 213100 | D67: 0.2055091845 | E67: =(D67-AVERAGE(D$72:D$73))/0.015 -> 1.91
B68: 0.2 | C68: 207000 | D68: 0.2000563945 | E68: =(D68-AVERAGE(D$72:D$73))/0.015 -> 1.54
B69: 0.1 | C69: 196100 | D69: 0.1903128845 | E69: =(D69-AVERAGE(D$72:D$73))/0.015 -> 0.89
B70: 0.05 | C70: 208000 | D70: 0.2009502945 | E70: 1.60
B71: 0.025 | C71: 187500 | D71: 0.1826253445 | E71: 0.38
B72: 0 | C72: 175500 | D72: 0.1718985445 | E72: -0.33
B73: 0 | C73: 186700 | D73: =C73*$G$61+$H$61 -> 0.1819102245 | E73: =(D73-AVERAGE(D$72:D$73))/0.015 -> 0.33
A75: Calibration curve | B75: SAH concentration (μM) | C75: RLU (Relative Light Unit) | D75: RLU-RLU(SAH=0 μM)
B76: 1 | C76: 1297000 | D76: =C76-$C$80 -> 1127400
B77: 0.5 | C77: 643600 | D77: =C77-$C$80 -> 474000
B78: 0.2 | C78: 384400 | D78: =C78-$C$80 -> 214800
B79: 0.1 | C79: 283100 | D79: =C79-$C$80 -> 113500
B80: 0 | C80: 169600 | D80: =C80-$C$80 -> 0
B84: DNMT1 Metylation rate (mol/h/mol) | G84: Michaelis-Menten Fitting | N84: Michaelis-Menten curve of metylation rate (mol/h/mol)
A85: DNA Conc. (μM) | B85: WT | C85: SD of WT | D85: F631A/F632A | E85: SD of F631A/F632A | H85: WT | I85: WT_Error of fitting | J85: F631A/F632A | K85: F631A/F632A Error of fiting | N85: [DNA] (μM) | O85: WT | P85: F631A/F632A
A86: 0.8 | B86: =AVERAGE(E3,E30,E58) -> 23.53 | C86: =_xlfn.STDEV.S(E3,E30,E58) -> 6.98 | D86: =AVERAGE(E11,E38,E66) -> 1.77 | E86: =_xlfn.STDEV.S(E11,E38,E66) -> 0.33 | G86: Vmax (mol/h/mol) | H86: 29.57 | I86: 3.08 | J86: 2.00 | K86: 0.35 | N86: 0 | O86: 0 | P86: 0
A87: 0.4 | B87: =AVERAGE(E4,E31,E59) -> 21.78 | C87: =_xlfn.STDEV.S(E4,E31,E59) -> 4.45 | D87: =AVERAGE(E12,E39,E67) -> 2.05 | E87: =_xlfn.STDEV.S(E12,E39,E67) -> 0.20 | G87: Km[DNA] (μM) | H87: 0.17 | I87: 0.05 | J87: 0.03 | K87: 0.02 | N87: 0.004 | O87: 0.663051 | P87: 0.238477
A88: 0.2 | B88: 15.87 | C88: 3.81 | D88: =AVERAGE(E13,E40,E68) -> 1.59 | E88: =_xlfn.STDEV.S(E13,E40,E68) -> 0.46 | G88: f([DNA]) = Vmax*[DNA]/(Km+[DNA]) | N88: 0.008 | O88: 1.29702 | P88: 0.426237
A89: 0.1 | B89: 10.15 | C89: 4.29 | D89: 1.65 | E89: 1.98 | N89: 0.012 | O89: 1.90378 | P89: 0.577903
A90: 0.05 | B90: 6.36 | C90: 1.45 | D90: 1.57 | E90: 0.97 | N90: 0.016 | O90: 2.48506 | P90: 0.702971
A91: 0.025 | B91: 3.95 | C91: 1.63 | D91: 0.60 | E91: 0.48 | N91: 0.02 | O91: 3.04241 | P91: 0.807873
A92: 0 | B92: =AVERAGE(E17:E18,E44:E45,E72:E73) -> 0.00 | C92: =_xlfn.STDEV.S(E9:E10,E36:E37,E64:E65) -> 0.19 | D92: =AVERAGE(E17:E18,E44:E45,E72:E73) -> 0.00 | E92: =_xlfn.STDEV.S(E17:E18,E44:E45,E72:E73) -> 0.62 | N92: 0.024 | O92: 3.57728 | P92: 0.897123
N93: 0.028 | O93: 4.09102 | P93: 0.97398
N94: 0.032 | O94: 4.58485 | P94: 1.04086
N95: 0.036 | O95: 5.0599 | P95: 1.09958
N96: 0.04 | O96: 5.51722 | P96: 1.15156
N97: 0.044 | O97: 5.9578 | P97: 1.19789
N98: 0.048 | O98: 6.38252 | P98: 1.23944
N99: 0.052 | O99: 6.79224 | P99: 1.27692
N100: 0.056 | O100: 7.18774 | P100: 1.3109
N101: 0.06 | O101: 7.56973 | P101: 1.34184
N102: 0.064 | O102: 7.93891 | P102: 1.37014
N103: 0.068 | O103: 8.29591 | P103: 1.39613
N104: 0.072 | O104: 8.64131 | P104: 1.42006
N105: 0.076 | O105: 8.97568 | P105: 1.44218
N106: 0.08 | O106: 9.29953 | P106: 1.46269
N107: 0.084 | O107: 9.61336 | P107: 1.48176
N108: 0.088 | O108: 9.91762 | P108: 1.49952
N109: 0.092 | O109: 10.2127 | P109: 1.51612
N110: 0.096 | O110: 10.4991 | P110: 1.53166
N111: 0.1 | O111: 10.7772 | P111: 1.54624
N112: 0.104 | O112: 11.0472 | P112: 1.55995
N113: 0.108 | O113: 11.3096 | P113: 1.57287
N114: 0.112 | O114: 11.5647 | P114: 1.58505
N115: 0.116 | O115: 11.8128 | P115: 1.59656
N116: 0.12 | O116: 12.0541 | P116: 1.60746
N117: 0.124 | O117: 12.2889 | P117: 1.61779
N118: 0.128 | O118: 12.5175 | P118: 1.6276
N119: 0.132 | O119: 12.7402 | P119: 1.63692
N120: 0.136 | O120: 12.9571 | P120: 1.64579
N121: 0.14 | O121: 13.1685 | P121: 1.65424
N122: 0.144 | O122: 13.3746 | P122: 1.6623
N123: 0.148 | O123: 13.5756 | P123: 1.67
N124: 0.152 | O124: 13.7716 | P124: 1.67736
N125: 0.156 | O125: 13.9629 | P125: 1.6844
N126: 0.16 | O126: 14.1497 | P126: 1.69115
N127: 0.164 | O127: 14.332 | P127: 1.69762
N128: 0.168 | O128: 14.51 | P128: 1.70382
N129: 0.172 | O129: 14.684 | P129: 1.70978
N130: 0.176 | O130: 14.8539 | P130: 1.71551
N131: 0.18 | O131: 15.0201 | P131: 1.72102
N132: 0.184 | O132: 15.1825 | P132: 1.72632
N133: 0.188 | O133: 15.3413 | P133: 1.73143
N134: 0.192 | O134: 15.4967 | P134: 1.73635
N135: 0.196 | O135: 15.6487 | P135: 1.7411
N136: 0.2 | O136: 15.7975 | P136: 1.74568
N137: 0.204 | O137: 15.9431 | P137: 1.75011
N138: 0.208 | O138: 16.0857 | P138: 1.75439
N139: 0.212 | O139: 16.2253 | P139: 1.75852
N140: 0.216 | O140: 16.362 | P140: 1.76252
N141: 0.22 | O141: 16.496 | P141: 1.76639
N142: 0.224 | O142: 16.6273 | P142: 1.77014
N143: 0.228 | O143: 16.756 | P143: 1.77378
N144: 0.232 | O144: 16.8822 | P144: 1.7773
N145: 0.236 | O145: 17.0059 | P145: 1.78072
N146: 0.24 | O146: 17.1272 | P146: 1.78403
N147: 0.244 | O147: 17.2462 | P147: 1.78725
N148: 0.248 | O148: 17.3629 | P148: 1.79038
N149: 0.252 | O149: 17.4774 | P149: 1.79341
N150: 0.256 | O150: 17.5899 | P150: 1.79637
N151: 0.26 | O151: 17.7002 | P151: 1.79924
N152: 0.264 | O152: 17.8085 | P152: 1.80203
N153: 0.268 | O153: 17.9149 | P153: 1.80475
N154: 0.272 | O154: 18.0194 | P154: 1.80739
N155: 0.276 | O155: 18.122 | P155: 1.80997
N156: 0.28 | O156: 18.2228 | P156: 1.81248
N157: 0.284 | O157: 18.3218 | P157: 1.81492
N158: 0.288 | O158: 18.4192 | P158: 1.8173
N159: 0.292 | O159: 18.5148 | P159: 1.81963
N160: 0.296 | O160: 18.6089 | P160: 1.8219
N161: 0.3 | O161: 18.7013 | P161: 1.82411
N162: 0.304 | O162: 18.7922 | P162: 1.82627
N163: 0.308 | O163: 18.8816 | P163: 1.82837
N164: 0.312 | O164: 18.9695 | P164: 1.83043
N165: 0.316 | O165: 19.056 | P165: 1.83244
N166: 0.32 | O166: 19.1411 | P166: 1.83441
N167: 0.324 | O167: 19.2248 | P167: 1.83633
N168: 0.328 | O168: 19.3072 | P168: 1.83821
N169: 0.332 | O169: 19.3883 | P169: 1.84004
N170: 0.336 | O170: 19.4682 | P170: 1.84184
N171: 0.34 | O171: 19.5467 | P171: 1.8436
N172: 0.344 | O172: 19.6241 | P172: 1.84532
N173: 0.348 | O173: 19.7003 | P173: 1.847
N174: 0.352 | O174: 19.7753 | P174: 1.84865
N175: 0.356 | O175: 19.8492 | P175: 1.85026
N176: 0.36 | O176: 19.922 | P176: 1.85184
N177: 0.364 | O177: 19.9937 | P177: 1.85339
N178: 0.368 | O178: 20.0643 | P178: 1.8549
N179: 0.372 | O179: 20.1339 | P179: 1.85639
N180: 0.376 | O180: 20.2025 | P180: 1.85785
N181: 0.38 | O181: 20.2702 | P181: 1.85928
N182: 0.384 | O182: 20.3368 | P182: 1.86068
N183: 0.388 | O183: 20.4025 | P183: 1.86205
N184: 0.392 | O184: 20.4673 | P184: 1.8634
N185: 0.396 | O185: 20.5311 | P185: 1.86473
N186: 0.4 | O186: 20.5941 | P186: 1.86602
N187: 0.404 | O187: 20.6562 | P187: 1.8673
N188: 0.408 | O188: 20.7174 | P188: 1.86855
N189: 0.412 | O189: 20.7778 | P189: 1.86978
N190: 0.416 | O190: 20.8374 | P190: 1.87098
N191: 0.42 | O191: 20.8962 | P191: 1.87217
N192: 0.424 | O192: 20.9542 | P192: 1.87333
N193: 0.428 | O193: 21.0115 | P193: 1.87448
N194: 0.432 | O194: 21.0679 | P194: 1.8756
N195: 0.436 | O195: 21.1237 | P195: 1.87671
N196: 0.44 | O196: 21.1787 | P196: 1.87779
N197: 0.444 | O197: 21.233 | P197: 1.87886
N198: 0.448 | O198: 21.2866 | P198: 1.87991
N199: 0.452 | O199: 21.3395 | P199: 1.88094
N200: 0.456 | O200: 21.3917 | P200: 1.88196
N201: 0.46 | O201: 21.4433 | P201: 1.88295
N202: 0.464 | O202: 21.4943 | P202: 1.88394
N203: 0.468 | O203: 21.5446 | P203: 1.8849
N204: 0.472 | O204: 21.5943 | P204: 1.88585
N205: 0.476 | O205: 21.6433 | P205: 1.88679
N206: 0.48 | O206: 21.6918 | P206: 1.88771
N207: 0.484 | O207: 21.7397 | P207: 1.88862
N208: 0.488 | O208: 21.787 | P208: 1.88951
N209: 0.492 | O209: 21.8337 | P209: 1.89039
N210: 0.496 | O210: 21.8799 | P210: 1.89126
N211: 0.5 | O211: 21.9255 | P211: 1.89211
... 75 more rows

Sheet Fig 4c

Sheet Fig 4e

Sheet Fig 4f
D2: % sites CCGG méthylés
D3: Run 1 | E3: Run 2 | F3: Moyenne | G3: Ecart-type
A4: Rep1 | B4: EV | C4: Day0 | D4: 68.7 | E4: 71.8 | F4: =AVERAGE(D4:E4) -> 70.3 | G4: 2.2
C5: Day4 | D5: 56.9 | E5: 58.8 | F5: =AVERAGE(D5:E5) -> 57.9 | G5: 1.4
C6: Day8 | D6: 50.4 | E6: 49.6 | F6: 50.0 | G6: 0.6
B7: WT | C7: Day0 | D7: 73.3 | E7: 74.2 | F7: 73.8 | G7: 0.6
C8: Day4 | D8: 69.8 | E8: 70.8 | F8: 70.3 | G8: 0.7
C9: Day8 | D9: 70.3 | E9: 70.2 | F9: 70.3 | G9: 0.1
B10: F631A/F632A | C10: Day0 | D10: 73.0 | E10: 72.0 | F10: 72.5 | G10: 0.7
C11: Day4 | D11: 62.4 | E11: 61.2 | F11: 61.8 | G11: 0.8
C12: Day8 | D12: 54.4 | E12: 54.2 | F12: 54.3 | G12: 0.1
D14: % sites CCGG méthylés
D15: Run 1 | E15: Run 2 | F15: Moyenne | G15: Ecart-type
A16: Rep2 | B16: EV | C16: Day0 | D16: 71.4 | E16: 73.2 | F16: 72.3 | G16: 1.2
C17: Day4 | D17: 58.6 | E17: 57.7 | F17: 58.1 | G17: 0.6
C18: Day8 | D18: 51.0 | E18: 50.8 | F18: 50.9 | G18: 0.1
B19: WT | C19: Day0 | D19: 69.2 | E19: 69.3 | F19: 69.3 | G19: 0.0
C20: Day4 | D20: 70.7 | E20: 71.4 | F20: 71.0 | G20: 0.5
C21: Day8 | D21: 70.9 | E21: 70.9 | F21: 70.9 | G21: 0.0
B22: F631A/F632A | C22: Day0 | D22: 73.4 | E22: 72.9 | F22: 73.2 | G22: 0.3
C23: Day4 | D23: 61.0 | E23: 66.7 | F23: 63.8 | G23: 4.1
C24: Day8 | D24: 56.1 | E24: 55.5 | F24: 55.8 | G24: 0.4
D26: % sites CCGG méthylés
D27: Run 1 | E27: Run 2 | F27: Moyenne | G27: Ecart-type
A28: Rep3 | B28: EV | C28: Day0 | D28: 71.4 | E28: 71.7 | F28: 71.6 | G28: 0.3
C29: Day4 | D29: 59.0 | E29: 59.7 | F29: 59.4 | G29: 0.5
C30: Day8 | D30: 51.4 | E30: 51.1 | F30: 51.2 | G30: 0.2
B31: WT | C31: Day0 | D31: 70.7 | E31: 71.4 | F31: 71.1 | G31: 0.5
C32: Day4 | D32: 70.5 | E32: 71.3 | F32: 70.9 | G32: 0.6
C33: Day8 | D33: 69.6 | E33: 70.6 | F33: 70.1 | G33: 0.7
B34: F631A/F632A | C34: Day0 | D34: 71.8 | E34: 72.6 | F34: 72.2 | G34: 0.5
C35: Day4 | D35: 63.5 | E35: 63.4 | F35: 63.5 | G35: 0.1
C36: Day8 | D36: 57.0 | E36: 57.0 | F36: 57.0 | G36: 0.0
D38: % sites CCGG méthylés
D39: Rep1 | F39: Rep2 | H39: Rep3
D40: Run 1 | E40: Run 2 | F40: Run 1 | G40: Run 2 | H40: Run 1 | I40: Run 2 | J40: Moyenne | K40: Ecart-type
A41: Rep3 | B41: EV | C41: Day0 | D41: 71.4 | E41: 71.7 | F41: 71.4 | G41: 73.2 | H41: 71.4 | I41: 71.7 | J41: =AVERAGE(D41:I41) -> 71.8 | K41: =STDEV(D41:I41) -> 0.7
C42: Day4 | D42: 59.0 | E42: 59.7 | F42: 58.6 | G42: 57.7 | H42: 59.0 | I42: 59.7 | J42: 59.0 | K42: 0.8
C43: Day8 | D43: 51.4 | E43: 51.1 | F43: 51.0 | G43: 50.8 | H43: 51.4 | I43: 51.1 | J43: 51.1 | K43: 0.2
B44: WT | C44: Day0 | D44: 70.7 | E44: 71.4 | F44: 69.2 | G44: 69.3 | H44: 70.7 | I44: 71.4 | J44: 70.5 | K44: 1.0
C45: Day4 | D45: 70.5 | E45: 71.3 | F45: 70.7 | G45: 71.4 | H45: 70.5 | I45: 71.3 | J45: 70.9 | K45: 0.5
C46: Day8 | D46: 69.6 | E46: 70.6 | F46: 70.9 | G46: 70.9 | H46: 69.6 | I46: 70.6 | J46: 70.4 | K46: 0.6
B47: F631A/F632A | C47: Day0 | D47: 71.8 | E47: 72.6 | F47: 73.4 | G47: 72.9 | H47: 71.8 | I47: 72.6 | J47: 72.5 | K47: 0.6
C48: Day4 | D48: 63.5 | E48: 63.4 | F48: 61.0 | G48: 66.7 | H48: 63.5 | I48: 63.4 | J48: 63.6 | K48: 1.8
C49: Day8 | D49: 57.0 | E49: 57.0 | F49: 56.1 | G49: 55.5 | H49: 57.0 | I49: 57.0 | J49: 56.6 | K49: 0.6

Sheet Suppl Fig 1a

Sheet Suppl Fig 1b
Q1: Suupplemantary Fig. 1B
Q2: DNMT1:H3Ub2
Q3: Chrom.1 | R3: Chrom.1
Q4: UV | R4: 1_280 | S4: UV | T4: 2_254
Q5: ml | R5: mAU | S5: ml | T5: mAU
Q6: 0 | R6: -0.05650878 | S6: 0 | T6: 0
Q7: 0.001 | R7: -2.396412 | S7: 0.004 | T7: 4.456116
Q8: 0.002 | R8: -2.590813 | S8: 0.008 | T8: 5.090469
Q9: 0.002 | R9: -2.743225 | S9: 0.012 | T9: 5.69565
Q10: 0.003 | R10: -2.868066 | S10: 0.017 | T10: 6.033186
Q11: 0.004 | R11: -2.979527 | S11: 0.021 | T11: 6.059487
Q12: 0.005 | R12: -3.08048 | S12: 0.025 | T12: 6.029096
Q13: 0.006 | R13: -3.176809 | S13: 0.029 | T13: 6.014495
Q14: 0.007 | R14: -3.272438 | S14: 0.033 | T14: 6.025277
Q15: 0.007 | R15: -3.367831 | S15: 0.037 | T15: 6.046554
Q16: 0.008 | R16: -3.463541 | S16: 0.042 | T16: 6.066259
Q17: 0.009 | R17: -3.559081 | S17: 0.046 | T17: 6.085822
Q18: 0.01 | R18: -3.654433 | S18: 0.05 | T18: 6.104151
Q19: 0.011 | R19: -3.75001 | S19: 0.054 | T19: 6.117929
Q20: 0.012 | R20: -3.845938 | S20: 0.058 | T20: 6.12815
Q21: 0.012 | R21: -3.92398 | S21: 0.062 | T21: 6.137044
Q22: 0.013 | R22: -4.008708 | S22: 0.067 | T22: 6.142553
Q23: 0.014 | R23: -4.103986 | S23: 0.071 | T23: 6.140104
Q24: 0.015 | R24: -4.198874 | S24: 0.075 | T24: 6.128745
Q25: 0.016 | R25: -4.294029 | S25: 0.079 | T25: 6.111281
Q26: 0.017 | R26: -4.389626 | S26: 0.083 | T26: 6.092622
Q27: 0.017 | R27: -4.485402 | S27: 0.087 | T27: 6.077966
Q28: 0.018 | R28: -4.58092 | S28: 0.092 | T28: 6.065728
Q29: 0.019 | R29: -4.676618 | S29: 0.096 | T29: 6.054955
Q30: 0.02 | R30: -4.735573 | S30: 0.1 | T30: 6.046954
Q31: 0.021 | R31: -4.749284 | S31: 0.104 | T31: 6.040826
Q32: 0.022 | R32: -4.749466 | S32: 0.108 | T32: 6.035797
Q33: 0.022 | R33: -4.74965 | S33: 0.112 | T33: 6.03685
Q34: 0.023 | R34: -4.749832 | S34: 0.116 | T34: 6.046533
Q35: 0.024 | R35: -4.750014 | S35: 0.121 | T35: 6.062545
Q36: 0.025 | R36: -4.750184 | S36: 0.125 | T36: 6.081053
Q37: 0.026 | R37: -4.750341 | S37: 0.129 | T37: 6.097613
Q38: 0.027 | R38: -4.750498 | S38: 0.133 | T38: 6.113224
Q39: 0.027 | R39: -4.750641 | S39: 0.137 | T39: 6.129926
Q40: 0.028 | R40: -4.750683 | S40: 0.141 | T40: 6.150225
Q41: 0.029 | R41: -4.750609 | S41: 0.146 | T41: 6.175846
Q42: 0.03 | R42: -4.750525 | S42: 0.15 | T42: 6.208172
Q43: 0.031 | R43: -4.750442 | S43: 0.154 | T43: 6.246822
Q44: 0.032 | R44: -4.750395 | S44: 0.158 | T44: 6.29259
Q45: 0.032 | R45: -4.750432 | S45: 0.162 | T45: 6.352878
Q46: 0.033 | R46: -4.75051 | S46: 0.166 | T46: 6.429803
Q47: 0.034 | R47: -4.750587 | S47: 0.171 | T47: 6.522365
Q48: 0.035 | R48: -4.750663 | S48: 0.175 | T48: 6.626073
Q49: 0.036 | R49: -4.751058 | S49: 0.179 | T49: 6.730607
Q50: 0.037 | R50: -4.75197 | S50: 0.183 | T50: 6.829488
Q51: 0.037 | R51: -4.752956 | S51: 0.187 | T51: 6.916199
Q52: 0.038 | R52: -4.753938 | S52: 0.191 | T52: 6.9907
Q53: 0.039 | R53: -4.754917 | S53: 0.196 | T53: 7.053432
Q54: 0.04 | R54: -4.755696 | S54: 0.2 | T54: 7.100805
Q55: 0.041 | R55: -4.756206 | S55: 0.204 | T55: 7.12435
Q56: 0.042 | R56: -4.756714 | S56: 0.208 | T56: 7.118477
Q57: 0.042 | R57: -4.757224 | S57: 0.212 | T57: 7.085195
Q58: 0.043 | R58: -4.757421 | S58: 0.216 | T58: 7.031137
Q59: 0.044 | R59: -4.756946 | S59: 0.22 | T59: 6.964442
Q60: 0.045 | R60: -4.756155 | S60: 0.225 | T60: 6.892142
Q61: 0.046 | R61: -4.755362 | S61: 0.229 | T61: 6.818278
Q62: 0.047 | R62: -4.75457 | S62: 0.233 | T62: 6.743679
Q63: 0.047 | R63: -4.753801 | S63: 0.237 | T63: 6.674142
Q64: 0.048 | R64: -4.753053 | S64: 0.241 | T64: 6.611471
Q65: 0.049 | R65: -4.752301 | S65: 0.245 | T65: 6.554425
Q66: 0.05 | R66: -4.751548 | S66: 0.25 | T66: 6.504029
Q67: 0.051 | R67: -4.750911 | S67: 0.254 | T67: 6.459649
Q68: 0.052 | R68: -4.750557 | S68: 0.258 | T68: 6.418619
Q69: 0.052 | R69: -4.750372 | S69: 0.262 | T69: 6.382291
Q70: 0.053 | R70: -4.750186 | S70: 0.266 | T70: 6.349619
Q71: 0.054 | R71: -4.750001 | S71: 0.27 | T71: 6.321914
Q72: 0.055 | R72: -4.74982 | S72: 0.275 | T72: 6.300542
Q73: 0.056 | R73: -4.749671 | S73: 0.279 | T73: 6.282978
Q74: 0.057 | R74: -4.749565 | S74: 0.283 | T74: 6.266807
Q75: 0.057 | R75: -4.749459 | S75: 0.287 | T75: 6.251592
Q76: 0.058 | R76: -4.749168 | S76: 0.291 | T76: 6.237399
Q77: 0.059 | R77: -4.748371 | S77: 0.295 | T77: 6.223791
Q78: 0.06 | R78: -4.74724 | S78: 0.3 | T78: 6.211173
Q79: 0.061 | R79: -4.746105 | S79: 0.304 | T79: 6.201109
Q80: 0.062 | R80: -4.744968 | S80: 0.308 | T80: 6.19235
Q81: 0.062 | R81: -4.743712 | S81: 0.312 | T81: 6.182645
Q82: 0.063 | R82: -4.74222 | S82: 0.316 | T82: 6.171347
Q83: 0.064 | R83: -4.740684 | S83: 0.32 | T83: 6.158535
Q84: 0.065 | R84: -4.739148 | S84: 0.324 | T84: 6.143742
Q85: 0.066 | R85: -4.737214 | S85: 0.329 | T85: 6.128441
Q86: 0.067 | R86: -4.734099 | S86: 0.333 | T86: 6.1147
Q87: 0.067 | R87: -4.730088 | S87: 0.337 | T87: 6.101488
Q88: 0.068 | R88: -4.726048 | S88: 0.341 | T88: 6.0884
Q89: 0.069 | R89: -4.722012 | S89: 0.345 | T89: 6.074472
Q90: 0.07 | R90: -4.718038 | S90: 0.349 | T90: 6.060111
Q91: 0.071 | R91: -4.714149 | S91: 0.354 | T91: 6.043951
Q92: 0.072 | R92: -4.710275 | S92: 0.358 | T92: 6.026663
Q93: 0.072 | R93: -4.706374 | S93: 0.362 | T93: 6.008088
Q94: 0.073 | R94: -4.702765 | S94: 0.366 | T94: 5.990635
Q95: 0.074 | R95: -4.699826 | S95: 0.37 | T95: 5.975827
Q96: 0.075 | R96: -4.697198 | S96: 0.374 | T96: 5.961414
Q97: 0.076 | R97: -4.694561 | S97: 0.379 | T97: 5.948431
Q98: 0.077 | R98: -4.691956 | S98: 0.383 | T98: 5.938141
Q99: 0.077 | R99: -4.689672 | S99: 0.387 | T99: 5.932426
Q100: 0.078 | R100: -4.687793 | S100: 0.391 | T100: 5.929898
Q101: 0.079 | R101: -4.685934 | S101: 0.395 | T101: 5.933495
Q102: 0.08 | R102: -4.684062 | S102: 0.399 | T102: 5.942629
Q103: 0.081 | R103: -4.682222 | S103: 0.404 | T103: 5.954965
Q104: 0.082 | R104: -4.680629 | S104: 0.408 | T104: 5.97157
Q105: 0.082 | R105: -4.679127 | S105: 0.412 | T105: 5.99243
Q106: 0.083 | R106: -4.677626 | S106: 0.416 | T106: 6.015598
Q107: 0.084 | R107: -4.676124 | S107: 0.42 | T107: 6.040202
Q108: 0.085 | R108: -4.674768 | S108: 0.424 | T108: 6.063771
Q109: 0.086 | R109: -4.673853 | S109: 0.428 | T109: 6.086048
Q110: 0.087 | R110: -4.673195 | S110: 0.433 | T110: 6.108529
Q111: 0.087 | R111: -4.672537 | S111: 0.437 | T111: 6.12978
Q112: 0.088 | R112: -4.671864 | S112: 0.441 | T112: 6.148632
Q113: 0.089 | R113: -4.671154 | S113: 0.445 | T113: 6.165174
Q114: 0.09 | R114: -4.670436 | S114: 0.449 | T114: 6.181361
Q115: 0.091 | R115: -4.669717 | S115: 0.453 | T115: 6.19549
Q116: 0.092 | R116: -4.668998 | S116: 0.458 | T116: 6.207242
Q117: 0.092 | R117: -4.668327 | S117: 0.462 | T117: 6.219081
Q118: 0.093 | R118: -4.667712 | S118: 0.466 | T118: 6.231141
Q119: 0.094 | R119: -4.666978 | S119: 0.47 | T119: 6.239695
Q120: 0.095 | R120: -4.666243 | S120: 0.474 | T120: 6.244696
Q121: 0.096 | R121: -4.6655 | S121: 0.478 | T121: 6.248328
Q122: 0.097 | R122: -4.664801 | S122: 0.483 | T122: 6.25075
Q123: 0.097 | R123: -4.664251 | S123: 0.487 | T123: 6.254886
Q124: 0.098 | R124: -4.6637 | S124: 0.491 | T124: 6.257551
Q125: 0.099 | R125: -4.663149 | S125: 0.495 | T125: 6.256279
Q126: 0.1 | R126: -4.662844 | S126: 0.499 | T126: 6.25425
Q127: 0.101 | R127: -4.663269 | S127: 0.503 | T127: 6.251245
Q128: 0.102 | R128: -4.664055 | S128: 0.508 | T128: 6.247155
Q129: 0.102 | R129: -4.664844 | S129: 0.512 | T129: 6.244793
Q130: 0.103 | R130: -4.665632 | S130: 0.516 | T130: 6.243598
Q131: 0.104 | R131: -4.666806 | S131: 0.52 | T131: 6.240783
Q132: 0.105 | R132: -4.668919 | S132: 0.524 | T132: 6.237873
Q133: 0.106 | R133: -4.671145 | S133: 0.528 | T133: 6.233757
Q134: 0.106 | R134: -4.673362 | S134: 0.532 | T134: 6.228878
Q135: 0.107 | R135: -4.675807 | S135: 0.537 | T135: 6.225985
Q136: 0.108 | R136: -4.679104 | S136: 0.541 | T136: 6.222955
Q137: 0.109 | R137: -4.683114 | S137: 0.545 | T137: 6.219457
Q138: 0.11 | R138: -4.687148 | S138: 0.549 | T138: 6.215827
Q139: 0.111 | R139: -4.691142 | S139: 0.553 | T139: 6.211205
Q140: 0.111 | R140: -4.695208 | S140: 0.557 | T140: 6.206194
Q141: 0.112 | R141: -4.699442 | S141: 0.562 | T141: 6.200879
Q142: 0.113 | R142: -4.703717 | S142: 0.566 | T142: 6.196419
Q143: 0.114 | R143: -4.708002 | S143: 0.57 | T143: 6.190784
Q144: 0.115 | R144: -4.712021 | S144: 0.574 | T144: 6.184481
Q145: 0.116 | R145: -4.7153 | S145: 0.578 | T145: 6.178296
Q146: 0.116 | R146: -4.718189 | S146: 0.582 | T146: 6.171535
Q147: 0.117 | R147: -4.721077 | S147: 0.587 | T147: 6.164446
Q148: 0.118 | R148: -4.723933 | S148: 0.591 | T148: 6.157202
Q149: 0.119 | R149: -4.726209 | S149: 0.595 | T149: 6.152524
Q150: 0.12 | R150: -4.727227 | S150: 0.599 | T150: 6.150513
Q151: 0.121 | R151: -4.728085 | S151: 0.603 | T151: 6.150066
Q152: 0.121 | R152: -4.728945 | S152: 0.607 | T152: 6.14757
Q153: 0.122 | R153: -4.729687 | S153: 0.612 | T153: 6.144889
Q154: 0.123 | R154: -4.730035 | S154: 0.616 | T154: 6.142968
Q155: 0.124 | R155: -4.730093 | S155: 0.62 | T155: 6.14042
Q156: 0.125 | R156: -4.73015 | S156: 0.624 | T156: 6.138877
Q157: 0.126 | R157: -4.730206 | S157: 0.628 | T157: 6.138635
Q158: 0.126 | R158: -4.730162 | S158: 0.632 | T158: 6.138167
Q159: 0.127 | R159: -4.729878 | S159: 0.636 | T159: 6.136189
Q160: 0.128 | R160: -4.729568 | S160: 0.641 | T160: 6.133394
Q161: 0.129 | R161: -4.729258 | S161: 0.645 | T161: 6.128079
Q162: 0.13 | R162: -4.72893 | S162: 0.649 | T162: 6.125462
Q163: 0.131 | R163: -4.728457 | S163: 0.653 | T163: 6.126598
Q164: 0.131 | R164: -4.727744 | S164: 0.657 | T164: 6.126826
Q165: 0.132 | R165: -4.727049 | S165: 0.661 | T165: 6.126697
Q166: 0.133 | R166: -4.726362 | S166: 0.666 | T166: 6.128954
Q167: 0.134 | R167: -4.725317 | S167: 0.67 | T167: 6.129302
Q168: 0.135 | R168: -4.723056 | S168: 0.674 | T168: 6.12993
Q169: 0.136 | R169: -4.72052 | S169: 0.678 | T169: 6.131372
Q170: 0.136 | R170: -4.717985 | S170: 0.682 | T170: 6.130663
Q171: 0.137 | R171: -4.715333 | S171: 0.686 | T171: 6.129658
Q172: 0.138 | R172: -4.712179 | S172: 0.691 | T172: 6.129674
Q173: 0.139 | R173: -4.708513 | S173: 0.695 | T173: 6.131823
Q174: 0.14 | R174: -4.704841 | S174: 0.699 | T174: 6.132871
Q175: 0.141 | R175: -4.701164 | S175: 0.703 | T175: 6.137171
Q176: 0.141 | R176: -4.697127 | S176: 0.707 | T176: 6.138142
Q177: 0.142 | R177: -4.691851 | S177: 0.711 | T177: 6.139367
Q178: 0.143 | R178: -4.686071 | S178: 0.716 | T178: 6.141438
Q179: 0.144 | R179: -4.680273 | S179: 0.72 | T179: 6.142763
Q180: 0.145 | R180: -4.674421 | S180: 0.724 | T180: 6.144548
Q181: 0.146 | R181: -4.668033 | S181: 0.728 | T181: 6.149105
Q182: 0.146 | R182: -4.660367 | S182: 0.732 | T182: 6.15035
Q183: 0.147 | R183: -4.652674 | S183: 0.736 | T183: 6.144963
Q184: 0.148 | R184: -4.64496 | S184: 0.74 | T184: 6.140853
Q185: 0.149 | R185: -4.637123 | S185: 0.745 | T185: 6.134574
Q186: 0.15 | R186: -4.628871 | S186: 0.749 | T186: 6.130168
Q187: 0.151 | R187: -4.620775 | S187: 0.753 | T187: 6.12527
Q188: 0.151 | R188: -4.612664 | S188: 0.757 | T188: 6.120503
Q189: 0.152 | R189: -4.604524 | S189: 0.761 | T189: 6.116594
Q190: 0.153 | R190: -4.595795 | S190: 0.765 | T190: 6.114269
Q191: 0.154 | R191: -4.585669 | S191: 0.77 | T191: 6.111047
Q192: 0.155 | R192: -4.575553 | S192: 0.774 | T192: 6.108979
Q193: 0.156 | R193: -4.56546 | S193: 0.778 | T193: 6.108572
Q194: 0.156 | R194: -4.555027 | S194: 0.782 | T194: 6.108802
Q195: 0.157 | R195: -4.543301 | S195: 0.786 | T195: 6.108475
Q196: 0.158 | R196: -4.530666 | S196: 0.79 | T196: 6.106875
Q197: 0.159 | R197: -4.518071 | S197: 0.795 | T197: 6.106577
Q198: 0.16 | R198: -4.505316 | S198: 0.799 | T198: 6.104705
Q199: 0.161 | R199: -4.491704 | S199: 0.803 | T199: 6.101972
Q200: 0.161 | R200: -4.476834 | S200: 0.807 | T200: 6.099956
... 28680 more rows

Sheet Suppl Fig1c
A2: Suupplemantary Fig. 1C left | F2: Suupplemantary Fig. 1C right
A3: apo-DNMT1 | F3: DNMT1:DNA
A4: Chrom.1 | C4: Chrom.1 | F4: Chrom.1 | H4: Chrom.1
A5: UV 1_280 | C5: UV 2_260 | F5: UV 1_280 | H5: UV 2_260
A6: ml | B6: mAU | C6: ml | D6: mAU | F6: ml | G6: mAU | H6: ml | I6: mAU
A7: 0 | B7: 2.963653 | C7: 0 | D7: 0 | F7: 0 | G7: 11.94109 | H7: 0 | I7: 0
A8: 0.001 | B8: 86.54836 | C8: 0.004 | D8: 62.49405 | F8: 0.001 | G8: 103.0111 | H8: 0.004 | I8: 41.92827
A9: 0.002 | B9: 94.19062 | C9: 0.008 | D9: 72.06496 | F9: 0.002 | G9: 109.1145 | H9: 0.008 | I9: 50.24351
A10: 0.002 | B10: 100.0217 | C10: 0.012 | D10: 81.13699 | F10: 0.002 | G10: 113.8412 | H10: 0.012 | I10: 58.08457
A11: 0.003 | B11: 104.8954 | C11: 0.017 | D11: 86.44048 | F11: 0.003 | G11: 117.764 | H11: 0.017 | I11: 65.10978
A12: 0.004 | B12: 109.1939 | C12: 0.021 | D12: 88.10103 | F12: 0.004 | G12: 121.2532 | H12: 0.021 | I12: 72.66436
A13: 0.005 | B13: 113.0933 | C13: 0.025 | D13: 88.87769 | F13: 0.005 | G13: 124.3984 | H13: 0.025 | I13: 77.60217
A14: 0.006 | B14: 116.8448 | C14: 0.029 | D14: 89.66281 | F14: 0.006 | G14: 127.4075 | H14: 0.029 | I14: 78.55692
A15: 0.007 | B15: 120.5587 | C15: 0.033 | D15: 90.01105 | F15: 0.007 | G15: 130.4002 | H15: 0.033 | I15: 78.44882
A16: 0.007 | B16: 124.2801 | C16: 0.037 | D16: 90.06475 | F16: 0.007 | G16: 133.3951 | H16: 0.037 | I16: 78.36655
A17: 0.008 | B17: 128.0241 | C17: 0.042 | D17: 90.0676 | F17: 0.008 | G17: 136.3826 | H17: 0.042 | I17: 78.34396
A18: 0.009 | B18: 131.7664 | C18: 0.046 | D18: 90.06905 | F18: 0.009 | G18: 139.3761 | H18: 0.046 | I18: 78.34024
A19: 0.01 | B19: 135.5103 | C19: 0.05 | D19: 90.06793 | F19: 0.01 | G19: 142.3734 | H19: 0.05 | I19: 78.33629
A20: 0.011 | B20: 139.2544 | C20: 0.054 | D20: 90.066 | F20: 0.011 | G20: 145.3712 | H20: 0.054 | I20: 78.33443
A21: 0.012 | B21: 142.9924 | C21: 0.058 | D21: 90.06313 | F21: 0.012 | G21: 148.3665 | H21: 0.058 | I21: 78.33498
A22: 0.012 | B22: 145.7364 | C22: 0.062 | D22: 90.04909 | F22: 0.012 | G22: 149.5067 | H22: 0.062 | I22: 78.33269
A23: 0.013 | B23: 149.0157 | C23: 0.067 | D23: 89.73286 | F23: 0.013 | G23: 149.5145 | H23: 0.067 | I23: 78.32327
A24: 0.014 | B24: 152.7592 | C24: 0.071 | D24: 88.72599 | F24: 0.014 | G24: 149.5223 | H24: 0.071 | I24: 78.17268
A25: 0.015 | B25: 156.5129 | C25: 0.075 | D25: 86.89784 | F25: 0.015 | G25: 149.5301 | H25: 0.075 | I25: 77.50285
A26: 0.016 | B26: 160.153 | C26: 0.079 | D26: 84.27479 | F26: 0.016 | G26: 149.5379 | H26: 0.079 | I26: 76.01148
A27: 0.017 | B27: 163.7025 | C27: 0.083 | D27: 80.82966 | F27: 0.017 | G27: 149.5454 | H27: 0.083 | I27: 73.735
A28: 0.017 | B28: 167.2447 | C28: 0.087 | D28: 76.6417 | F28: 0.017 | G28: 149.5522 | H28: 0.087 | I28: 70.83717
A29: 0.018 | B29: 170.8051 | C29: 0.092 | D29: 71.82412 | F29: 0.018 | G29: 149.5586 | H29: 0.092 | I29: 67.4278
A30: 0.019 | B30: 174.3778 | C30: 0.096 | D30: 66.49515 | F30: 0.019 | G30: 149.565 | H30: 0.096 | I30: 63.61298
A31: 0.02 | B31: 177.9693 | C31: 0.1 | D31: 60.73146 | F31: 0.02 | G31: 149.5714 | H31: 0.1 | I31: 59.47768
A32: 0.021 | B32: 181.5813 | C32: 0.104 | D32: 54.63164 | F32: 0.021 | G32: 149.5781 | H32: 0.104 | I32: 55.14783
A33: 0.022 | B33: 184.5765 | C33: 0.108 | D33: 48.57241 | F33: 0.022 | G33: 149.5852 | H33: 0.108 | I33: 50.58358
A34: 0.022 | B34: 185.8601 | C34: 0.112 | D34: 42.99077 | F34: 0.022 | G34: 149.5924 | H34: 0.112 | I34: 45.93855
A35: 0.023 | B35: 185.8611 | C35: 0.116 | D35: 38.04585 | F35: 0.023 | G35: 149.5995 | H35: 0.116 | I35: 41.64101
A36: 0.024 | B36: 185.8622 | C36: 0.121 | D36: 33.72262 | F36: 0.024 | G36: 149.6067 | H36: 0.121 | I36: 38.03452
A37: 0.025 | B37: 185.8632 | C37: 0.125 | D37: 30.20952 | F37: 0.025 | G37: 149.6137 | H37: 0.125 | I37: 35.28497
A38: 0.026 | B38: 185.8642 | C38: 0.129 | D38: 27.19866 | F38: 0.026 | G38: 149.6207 | H38: 0.129 | I38: 33.09175
A39: 0.027 | B39: 185.8653 | C39: 0.133 | D39: 24.65822 | F39: 0.027 | G39: 149.6276 | H39: 0.133 | I39: 31.29502
A40: 0.027 | B40: 185.8663 | C40: 0.137 | D40: 22.54556 | F40: 0.027 | G40: 149.6346 | H40: 0.137 | I40: 29.82147
A41: 0.028 | B41: 185.8672 | C41: 0.141 | D41: 20.76984 | F41: 0.028 | G41: 149.6385 | H41: 0.141 | I41: 28.62896
A42: 0.029 | B42: 185.8682 | C42: 0.146 | D42: 19.25591 | F42: 0.029 | G42: 149.639 | H42: 0.146 | I42: 27.68472
A43: 0.03 | B43: 185.8691 | C43: 0.15 | D43: 17.95453 | F43: 0.03 | G43: 149.6384 | H43: 0.15 | I43: 26.9697
A44: 0.031 | B44: 185.8699 | C44: 0.154 | D44: 16.8331 | F44: 0.031 | G44: 149.6377 | H44: 0.154 | I44: 26.43484
A45: 0.032 | B45: 185.8705 | C45: 0.158 | D45: 15.8619 | F45: 0.032 | G45: 149.6371 | H45: 0.158 | I45: 26.00593
A46: 0.032 | B46: 185.8712 | C46: 0.162 | D46: 15.01636 | F46: 0.032 | G46: 149.6369 | H46: 0.162 | I46: 25.6394
A47: 0.033 | B47: 185.8718 | C47: 0.166 | D47: 14.27654 | F47: 0.033 | G47: 149.6368 | H47: 0.166 | I47: 25.19203
A48: 0.034 | B48: 185.8727 | C48: 0.171 | D48: 13.62189 | F48: 0.034 | G48: 149.6367 | H48: 0.171 | I48: 24.75578
A49: 0.035 | B49: 185.8736 | C49: 0.175 | D49: 13.02999 | F49: 0.035 | G49: 149.6367 | H49: 0.175 | I49: 24.37655
A50: 0.036 | B50: 185.8745 | C50: 0.179 | D50: 12.51313 | F50: 0.036 | G50: 149.6368 | H50: 0.179 | I50: 24.03418
A51: 0.037 | B51: 185.8755 | C51: 0.183 | D51: 12.03296 | F51: 0.037 | G51: 149.6371 | H51: 0.183 | I51: 23.68361
A52: 0.037 | B52: 185.8763 | C52: 0.187 | D52: 11.58434 | F52: 0.037 | G52: 149.6376 | H52: 0.187 | I52: 23.26572
A53: 0.038 | B53: 185.8772 | C53: 0.191 | D53: 11.16947 | F53: 0.038 | G53: 149.6381 | H53: 0.191 | I53: 22.77237
A54: 0.039 | B54: 185.878 | C54: 0.196 | D54: 10.78347 | F54: 0.039 | G54: 149.6385 | H54: 0.196 | I54: 22.21524
A55: 0.04 | B55: 185.8788 | C55: 0.2 | D55: 10.42202 | F55: 0.04 | G55: 149.6391 | H55: 0.2 | I55: 21.63972
A56: 0.041 | B56: 185.8796 | C56: 0.204 | D56: 10.08158 | F56: 0.041 | G56: 149.6396 | H56: 0.204 | I56: 21.04498
A57: 0.042 | B57: 185.8804 | C57: 0.208 | D57: 9.765512 | F57: 0.042 | G57: 149.6401 | H57: 0.208 | I57: 20.43978
A58: 0.042 | B58: 185.8812 | C58: 0.212 | D58: 9.470477 | F58: 0.042 | G58: 149.6407 | H58: 0.212 | I58: 19.86111
A59: 0.043 | B59: 185.8819 | C59: 0.216 | D59: 9.199868 | F59: 0.043 | G59: 149.6413 | H59: 0.216 | I59: 19.29724
A60: 0.044 | B60: 185.8827 | C60: 0.22 | D60: 8.95445 | F60: 0.044 | G60: 149.642 | H60: 0.22 | I60: 18.74731
A61: 0.045 | B61: 185.8836 | C61: 0.225 | D61: 8.730808 | F61: 0.045 | G61: 149.6428 | H61: 0.225 | I61: 18.22378
A62: 0.046 | B62: 185.8845 | C62: 0.229 | D62: 8.531851 | F62: 0.046 | G62: 149.6435 | H62: 0.229 | I62: 17.75032
A63: 0.047 | B63: 185.8855 | C63: 0.233 | D63: 8.360102 | F63: 0.047 | G63: 149.6443 | H63: 0.233 | I63: 17.32579
A64: 0.047 | B64: 185.8864 | C64: 0.237 | D64: 8.201934 | F64: 0.047 | G64: 149.6451 | H64: 0.237 | I64: 16.96025
A65: 0.048 | B65: 185.8876 | C65: 0.241 | D65: 8.054351 | F65: 0.048 | G65: 149.646 | H65: 0.241 | I65: 16.66255
A66: 0.049 | B66: 185.8896 | C66: 0.245 | D66: 7.923518 | F66: 0.049 | G66: 149.6469 | H66: 0.245 | I66: 16.42273
A67: 0.05 | B67: 185.8921 | C67: 0.25 | D67: 7.80535 | F67: 0.05 | G67: 149.6478 | H67: 0.25 | I67: 16.21905
A68: 0.051 | B68: 185.8946 | C68: 0.254 | D68: 7.699182 | F68: 0.051 | G68: 149.6487 | H68: 0.254 | I68: 16.02827
A69: 0.052 | B69: 185.8971 | C69: 0.258 | D69: 7.601902 | F69: 0.052 | G69: 149.6494 | H69: 0.258 | I69: 15.86335
A70: 0.052 | B70: 185.9 | C70: 0.262 | D70: 7.510833 | F70: 0.052 | G70: 149.6498 | H70: 0.262 | I70: 15.73069
A71: 0.053 | B71: 185.9032 | C71: 0.266 | D71: 7.427524 | F71: 0.053 | G71: 149.6502 | H71: 0.266 | I71: 15.61071
A72: 0.054 | B72: 185.9064 | C72: 0.27 | D72: 7.350879 | F72: 0.054 | G72: 149.6507 | H72: 0.27 | I72: 15.50329
A73: 0.055 | B73: 185.9097 | C73: 0.275 | D73: 7.278687 | F73: 0.055 | G73: 149.6511 | H73: 0.275 | I73: 15.40951
A74: 0.056 | B74: 185.9129 | C74: 0.279 | D74: 7.210197 | F74: 0.056 | G74: 149.6517 | H74: 0.279 | I74: 15.33519
A75: 0.057 | B75: 185.9157 | C75: 0.283 | D75: 7.147445 | F75: 0.057 | G75: 149.6524 | H75: 0.283 | I75: 15.27279
A76: 0.057 | B76: 185.9183 | C76: 0.287 | D76: 7.089015 | F76: 0.057 | G76: 149.6531 | H76: 0.287 | I76: 15.2235
A77: 0.058 | B77: 185.9209 | C77: 0.291 | D77: 7.034143 | F77: 0.058 | G77: 149.6541 | H77: 0.291 | I77: 15.18209
A78: 0.059 | B78: 185.9235 | C78: 0.295 | D78: 6.982847 | F78: 0.059 | G78: 149.656 | H78: 0.295 | I78: 15.14767
A79: 0.06 | B79: 185.8838 | C79: 0.3 | D79: 6.934956 | F79: 0.06 | G79: 149.6584 | H79: 0.3 | I79: 15.11795
A80: 0.061 | B80: 185.7938 | C80: 0.304 | D80: 6.888782 | F80: 0.061 | G80: 149.6609 | H80: 0.304 | I80: 15.08807
A81: 0.062 | B81: 185.6899 | C81: 0.308 | D81: 6.845418 | F81: 0.062 | G81: 149.6634 | H81: 0.308 | I81: 15.06064
A82: 0.062 | B82: 185.5862 | C82: 0.312 | D82: 6.804873 | F82: 0.062 | G82: 149.6576 | H82: 0.312 | I82: 15.0338
A83: 0.063 | B83: 185.4822 | C83: 0.316 | D83: 6.768362 | F83: 0.063 | G83: 149.6288 | H83: 0.316 | I83: 15.0056
A84: 0.064 | B84: 185.141 | C84: 0.32 | D84: 6.732475 | F84: 0.064 | G84: 149.5911 | H84: 0.32 | I84: 14.97399
A85: 0.065 | B85: 184.6811 | C85: 0.324 | D85: 6.69872 | F85: 0.065 | G85: 149.5534 | H85: 0.324 | I85: 14.94012
A86: 0.066 | B86: 184.2226 | C86: 0.329 | D86: 6.666416 | F86: 0.066 | G86: 149.5156 | H86: 0.329 | I86: 14.90757
A87: 0.067 | B87: 183.7626 | C87: 0.333 | D87: 6.634578 | F87: 0.067 | G87: 149.4377 | H87: 0.333 | I87: 14.87582
A88: 0.067 | B88: 183.188 | C88: 0.337 | D88: 6.603547 | F88: 0.067 | G88: 149.3141 | H88: 0.337 | I88: 14.84534
A89: 0.068 | B89: 182.4421 | C89: 0.341 | D89: 6.574539 | F89: 0.068 | G89: 149.1774 | H89: 0.341 | I89: 14.82009
A90: 0.069 | B90: 181.6378 | C90: 0.345 | D90: 6.547694 | F90: 0.069 | G90: 149.0397 | H90: 0.345 | I90: 14.8006
A91: 0.07 | B91: 180.8453 | C91: 0.349 | D91: 6.520913 | F91: 0.07 | G91: 148.9033 | H91: 0.349 | I91: 14.78587
A92: 0.071 | B92: 180.0749 | C92: 0.354 | D92: 6.495586 | F92: 0.071 | G92: 148.5559 | H92: 0.354 | I92: 14.77375
A93: 0.072 | B93: 179.1367 | C93: 0.358 | D93: 6.470661 | F93: 0.072 | G93: 148.0782 | H93: 0.358 | I93: 14.76276
A94: 0.072 | B94: 178.0363 | C94: 0.362 | D94: 6.448545 | F94: 0.072 | G94: 147.5933 | H94: 0.362 | I94: 14.74998
A95: 0.073 | B95: 176.9063 | C95: 0.366 | D95: 6.42943 | F95: 0.073 | G95: 147.106 | H95: 0.366 | I95: 14.74057
A96: 0.074 | B96: 175.7776 | C96: 0.37 | D96: 6.412636 | F96: 0.074 | G96: 146.5268 | H96: 0.37 | I96: 14.73545
A97: 0.075 | B97: 174.6121 | C97: 0.374 | D97: 6.398765 | F97: 0.075 | G97: 145.7707 | H97: 0.374 | I97: 14.731
A98: 0.076 | B98: 173.2743 | C98: 0.379 | D98: 6.385871 | F98: 0.076 | G98: 144.9429 | H98: 0.379 | I98: 14.72768
A99: 0.077 | B99: 171.8346 | C99: 0.383 | D99: 6.369818 | F99: 0.077 | G99: 144.118 | H99: 0.383 | I99: 14.72364
A100: 0.077 | B100: 170.3964 | C100: 0.387 | D100: 6.352489 | F100: 0.077 | G100: 143.2929 | H100: 0.387 | I100: 14.71984
A101: 0.078 | B101: 168.9566 | C101: 0.391 | D101: 6.337835 | F101: 0.078 | G101: 142.2996 | H101: 0.391 | I101: 14.7183
A102: 0.079 | B102: 167.3936 | C102: 0.395 | D102: 6.323471 | F102: 0.079 | G102: 141.2047 | H102: 0.395 | I102: 14.71882
A103: 0.08 | B103: 165.6904 | C103: 0.399 | D103: 6.3089 | F103: 0.08 | G103: 140.1001 | H103: 0.399 | I103: 14.72053
A104: 0.081 | B104: 163.9466 | C104: 0.404 | D104: 6.294454 | F104: 0.081 | G104: 138.9938 | H104: 0.403 | I104: 14.72331
A105: 0.082 | B105: 162.2035 | C105: 0.408 | D105: 6.278834 | F105: 0.082 | G105: 137.8904 | H105: 0.408 | I105: 14.72543
A106: 0.082 | B106: 160.4204 | C106: 0.412 | D106: 6.262521 | F106: 0.082 | G106: 136.626 | H106: 0.412 | I106: 14.72763
A107: 0.083 | B107: 158.4911 | C107: 0.416 | D107: 6.245694 | F107: 0.083 | G107: 135.2827 | H107: 0.416 | I107: 14.73499
A108: 0.084 | B108: 156.4858 | C108: 0.42 | D108: 6.229118 | F108: 0.084 | G108: 133.9355 | H108: 0.42 | I108: 14.74329
A109: 0.085 | B109: 154.483 | C109: 0.424 | D109: 6.2159 | F109: 0.085 | G109: 132.5932 | H109: 0.424 | I109: 14.75084
A110: 0.086 | B110: 152.4738 | C110: 0.428 | D110: 6.20661 | F110: 0.086 | G110: 131.2012 | H110: 0.428 | I110: 14.76001
A111: 0.087 | B111: 150.3684 | C111: 0.433 | D111: 6.198483 | F111: 0.087 | G111: 129.6938 | H111: 0.433 | I111: 14.76947
A112: 0.087 | B112: 148.1641 | C112: 0.437 | D112: 6.191115 | F112: 0.087 | G112: 128.1456 | H112: 0.437 | I112: 14.78124
A113: 0.088 | B113: 145.9338 | C113: 0.441 | D113: 6.183504 | F113: 0.088 | G113: 126.6028 | H113: 0.441 | I113: 14.79278
A114: 0.089 | B114: 143.6987 | C114: 0.445 | D114: 6.175949 | F114: 0.089 | G114: 125.0554 | H114: 0.445 | I114: 14.80349
A115: 0.09 | B115: 141.441 | C115: 0.449 | D115: 6.169772 | F115: 0.09 | G115: 123.4532 | H115: 0.449 | I115: 14.81666
A116: 0.091 | B116: 139.0694 | C116: 0.453 | D116: 6.165502 | F116: 0.091 | G116: 121.7835 | H116: 0.453 | I116: 14.82919
A117: 0.092 | B117: 136.6539 | C117: 0.458 | D117: 6.161133 | F117: 0.092 | G117: 120.0878 | H117: 0.458 | I117: 14.8377
A118: 0.092 | B118: 134.2344 | C118: 0.462 | D118: 6.155102 | F118: 0.092 | G118: 118.3977 | H118: 0.462 | I118: 14.84742
A119: 0.093 | B119: 131.8093 | C119: 0.466 | D119: 6.148078 | F119: 0.093 | G119: 116.6936 | H119: 0.466 | I119: 14.86135
A120: 0.094 | B120: 129.3118 | C120: 0.47 | D120: 6.139662 | F120: 0.094 | G120: 114.9291 | H120: 0.47 | I120: 14.87573
A121: 0.095 | B121: 126.7515 | C121: 0.474 | D121: 6.130594 | F121: 0.095 | G121: 113.1285 | H121: 0.474 | I121: 14.8896
A122: 0.096 | B122: 124.1785 | C122: 0.478 | D122: 6.120744 | F122: 0.096 | G122: 111.3221 | H122: 0.478 | I122: 14.90324
A123: 0.097 | B123: 121.614 | C123: 0.483 | D123: 6.11201 | F123: 0.097 | G123: 109.5165 | H123: 0.483 | I123: 14.91888
A124: 0.097 | B124: 119.0205 | C124: 0.487 | D124: 6.108123 | F124: 0.097 | G124: 107.6752 | H124: 0.487 | I124: 14.9377
A125: 0.098 | B125: 116.3602 | C125: 0.491 | D125: 6.105252 | F125: 0.098 | G125: 105.7895 | H125: 0.491 | I125: 14.95629
A126: 0.099 | B126: 113.6513 | C126: 0.495 | D126: 6.099935 | F126: 0.099 | G126: 103.8852 | H126: 0.495 | I126: 14.97655
A127: 0.1 | B127: 110.9464 | C127: 0.499 | D127: 6.09397 | F127: 0.1 | G127: 101.99 | H127: 0.499 | I127: 14.99974
A128: 0.101 | B128: 108.2238 | C128: 0.503 | D128: 6.090758 | F128: 0.101 | G128: 100.09 | H128: 0.503 | I128: 15.02174
A129: 0.101 | B129: 105.5065 | C129: 0.507 | D129: 6.089133 | F129: 0.101 | G129: 98.19747 | H129: 0.507 | I129: 15.0421
A130: 0.102 | B130: 102.774 | C130: 0.512 | D130: 6.08674 | F130: 0.102 | G130: 96.29242 | H130: 0.512 | I130: 15.06472
A131: 0.103 | B131: 100.0549 | C131: 0.516 | D131: 6.084112 | F131: 0.103 | G131: 94.337 | H131: 0.516 | I131: 15.09055
A132: 0.104 | B132: 97.35608 | C132: 0.52 | D132: 6.082531 | F132: 0.104 | G132: 92.36217 | H132: 0.52 | I132: 15.11594
A133: 0.105 | B133: 94.65331 | C133: 0.524 | D133: 6.082275 | F133: 0.105 | G133: 90.40555 | H133: 0.524 | I133: 15.14263
A134: 0.106 | B134: 92.12873 | C134: 0.528 | D134: 6.079053 | F134: 0.106 | G134: 88.41401 | H134: 0.528 | I134: 15.17037
A135: 0.106 | B135: 89.69351 | C135: 0.532 | D135: 6.075574 | F135: 0.106 | G135: 86.38956 | H135: 0.532 | I135: 15.19989
A136: 0.107 | B136: 87.24968 | C136: 0.537 | D136: 6.073086 | F136: 0.107 | G136: 84.36836 | H136: 0.537 | I136: 15.22956
A137: 0.108 | B137: 84.81205 | C137: 0.541 | D137: 6.072329 | F137: 0.108 | G137: 82.38146 | H137: 0.541 | I137: 15.25773
A138: 0.109 | B138: 82.47516 | C138: 0.545 | D138: 6.072803 | F138: 0.109 | G138: 80.41454 | H138: 0.545 | I138: 15.28737
A139: 0.11 | B139: 80.26164 | C139: 0.549 | D139: 6.074474 | F139: 0.11 | G139: 78.43576 | H139: 0.549 | I139: 15.31834
A140: 0.111 | B140: 78.08632 | C140: 0.553 | D140: 6.079349 | F140: 0.111 | G140: 76.44916 | H140: 0.553 | I140: 15.3484
A141: 0.111 | B141: 75.91368 | C141: 0.557 | D141: 6.085724 | F141: 0.111 | G141: 74.45823 | H141: 0.557 | I141: 15.37762
A142: 0.112 | B142: 73.7399 | C142: 0.562 | D142: 6.090963 | F142: 0.112 | G142: 72.64876 | H142: 0.562 | I142: 15.40793
A143: 0.113 | B143: 71.70689 | C143: 0.566 | D143: 6.095986 | F143: 0.113 | G143: 70.95551 | H143: 0.566 | I143: 15.43836
A144: 0.114 | B144: 69.78362 | C144: 0.57 | D144: 6.102765 | F144: 0.114 | G144: 69.25853 | H144: 0.57 | I144: 15.4688
A145: 0.115 | B145: 67.8706 | C145: 0.574 | D145: 6.110629 | F145: 0.115 | G145: 67.56244 | H145: 0.574 | I145: 15.50022
A146: 0.116 | B146: 65.94909 | C146: 0.578 | D146: 6.120979 | F146: 0.116 | G146: 65.94578 | H146: 0.578 | I146: 15.53228
A147: 0.116 | B147: 64.06784 | C147: 0.582 | D147: 6.131195 | F147: 0.116 | G147: 64.49213 | H147: 0.582 | I147: 15.56433
A148: 0.117 | B148: 62.35694 | C148: 0.587 | D148: 6.141414 | F148: 0.117 | G148: 63.1028 | H148: 0.587 | I148: 15.59773
A149: 0.118 | B149: 60.69152 | C149: 0.591 | D149: 6.152537 | F149: 0.118 | G149: 61.71099 | H149: 0.591 | I149: 15.63372
A150: 0.119 | B150: 59.02904 | C150: 0.595 | D150: 6.161807 | F150: 0.119 | G150: 60.31627 | H150: 0.595 | I150: 15.67068
A151: 0.12 | B151: 57.36703 | C151: 0.599 | D151: 6.170581 | F151: 0.12 | G151: 59.07499 | H151: 0.599 | I151: 15.70934
A152: 0.121 | B152: 55.82883 | C152: 0.603 | D152: 6.181431 | F152: 0.121 | G152: 57.94181 | H152: 0.603 | I152: 15.74897
A153: 0.121 | B153: 54.39295 | C153: 0.607 | D153: 6.193701 | F153: 0.121 | G153: 56.81374 | H153: 0.607 | I153: 15.78993
A154: 0.122 | B154: 52.9781 | C154: 0.611 | D154: 6.206104 | F154: 0.122 | G154: 55.69084 | H154: 0.611 | I154: 15.83192
A155: 0.123 | B155: 51.57764 | C155: 0.616 | D155: 6.217903 | F155: 0.123 | G155: 54.56422 | H155: 0.616 | I155: 15.87097
A156: 0.124 | B156: 50.31417 | C156: 0.62 | D156: 6.229678 | F156: 0.124 | G156: 53.56683 | H156: 0.62 | I156: 15.91008
A157: 0.125 | B157: 49.194 | C157: 0.624 | D157: 6.243934 | F157: 0.125 | G157: 52.64129 | H157: 0.624 | I157: 15.95197
A158: 0.126 | B158: 48.07791 | C158: 0.628 | D158: 6.258967 | F158: 0.126 | G158: 51.70993 | H158: 0.628 | I158: 15.99371
A159: 0.126 | B159: 46.89886 | C159: 0.632 | D159: 6.274805 | F159: 0.126 | G159: 50.77433 | H159: 0.632 | I159: 16.03481
A160: 0.127 | B160: 45.70189 | C160: 0.636 | D160: 6.294067 | F160: 0.127 | G160: 49.88747 | H160: 0.636 | I160: 16.07563
A161: 0.128 | B161: 44.56363 | C161: 0.641 | D161: 6.316114 | F161: 0.128 | G161: 49.08361 | H161: 0.641 | I161: 16.11615
A162: 0.129 | B162: 43.52396 | C162: 0.645 | D162: 6.339788 | F162: 0.129 | G162: 48.309 | H162: 0.645 | I162: 16.15764
A163: 0.13 | B163: 42.52018 | C163: 0.649 | D163: 6.364463 | F163: 0.13 | G163: 47.53882 | H163: 0.649 | I163: 16.1991
A164: 0.131 | B164: 41.515 | C164: 0.653 | D164: 6.390944 | F164: 0.131 | G164: 46.76515 | H164: 0.653 | I164: 16.24171
A165: 0.131 | B165: 40.51848 | C165: 0.657 | D165: 6.417802 | F165: 0.131 | G165: 46.03752 | H165: 0.657 | I165: 16.28765
A166: 0.132 | B166: 39.60101 | C166: 0.661 | D166: 6.445535 | F166: 0.132 | G166: 45.364 | H166: 0.661 | I166: 16.33621
A167: 0.133 | B167: 38.74413 | C167: 0.666 | D167: 6.475107 | F167: 0.133 | G167: 44.70151 | H167: 0.666 | I167: 16.38345
A168: 0.134 | B168: 37.88541 | C168: 0.67 | D168: 6.505187 | F168: 0.134 | G168: 44.0397 | H168: 0.67 | I168: 16.43086
A169: 0.135 | B169: 37.02779 | C169: 0.674 | D169: 6.536587 | F169: 0.135 | G169: 43.38897 | H169: 0.674 | I169: 16.48062
A170: 0.136 | B170: 36.21473 | C170: 0.678 | D170: 6.569879 | F170: 0.136 | G170: 42.79305 | H170: 0.678 | I170: 16.53077
A171: 0.136 | B171: 35.46468 | C171: 0.682 | D171: 6.603562 | F171: 0.136 | G171: 42.22509 | H171: 0.682 | I171: 16.58104
A172: 0.137 | B172: 34.72598 | C172: 0.686 | D172: 6.637104 | F172: 0.137 | G172: 41.66145 | H172: 0.686 | I172: 16.63205
A173: 0.138 | B173: 33.98512 | C173: 0.691 | D173: 6.672896 | F173: 0.138 | G173: 41.09429 | H173: 0.691 | I173: 16.68334
A174: 0.139 | B174: 33.2573 | C174: 0.695 | D174: 6.712141 | F174: 0.139 | G174: 40.55682 | H174: 0.695 | I174: 16.73461
A175: 0.14 | B175: 32.57887 | C175: 0.699 | D175: 6.754741 | F175: 0.14 | G175: 40.05483 | H175: 0.699 | I175: 16.78847
A176: 0.141 | B176: 31.93809 | C176: 0.703 | D176: 6.799167 | F176: 0.141 | G176: 39.56396 | H176: 0.703 | I176: 16.8419
A177: 0.141 | B177: 31.29782 | C177: 0.707 | D177: 6.846488 | F177: 0.141 | G177: 39.07246 | H177: 0.707 | I177: 16.8963
A178: 0.142 | B178: 30.65888 | C178: 0.711 | D178: 6.897323 | F178: 0.142 | G178: 38.58068 | H178: 0.711 | I178: 16.95348
A179: 0.143 | B179: 30.03891 | C179: 0.715 | D179: 6.949287 | F179: 0.143 | G179: 38.13647 | H179: 0.715 | I179: 17.00927
A180: 0.144 | B180: 29.45954 | C180: 0.72 | D180: 7.002104 | F180: 0.144 | G180: 37.72232 | H180: 0.72 | I180: 17.06554
A181: 0.145 | B181: 28.90123 | C181: 0.724 | D181: 7.05698 | F181: 0.145 | G181: 37.31244 | H181: 0.724 | I181: 17.12386
A182: 0.146 | B182: 28.34387 | C182: 0.728 | D182: 7.115397 | F182: 0.146 | G182: 36.90125 | H182: 0.728 | I182: 17.183
A183: 0.146 | B183: 27.78226 | C183: 0.732 | D183: 7.176148 | F183: 0.146 | G183: 36.48831 | H183: 0.732 | I183: 17.24139
A184: 0.147 | B184: 27.25512 | C184: 0.736 | D184: 7.23827 | F184: 0.147 | G184: 36.11796 | H184: 0.736 | I184: 17.30026
A185: 0.148 | B185: 26.76014 | C185: 0.74 | D185: 7.302395 | F185: 0.148 | G185: 35.76783 | H185: 0.74 | I185: 17.35716
A186: 0.149 | B186: 26.26996 | C186: 0.745 | D186: 7.367941 | F186: 0.149 | G186: 35.4184 | H186: 0.745 | I186: 17.41432
A187: 0.15 | B187: 25.7803 | C187: 0.749 | D187: 7.433783 | F187: 0.15 | G187: 35.06809 | H187: 0.749 | I187: 17.4753
A188: 0.151 | B188: 25.29979 | C188: 0.753 | D188: 7.499855 | F188: 0.151 | G188: 34.73469 | H188: 0.753 | I188: 17.53739
A189: 0.151 | B189: 24.84816 | C189: 0.757 | D189: 7.570174 | F189: 0.151 | G189: 34.42348 | H189: 0.757 | I189: 17.60022
A190: 0.152 | B190: 24.41281 | C190: 0.761 | D190: 7.646373 | F190: 0.152 | G190: 34.11792 | H190: 0.761 | I190: 17.66343
A191: 0.153 | B191: 23.97843 | C191: 0.765 | D191: 7.725522 | F191: 0.153 | G191: 33.81169 | H191: 0.765 | I191: 17.72681
A192: 0.154 | B192: 23.5426 | C192: 0.77 | D192: 7.807791 | F192: 0.154 | G192: 33.50015 | H192: 0.77 | I192: 17.79115
A193: 0.155 | B193: 23.13104 | C193: 0.774 | D193: 7.89336 | F193: 0.155 | G193: 33.22538 | H193: 0.774 | I193: 17.85644
A194: 0.156 | B194: 22.73991 | C194: 0.778 | D194: 7.980483 | F194: 0.156 | G194: 32.97893 | H194: 0.778 | I194: 17.92236
A195: 0.156 | B195: 22.35322 | C195: 0.782 | D195: 8.070304 | F195: 0.156 | G195: 32.73145 | H195: 0.782 | I195: 17.99039
A196: 0.157 | B196: 21.96624 | C196: 0.786 | D196: 8.164846 | F196: 0.157 | G196: 32.46877 | H196: 0.786 | I196: 18.05999
A197: 0.158 | B197: 21.5835 | C197: 0.79 | D197: 8.264244 | F197: 0.158 | G197: 32.19413 | H197: 0.79 | I197: 18.12862
A198: 0.159 | B198: 21.223 | C198: 0.795 | D198: 8.36656 | F198: 0.159 | G198: 31.9237 | H198: 0.795 | I198: 18.19783
A199: 0.16 | B199: 20.87688 | C199: 0.799 | D199: 8.470167 | F199: 0.16 | G199: 31.66095 | H199: 0.799 | I199: 18.26957
A200: 0.161 | B200: 20.53213 | C200: 0.803 | D200: 8.573169 | F200: 0.161 | G200: 31.39791 | H200: 0.803 | I200: 18.34501
A201: 0.161 | B201: 20.18568 | C201: 0.807 | D201: 8.676991 | F201: 0.161 | G201: 31.13428 | H201: 0.807 | I201: 18.42148
... 4299 more rows

Sheet Suppl Fig1d
A3: Enzyme | C3: n=1 | G3: n=2 | K3: n=3 | O3: ave. | S3: STDEV.S
A4: apo-DNMT1 | B4: Time (min) | C4: 0 | D4: 5 | E4: 15 | F4: 30 | G4: 0 | H4: 5 | I4: 15 | J4: 30 | K4: 0 | L4: 5 | M4: 15 | N4: 30 | O4: 0 | P4: 5 | Q4: 15 | R4: 30 | S4: 0 | T4: 5 | U4: 15 | V4: 30
B5: SAH (μM) | C5: 0 | D5: -0.02549298943 | E5: -0.04273824698 | F5: -0.02136912349 | G5: 0 | H5: -0.0215720113 | I5: -0.03176968936 | J5: 0.04334013179 | K5: 0 | L5: -0.007844367744 | M5: 0.01411986194 | N5: 0.06334326953 | O5: 0 | P5: -0.01830312282 | Q5: -0.02012935814 | R5: 0.02843809261 | S5: 0 | T5: 0.009267291175 | U5: 0.03016345671 | V5: 0.04427866825
C8: n=1 | G8: n=2 | K8: n=3 | O8: ave. | S8: STDEV.S
A9: DNMT1:H3Ub2 | B9: Time (min) | C9: 0 | D9: 5 | E9: 15 | F9: 30 | G9: 0 | H9: 5 | I9: 15 | J9: 30 | K9: 0 | L9: 5 | M9: 15 | N9: 30 | O9: 0 | P9: 5 | Q9: 15 | R9: 30 | S9: 0 | T9: 5 | U9: 15 | V9: 30
B10: SAH (μM) | C10: 0 | D10: 0.1646462694 | E10: 0.4434058651 | F10: 1.083973049 | G10: 0 | H10: 0.1347545148 | I10: 0.391906445 | J10: 1.218520462 | K10: 0 | L10: 0.1803576171 | M10: 0.7384703904 | N10: 1.716606179 | O10: 0 | P10: 0.1599194671 | Q10: 0.5245942335 | R10: 1.339699896 | S10: 0 | T10: 0.02316609005 | U10: 0.1870034904 | V10: 0.3332709269
A12: Calibration curve | B12: SAH concentration (μM) | C12: RLU (Relative Light Unit) | D12: RLU-RLU(SAH=0 μM)
B13: 2 | C13: 1.62E+06 | D13: =C13-$C$17 -> 1.45E+06
B14: 1.5 | C14: 1.21E+06 | D14: =C14-$C$17 -> 1.04E+06
B15: 1 | C15: 9.64E+05 | D15: =C15-$C$17 -> 8.03E+05
B16: 0.5 | C16: 4.94E+05 | D16: =C16-$C$17 -> 3.33E+05
B17: 0 | C17: 1.61E+05 | D17: =C17-$C$17 -> 0E+00
B20: SAH Concentration (μM)
A21: Reaction Time (min) | B21: apo-DNMT1 | C21: SD of apo-DNMT1 | D21: DNMT1-H3Ub2 | E21: SD of DNMT1:H3Ub2iso
A22: 0 | B22: 0.000 | C22: 0.000 | D22: 0.000 | E22: 0.000
A23: 5 | B23: -0.018 | C23: 0.009 | D23: 0.160 | E23: 0.023
A24: 15 | B24: -0.020 | C24: 0.030 | D24: 0.525 | E24: 0.187
A25: 30 | B25: 0.028 | C25: 0.044 | D25: 1.340 | E25: 0.333

Sheet Suppl Fig1e
A1: n=1
A2: Enzyme | B2: DNA concentration (μM) | C2: RLU (Relative Light Unit) | D2: SAH concentration (μM) | E2: SAH-SAH(DNA=0 μM Ave.) | F2: Methylation rate | I2: 5.502e-07 | J2: 0.0083539305 | K2: =AVERAGE(D9,D16,D23,D30) -> 0.1152622545
A3: DNMT1/H3 18Ub/23Ub | B3: 0.8 | C3: 936600 | D3: =C3*$I$2-$J$2 -> 0.5069633895 | E3: =D3-K$2 -> 0.391701135 | F3: =E3/0.015 -> 26.113409
B4: 0.4 | C4: 914100 | D4: 0.4945838895 | E4: 0.379321635 | F4: 25.288109
B5: 0.2 | C5: 681600 | D5: 0.3666623895 | E5: 0.251400135 | F5: 16.760009
B6: 0.1 | C6: 471700 | D6: 0.2511754095 | E6: 0.135913155 | F6: 9.060877
B7: 0.05 | C7: 375700 | D7: 0.1983562095 | E7: 0.083093955 | F7: 5.539597
B8: 0.025 | C8: 298300 | D8: 0.1557707295 | E8: 0.040508475 | F8: 2.700565
B9: 0 | C9: 224300 | D9: 0.1150559295 | E9: -0.000206325 | F9: -0.013755
A10: DNMT1/H3 18Ub | B10: 0.8 | C10: 571900 | D10: 0.3063054495 | E10: 0.191043195 | F10: 12.736213
B11: 0.4 | C11: 570300 | D11: 0.3054251295 | E11: 0.190162875 | F11: 12.677525
B12: 0.2 | C12: 515100 | D12: 0.2750540895 | E12: 0.159791835 | F12: 10.652789
B13: 0.1 | C13: 401300 | D13: 0.2124413295 | E13: 0.097179075 | F13: 6.478605
B14: 0.05 | C14: 336900 | D14: 0.1770084495 | E14: 0.061746195 | F14: 4.116413
B15: 0.025 | C15: 289800 | D15: 0.1510940295 | E15: 0.035831775 | F15: 2.388785
B16: 0 | C16: 220600 | D16: 0.1130201895 | E16: -0.002242065 | F16: -0.149471
A17: DNMT1/H3 23Ub | B17: 0.8 | C17: 478900 | D17: 0.2551368495 | E17: 0.139874595 | F17: 9.324973
B18: 0.4 | C18: 556900 | D18: 0.2980524495 | E18: 0.182790195 | F18: 12.186013
B19: 0.2 | C19: 450500 | D19: 0.2395111695 | E19: 0.124248915 | F19: 8.283261
B20: 0.1 | C20: 353200 | D20: 0.1859767095 | E20: 0.070714455 | F20: 4.714297
B21: 0.05 | C21: 300900 | D21: 0.1572012495 | E21: 0.041938995 | F21: 2.795933
B22: 0.025 | C22: 283800 | D22: 0.1477928295 | E22: 0.032530575 | F22: 2.168705
B23: 0 | C23: 229700 | D23: 0.1180270095 | E23: 0.002764755 | F23: 0.184317
A24: w/o | B24: 0.8 | C24: 279000 | D24: 0.1451518695 | E24: 0.029889615 | F24: 1.992641
B25: 0.4 | C25: 288900 | D25: 0.1505988495 | E25: 0.035336595 | F25: 2.355773
B26: 0.2 | C26: 285800 | D26: 0.1488932295 | E26: 0.033630975 | F26: 2.242065
B27: 0.1 | C27: 295600 | D27: 0.1542851895 | E27: 0.039022935 | F27: 2.601529
B28: 0.05 | C28: 267900 | D28: 0.1390446495 | E28: 0.023782395 | F28: 1.585493
B29: 0.025 | C29: 262600 | D29: 0.1361285895 | E29: 0.020866335 | F29: 1.391089
B30: 0 | C30: 224100 | D30: 0.1149458895 | E30: -0.000316365 | F30: -0.021091
A34: Calibration curve | B34: SAH concentration (μM) | C34: RLU (Relative Light Unit) | D34: RLU-RLU(SAH=0 μM)
B35: 1 | C35: 2043000 | D35: =C35-C$39 -> 1807500
B36: 0.5 | C36: 1205000 | D36: =C36-C$39 -> 969500
B37: 0.2 | C37: 626000 | D37: =C37-C$39 -> 390500
B38: 0.1 | C38: 415600 | D38: =C38-C$39 -> 180100
B39: 0 | C39: 235500 | D39: =C39-C$39 -> 0
A41: n=2
A42: Enzyme | B42: DNA concentration (μM) | C42: RLU (Relative Light Unit) | D42: SAH concentration (μM) | E42: SAH-SAH(DNA=0 μM Ave.) | F42: Methylation rate
A43: DNMT1/H3 18Ub/23Ub | B43: 0.8 | C43: 1014000 | D43: =C43*$H$61-$I$61 -> 0.7267821695 | E43: =D43-$J$61 -> 0.5770648025 | F43: =E43/0.015 -> 38.47098683
B44: 0.4 | C44: 877700 | D44: 0.6272422795 | E44: 0.4775249125 | F44: 31.83499417
B45: 0.2 | C45: 762400 | D45: 0.5430386895 | E45: 0.3933213225 | F45: 26.2214215
B46: 0.1 | C46: 427900 | D46: 0.2987533395 | E46: 0.1490359725 | F46: 9.9357315
B47: 0.05 | C47: 387100 | D47: 0.2689570995 | E47: 0.1192397325 | F47: 7.9493155
B48: 0.025 | C48: 307700 | D48: 0.2109712795 | E48: 0.0612539125 | F48: 4.083594167
B49: 0 | C49: 218500 | D49: 0.1458285195 | E49: -0.0038888475 | F49: -0.2592565
A50: DNMT1/H3 18Ub | B50: 0.8 | C50: 490100 | D50: 0.3441779995 | E50: 0.1944606325 | F50: 12.96404217
B51: 0.4 | C51: 470800 | D51: 0.3300832095 | E51: 0.1803658425 | F51: 12.0243895
B52: 0.2 | C52: 511400 | D52: 0.3597333895 | E52: 0.2100160225 | F52: 14.00106817
B53: 0.1 | C53: 372400 | D53: 0.2582216895 | E53: 0.1085043225 | F53: 7.2336215
B54: 0.05 | C54: 328100 | D54: 0.2258693995 | E54: 0.0761520325 | F54: 5.076802167
B55: 0.025 | C55: 293300 | D55: 0.2004549595 | E55: 0.0507375925 | F55: 3.382506167
B56: 0 | C56: 225700 | D56: 0.1510866795 | E56: 0.0013693125 | F56: 0.0912875
A57: DNMT1/H3 23Ub | B57: 0.8 | C57: 440900 | D57: 0.3082472395 | E57: 0.1585298725 | F57: 10.56865817
B58: 0.4 | C58: 437600 | D58: 0.3058372495 | E58: 0.1561198825 | F58: 10.40799217
B59: 0.2 | C59: 379500 | D59: 0.2634068195 | E59: 0.1136894525 | F59: 7.579296833
B60: 0.1 | C60: 309600 | D60: 0.2123588495 | E60: 0.0626414825 | F60: 4.176098833
B61: 0.05 | C61: 282600 | D61: 0.1926407495 | E61: 0.0429233825 | F61: 2.861558833 | H61: 7.303e-07 | I61: 0.0137420305 | J61: =AVERAGE(D49,D56,D63,D70) -> 0.149717367
B62: 0.025 | C62: 258300 | D62: 0.1748944595 | E62: 0.0251770925 | F62: 1.678472833
B63: 0 | C63: 225300 | D63: 0.1507945595 | E63: 0.0010771925 | F63: 0.07181283333
A64: w/o | B64: 0.8 | C64: 262400 | D64: 0.1778886895 | E64: 0.0281713225 | F64: 1.878088167
B65: 0.4 | C65: 248000 | D65: 0.1673723695 | E65: 0.0176550025 | F65: 1.177000167
B66: 0.2 | C66: 263800 | D66: 0.1789111095 | E66: 0.0291937425 | F66: 1.9462495
B67: 0.1 | C67: 259700 | D67: 0.1759168795 | E67: 0.0261995125 | F67: 1.746634167
B68: 0.05 | C68: 254300 | D68: 0.1719732595 | E68: 0.0222558925 | F68: 1.483726167
B69: 0.025 | C69: 252900 | D69: 0.1709508395 | E69: 0.0212334725 | F69: 1.415564833
B70: 0 | C70: 225800 | D70: 0.1511597095 | E70: 0.0014423425 | F70: 0.09615616667
A73: Calibration curve | B73: SAH concentration (μM) | C73: RLU (Relative Light Unit) | D73: RLU-RLU(SAH=0 μM)
B74: 1 | C74: 1557000 | D74: =C74-C$78 -> 1308600
B75: 0.5 | C75: 1082000 | D75: 833600
B76: 0.2 | C76: 538500 | D76: 290100
B77: 0.1 | C77: 374900 | D77: 126500
B78: 0 | C78: 248400 | D78: =C78-C$78 -> 0
A81: n=3
A82: Enzyme | B82: DNA concentration (μM) | C82: RLU (Relative Light Unit) | D82: SAH concentration (μM) | E82: SAH-SAH(DNA=0 μM Ave.) | F82: Methylation rate | H82: 7.751e-07 | I82: 0.0343679437 | J82: =AVERAGE(D89,D96,D103,D110) -> 0.2022739812
A83: DNMT1/H3 18Ub/23Ub | B83: 0.8 | C83: 1054000 | D83: =$H$82*C83+$I$82 -> 0.8513233437 | E83: =D83-$J$82 -> 0.6490493625 | F83: =E83/0.015 -> 43.2699575
B84: 0.4 | C84: 907400 | D84: 0.7376936837 | E84: 0.5354197025 | F84: 35.69464683
B85: 0.2 | C85: 741500 | D85: 0.6091045937 | E85: 0.4068306125 | F85: 27.12204083
B86: 0.1 | C86: 426200 | D86: 0.3647155637 | E86: 0.1624415825 | F86: 10.82943883
B87: 0.05 | C87: 339700 | D87: 0.2976694137 | E87: 0.0953954325 | F87: 6.3596955
B88: 0.025 | C88: 298100 | D88: 0.2654252537 | E88: 0.0631512725 | F88: 4.210084833
B89: 0 | C89: 217000 | D89: 0.2025646437 | E89: 0.0002906625 | F89: 0.0193775
A90: DNMT1/H3 18Ub | B90: 0.8 | C90: 445300 | D90: 0.3795199737 | E90: 0.1772459925 | F90: 11.8163995
B91: 0.4 | C91: 459000 | D91: 0.3901388437 | E91: 0.1878648625 | F91: 12.52432417
B92: 0.2 | C92: 469800 | D92: 0.3985099237 | E92: 0.1962359425 | F92: 13.08239617
B93: 0.1 | C93: 371900 | D93: 0.3226276337 | E93: 0.1203536525 | F93: 8.023576833
B94: 0.05 | C94: 324300 | D94: 0.2857328737 | E94: 0.0834588925 | F94: 5.563926167
B95: 0.025 | C95: 295000 | D95: 0.2630224437 | E95: 0.0607484625 | F95: 4.0498975
B96: 0 | C96: 214900 | D96: 0.2009369337 | E96: -0.0013370475 | F96: -0.0891365
A97: DNMT1/H3 23Ub | B97: 0.8 | C97: 437900 | D97: 0.3737842337 | E97: 0.1715102525 | F97: 11.43401683
B98: 0.4 | C98: 446700 | D98: 0.3806051137 | E98: 0.1783311325 | F98: 11.88874217
B99: 0.2 | C99: 398800 | D99: 0.3434778237 | E99: 0.1412038425 | F99: 9.4135895
B100: 0.1 | C100: 305000 | D100: 0.2707734437 | E100: 0.0684994625 | F100: 4.566630833
B101: 0.05 | C101: 285700 | D101: 0.2558140137 | E101: 0.0535400325 | F101: 3.5693355
B102: 0.025 | C102: 258700 | D102: 0.2348863137 | E102: 0.0326123325 | F102: 2.1741555
B103: 0 | C103: 211000 | D103: 0.1979140437 | E103: -0.0043599375 | F103: -0.2906625
A104: w/o | B104: 0.8 | C104: 262700 | D104: 0.2379867137 | E104: 0.0357127325 | F104: 2.380848833
B105: 0.4 | C105: 266900 | D105: 0.2412421337 | E105: 0.0389681525 | F105: 2.597876833
B106: 0.2 | C106: 278700 | D106: 0.2503883137 | E106: 0.0481143325 | F106: 3.207622167
B107: 0.1 | C107: 251400 | D107: 0.2292280837 | E107: 0.0269541025 | F107: 1.796940167
B108: 0.05 | C108: 258200 | D108: 0.2344987637 | E108: 0.0322247825 | F108: 2.148318833
B109: 0.025 | C109: 236200 | D109: 0.2174465637 | E109: 0.0151725825 | F109: 1.0115055
B110: 0 | C110: 223600 | D110: 0.2076803037 | E110: 0.0054063225 | F110: 0.3604215
A114: Calibration curve | B114: SAH concentration (μM) | C114: RLU (Relative Light Unit) | D114: RLU-RLU(SAH=0 μM)
B115: 1 | C115: 1492000 | D115: =C115-C$119 -> 1281300
B116: 0.5 | C116: 724900 | D116: =C116-C$119 -> 514200
B117: 0.2 | C117: 402700 | D117: 192000
B118: 0.1 | C118: 323800 | D118: 113100
B119: 0 | C119: 210700 | D119: =C119-C$119 -> 0
A122: Total
A123: Enzyme | B123: DNA concentration (μM) | C123: SAH.ave (μM) | D123: Methylation rate | E123: SD
A124: DNMT1/H3 18Ub/23Ub | B124: 0.8 | C124: =AVERAGE($E43,$E3,$E83) -> 0.5392717667 | D124: =C124/0.015 -> 35.95145111 | E124: =_xlfn.STDEV.S($F3,$F43,$F83) -> 8.851431201
B125: 0.4 | C125: 0.46408875 | D125: 30.93925 | E125: 5.260777094
B126: 0.2 | C126: 0.3505173567 | D126: 23.36782378 | E126: 5.740225684
B127: 0.1 | C127: 0.1491302367 | D127: 9.942015778 | E127: 0.8842976641
B128: 0.05 | C128: 0.09924304 | D128: 6.616202667 | E128: 1.22516642
B129: 0.025 | C129: 0.05497122 | D129: 3.664748 | E129: 0.8373987194
B130: 0 | C130: -0.00126817 | D130: -0.08454466667 | E130: 0.1522090969
A131: DNMT1/H3 18Ub | B131: 0.8 | C131: 0.1875832733 | D131: 12.50555156 | E131: 0.6075972754
B132: 0.4 | C132: 0.1861311933 | D132: 12.40874622 | E132: 0.3415628658
B133: 0.2 | C133: 0.1886812667 | D133: 12.57875111 | E133: 1.730025174
B134: 0.1 | C134: 0.1086790167 | D134: 7.245267778 | E134: 0.7725517577
B135: 0.05 | C135: 0.07378570667 | D135: 4.919047111 | E135: 0.7365382441
B136: 0.025 | C136: 0.04910594333 | D136: 3.273729556 | E136: 0.8358815393
B137: 0 | C137: -0.0007366 | D137: -0.04910666667 | E137: 0.1252715231
A138: DNMT1/H3 23Ub | B138: 0.8 | C138: 0.15663824 | D138: 10.44254933 | E138: 1.060162276
B139: 0.4 | C139: 0.1724137367 | D139: 11.49424911 | E139: 0.9523959781
B140: 0.2 | C140: 0.1263807367 | D140: 8.425382444 | E140: 0.9253681837
B141: 0.1 | C141: 0.06728513333 | D141: 4.485675556 | E141: 0.2780820641
B142: 0.05 | C142: 0.04613413667 | D142: 3.075609111 | E142: 0.4288367962
B143: 0.025 | C143: 0.03010666667 | D143: 2.007111111 | E143: 0.2846221446
B144: 0 | C144: -0.0001726633333 | D144: -0.01151088889 | E144: 0.248210623
A145: w/o | B145: 0.8 | C145: 0.03125789 | D145: 2.083859333 | E145: 0.2635007784
B146: 0.4 | C146: 0.03065325 | D146: 2.04355 | E146: 0.7601546071
B147: 0.2 | C147: 0.03697968333 | D147: 2.465312222 | E147: 0.659655018
B148: 0.1 | C148: 0.03072551667 | D148: 2.048367778 | E148: 0.4797115558
B149: 0.05 | C149: 0.02608769 | D149: 1.739179333 | E149: 0.3579601513
B150: 0.025 | C150: 0.01909079667 | D150: 1.272719778 | E150: 0.226548981
B151: 0 | C151: 0.002177433333 | D151: 0.1451622222 | E151: 0.1954204238

Sheet Suppl Fig1f
K1: DNMT1WT:H3Ub2 | N1: DNMT1 FF/AA:H3Ub2
K2: Chrom.1 | L2: WT | N2: Chrom.1 | O2: FFAA mutant
K3: UV 1_280 | N3: UV 1_280
K4: ml | L4: mAU | N4: ml | O4: mAU
K5: 0 | L5: 0.06334049 | N5: 0 | O5: -0.0942423
K6: 0.001 | L6: 0.538302 | N6: 0.001 | O6: -0.805899
K7: 0.002 | L7: 0.5703191 | N7: 0.002 | O7: -0.8552808
K8: 0.002 | L8: 0.5952471 | N8: 0.002 | O8: -0.8939463
K9: 0.003 | L9: 0.6158799 | N9: 0.003 | O9: -0.926331
K10: 0.004 | L10: 0.6340503 | N10: 0.004 | O10: -0.9545233
K11: 0.005 | L11: 0.650396 | N11: 0.005 | O11: -0.9798889
K12: 0.006 | L12: 0.6660015 | N12: 0.006 | O12: -1.003903
K13: 0.007 | L13: 0.6815647 | N13: 0.007 | O13: -1.027729
K14: 0.007 | L14: 0.6971838 | N14: 0.007 | O14: -1.051555
K15: 0.008 | L15: 0.7131717 | N15: 0.008 | O15: -1.075237
K16: 0.009 | L16: 0.7294595 | N16: 0.009 | O16: -1.098819
K17: 0.01 | L17: 0.745692 | N17: 0.01 | O17: -1.122363
K18: 0.011 | L18: 0.7619252 | N18: 0.011 | O18: -1.14587
K19: 0.012 | L19: 0.7780061 | N19: 0.012 | O19: -1.169524
K20: 0.012 | L20: 0.3202837 | N20: 0.012 | O20: -0.6412813
K21: 0.013 | L21: -0.0004376714 | N21: 0.013 | O21: -0.000297317
K22: 0.014 | L22: -0.0007126012 | N22: 0.014 | O22: -0.0005019215
K23: 0.015 | L23: -0.0009882882 | N23: 0.015 | O23: -0.0006326177
K24: 0.016 | L24: -0.001340052 | N24: 0.016 | O24: -0.000380516
K25: 0.017 | L25: -0.001742873 | N25: 0.017 | O25: 0.0002101873
K26: 0.017 | L26: -0.002147147 | N26: 0.017 | O26: 0.0008013107
K27: 0.018 | L27: -0.002551627 | N27: 0.018 | O27: 0.00139189
K28: 0.019 | L28: -0.002894136 | N28: 0.019 | O28: 0.001781364
K29: 0.02 | L29: -0.003139356 | N29: 0.02 | O29: 0.001894772
K30: 0.021 | L30: -0.003347284 | N30: 0.021 | O30: 0.001952198
K31: 0.022 | L31: -0.003554658 | N31: 0.022 | O31: 0.002009586
K32: 0.022 | L32: -0.003762073 | N32: 0.022 | O32: 0.002049043
K33: 0.023 | L33: -0.004149082 | N33: 0.023 | O33: 0.002042172
K34: 0.024 | L34: -0.004666389 | N34: 0.024 | O34: 0.00200696
K35: 0.025 | L35: -0.00519385 | N35: 0.025 | O35: 0.001971724
K36: 0.026 | L36: -0.005722103 | N36: 0.026 | O36: 0.00193642
K37: 0.027 | L37: -0.00625477 | N37: 0.027 | O37: 0.001628549
K38: 0.027 | L38: -0.006590103 | N38: 0.027 | O38: 0.001007501
K39: 0.028 | L39: -0.006756753 | N39: 0.028 | O39: 0.0003480506
K40: 0.029 | L40: -0.006893272 | N40: 0.029 | O40: -0.0003128545
K41: 0.03 | L41: -0.007030011 | N41: 0.03 | O41: -0.0009127894
K42: 0.031 | L42: -0.006895596 | N42: 0.031 | O42: -0.001404236
K43: 0.032 | L43: -0.006610774 | N43: 0.032 | O43: -0.001841446
K44: 0.032 | L44: -0.006326634 | N44: 0.032 | O44: -0.0022777
K45: 0.033 | L45: -0.006042918 | N45: 0.033 | O45: -0.002715528
K46: 0.034 | L46: -0.005747668 | N46: 0.034 | O46: -0.003001142
K47: 0.035 | L47: -0.005379012 | N47: 0.035 | O47: -0.003133791
K48: 0.036 | L48: -0.004977526 | N48: 0.036 | O48: -0.003280994
K49: 0.037 | L49: -0.004577189 | N49: 0.037 | O49: -0.003429423
K50: 0.037 | L50: -0.004227926 | N50: 0.037 | O50: -0.003583726
K51: 0.038 | L51: -0.004456808 | N51: 0.038 | O51: -0.003846138
K52: 0.039 | L52: -0.005015953 | N52: 0.039 | O52: -0.004220287
K53: 0.04 | L53: -0.005602564 | N53: 0.04 | O53: -0.004594787
K54: 0.041 | L54: -0.006190224 | N54: 0.041 | O54: -0.004969045
K55: 0.042 | L55: -0.006634502 | N55: 0.042 | O55: -0.005131352
K56: 0.042 | L56: -0.006795937 | N56: 0.042 | O56: -0.004906153
K57: 0.043 | L57: -0.006859137 | N57: 0.043 | O57: -0.004508025
K58: 0.044 | L58: -0.006922478 | N58: 0.044 | O58: -0.004109783
K59: 0.045 | L59: -0.006985869 | N59: 0.045 | O59: -0.003722704
K60: 0.046 | L60: -0.006916069 | N60: 0.046 | O60: -0.003504675
K61: 0.047 | L61: -0.00669905 | N61: 0.047 | O61: -0.00347028
K62: 0.047 | L62: -0.006444521 | N62: 0.047 | O62: -0.003463688
K63: 0.048 | L63: -0.006200118 | N63: 0.048 | O63: -0.003457114
K64: 0.049 | L64: -0.006056973 | N64: 0.049 | O64: -0.003507785
K65: 0.05 | L65: -0.00631453 | N65: 0.05 | O65: -0.00377053
K66: 0.051 | L66: -0.006934695 | N66: 0.051 | O66: -0.00418262
K67: 0.052 | L67: -0.007587994 | N67: 0.052 | O67: -0.004593641
K68: 0.052 | L68: -0.008241269 | N68: 0.052 | O68: -0.004979784
K69: 0.053 | L69: -0.008562044 | N69: 0.053 | O69: -0.005209314
K70: 0.054 | L70: -0.008122005 | N70: 0.054 | O70: -0.005258032
K71: 0.055 | L71: -0.007250854 | N71: 0.055 | O71: -0.005241162
K72: 0.056 | L72: -0.006379804 | N72: 0.056 | O72: -0.005223313
K73: 0.057 | L73: -0.005507007 | N73: 0.057 | O73: -0.005300173
K74: 0.057 | L74: -0.002103276 | N74: 0.057 | O74: -0.005848452
K75: 0.058 | L75: 0.00427958 | N75: 0.058 | O75: -0.006967172
K76: 0.059 | L76: 0.01069154 | N76: 0.059 | O76: -0.008088271
K77: 0.06 | L77: 0.01709888 | N77: 0.06 | O77: -0.009144507
K78: 0.061 | L78: 0.02486064 | N78: 0.061 | O78: -0.009327471
K79: 0.062 | L79: 0.03563831 | N79: 0.062 | O79: -0.007624118
K80: 0.062 | L80: 0.04802658 | N80: 0.062 | O80: -0.005837683
K81: 0.063 | L81: 0.06045397 | N81: 0.063 | O81: -0.004055235
K82: 0.064 | L82: 0.07289628 | N82: 0.064 | O82: -0.00201575
K83: 0.065 | L83: 0.08472589 | N83: 0.065 | O83: 0.001079058
K84: 0.066 | L84: 0.09591348 | N84: 0.066 | O84: 0.005207321
K85: 0.067 | L85: 0.1071334 | N85: 0.067 | O85: 0.009343354
K86: 0.067 | L86: 0.1183335 | N86: 0.067 | O86: 0.01347275
K87: 0.068 | L87: 0.1292808 | N87: 0.068 | O87: 0.01764595
K88: 0.069 | L88: 0.1395677 | N88: 0.069 | O88: 0.02192718
K89: 0.07 | L89: 0.1496029 | N89: 0.07 | O89: 0.02620722
K90: 0.071 | L90: 0.1597165 | N90: 0.071 | O90: 0.03047136
K91: 0.072 | L91: 0.1694677 | N91: 0.072 | O91: 0.03465488
K92: 0.072 | L92: 0.1774863 | N92: 0.072 | O92: 0.03847404
K93: 0.073 | L93: 0.1838313 | N93: 0.073 | O93: 0.04208684
K94: 0.074 | L94: 0.1901544 | N94: 0.074 | O94: 0.04568361
K95: 0.075 | L95: 0.1964676 | N95: 0.075 | O95: 0.04928928
K96: 0.076 | L96: 0.202044 | N96: 0.076 | O96: 0.0525686
K97: 0.077 | L97: 0.2065447 | N97: 0.077 | O97: 0.05496966
K98: 0.077 | L98: 0.2108202 | N98: 0.077 | O98: 0.05744836
K99: 0.078 | L99: 0.2150881 | N99: 0.078 | O99: 0.05990538
K100: 0.079 | L100: 0.2199332 | N100: 0.079 | O100: 0.0623256
K101: 0.08 | L101: 0.2266267 | N101: 0.08 | O101: 0.06455237
K102: 0.081 | L102: 0.2346983 | N102: 0.081 | O102: 0.06665277
K103: 0.082 | L103: 0.2427801 | N103: 0.082 | O103: 0.06875109
K104: 0.082 | L104: 0.2508945 | N104: 0.082 | O104: 0.07085918
K105: 0.083 | L105: 0.2569897 | N105: 0.083 | O105: 0.07290196
K106: 0.084 | L106: 0.260168 | N106: 0.084 | O106: 0.07473145
K107: 0.085 | L107: 0.2627842 | N107: 0.085 | O107: 0.07649865
K108: 0.086 | L108: 0.2653974 | N108: 0.086 | O108: 0.07826246
K109: 0.087 | L109: 0.2678974 | N109: 0.087 | O109: 0.07998993
K110: 0.087 | L110: 0.2699714 | N110: 0.087 | O110: 0.08156528
K111: 0.088 | L111: 0.2717022 | N111: 0.088 | O111: 0.08310569
K112: 0.089 | L112: 0.2734346 | N112: 0.089 | O112: 0.08463769
K113: 0.09 | L113: 0.2751673 | N113: 0.09 | O113: 0.08615255
K114: 0.091 | L114: 0.2769094 | N114: 0.091 | O114: 0.08742906
K115: 0.092 | L115: 0.2787303 | N115: 0.092 | O115: 0.08822703
K116: 0.092 | L116: 0.2806367 | N116: 0.092 | O116: 0.08905029
K117: 0.093 | L117: 0.282555 | N117: 0.093 | O117: 0.08986831
K118: 0.094 | L118: 0.2844729 | N118: 0.094 | O118: 0.0907612
K119: 0.095 | L119: 0.2861634 | N119: 0.095 | O119: 0.09187734
K120: 0.096 | L120: 0.2873262 | N120: 0.096 | O120: 0.09305494
K121: 0.097 | L121: 0.2881997 | N121: 0.097 | O121: 0.09422751
K122: 0.097 | L122: 0.2890743 | N122: 0.097 | O122: 0.09535644
K123: 0.098 | L123: 0.2898902 | N123: 0.098 | O123: 0.09627028
K124: 0.099 | L124: 0.2882076 | N124: 0.099 | O124: 0.09691038
K125: 0.1 | L125: 0.283407 | N125: 0.1 | O125: 0.09765228
K126: 0.101 | L126: 0.2785942 | N126: 0.101 | O126: 0.09839343
K127: 0.101 | L127: 0.2738638 | N127: 0.102 | O127: 0.09902114
K128: 0.102 | L128: 0.2680016 | N128: 0.102 | O128: 0.09875324
K129: 0.103 | L129: 0.2590271 | N129: 0.103 | O129: 0.09684367
K130: 0.104 | L130: 0.2478668 | N130: 0.104 | O130: 0.09492426
K131: 0.105 | L131: 0.2366937 | N131: 0.105 | O131: 0.0930107
K132: 0.106 | L132: 0.225348 | N132: 0.106 | O132: 0.09089532
K133: 0.106 | L133: 0.2139972 | N133: 0.106 | O133: 0.0878846
K134: 0.107 | L134: 0.203104 | N134: 0.107 | O134: 0.08387211
K135: 0.108 | L135: 0.1922175 | N135: 0.108 | O135: 0.0797211
K136: 0.109 | L136: 0.1813511 | N136: 0.109 | O136: 0.07556132
K137: 0.11 | L137: 0.1709566 | N137: 0.11 | O137: 0.07144722
K138: 0.111 | L138: 0.161589 | N138: 0.111 | O138: 0.06759767
K139: 0.111 | L139: 0.1525899 | N139: 0.111 | O139: 0.06374711
K140: 0.112 | L140: 0.1435902 | N140: 0.112 | O140: 0.05989917
K141: 0.113 | L141: 0.1347601 | N141: 0.113 | O141: 0.0560945
K142: 0.114 | L142: 0.1271902 | N142: 0.114 | O142: 0.05249783
K143: 0.115 | L143: 0.1212042 | N143: 0.115 | O143: 0.04903335
K144: 0.116 | L144: 0.1152178 | N144: 0.116 | O144: 0.04555058
K145: 0.116 | L145: 0.1092313 | N145: 0.116 | O145: 0.04207973
K146: 0.117 | L146: 0.1038976 | N146: 0.117 | O146: 0.03888626
K147: 0.118 | L147: 0.09978507 | N147: 0.118 | O147: 0.0369023
K148: 0.119 | L148: 0.09593867 | N148: 0.119 | O148: 0.0349139
K149: 0.12 | L149: 0.09209294 | N149: 0.12 | O149: 0.03292133
K150: 0.121 | L150: 0.0877536 | N150: 0.121 | O150: 0.03097358
K151: 0.121 | L151: 0.08191925 | N151: 0.121 | O151: 0.02922233
K152: 0.122 | L152: 0.07495612 | N152: 0.122 | O152: 0.02759112
K153: 0.123 | L153: 0.06797447 | N153: 0.123 | O153: 0.02596401
K154: 0.124 | L154: 0.06100496 | N154: 0.124 | O154: 0.02432815
K155: 0.125 | L155: 0.05561453 | N155: 0.125 | O155: 0.02267389
K156: 0.126 | L156: 0.05283064 | N156: 0.126 | O156: 0.02097756
K157: 0.126 | L157: 0.0503278 | N157: 0.126 | O157: 0.01928087
K158: 0.127 | L158: 0.04783493 | N158: 0.127 | O158: 0.01757595
K159: 0.128 | L159: 0.04547256 | N159: 0.128 | O159: 0.01592053
K160: 0.129 | L160: 0.04360079 | N160: 0.129 | O160: 0.01444809
K161: 0.13 | L161: 0.04215264 | N161: 0.13 | O161: 0.01307184
K162: 0.131 | L162: 0.04070206 | N162: 0.131 | O162: 0.01169696
K163: 0.131 | L163: 0.03924951 | N163: 0.131 | O163: 0.0103404
K164: 0.132 | L164: 0.03792682 | N164: 0.132 | O164: 0.009440436
K165: 0.133 | L165: 0.03682893 | N165: 0.133 | O165: 0.01023701
K166: 0.134 | L166: 0.03577594 | N166: 0.134 | O166: 0.0121827
K167: 0.135 | L167: 0.03471922 | N167: 0.135 | O167: 0.01413384
K168: 0.136 | L168: 0.03373549 | N168: 0.136 | O168: 0.0160095
K169: 0.136 | L169: 0.03309271 | N169: 0.136 | O169: 0.01708679
K170: 0.137 | L170: 0.03273799 | N170: 0.137 | O170: 0.01627512
K171: 0.138 | L171: 0.03238387 | N171: 0.138 | O171: 0.01529692
K172: 0.139 | L172: 0.03202994 | N172: 0.139 | O172: 0.01435775
K173: 0.14 | L173: 0.03172154 | N173: 0.14 | O173: 0.01371059
K174: 0.141 | L174: 0.03151799 | N174: 0.141 | O174: 0.01357796
K175: 0.141 | L175: 0.03137384 | N175: 0.141 | O175: 0.01350081
K176: 0.142 | L176: 0.03122955 | N176: 0.142 | O176: 0.01342365
K177: 0.143 | L177: 0.03108777 | N177: 0.143 | O177: 0.01340328
K178: 0.144 | L178: 0.03104362 | N178: 0.144 | O178: 0.01369256
K179: 0.145 | L179: 0.03109205 | N179: 0.145 | O179: 0.01453884
K180: 0.146 | L180: 0.03114054 | N180: 0.146 | O180: 0.01573983
K181: 0.146 | L181: 0.03118903 | N181: 0.146 | O181: 0.01693896
K182: 0.147 | L182: 0.0316284 | N182: 0.147 | O182: 0.0181386
K183: 0.148 | L183: 0.03290256 | N183: 0.148 | O183: 0.01933828
K184: 0.149 | L184: 0.03460773 | N184: 0.149 | O184: 0.02055494
K185: 0.15 | L185: 0.03630935 | N185: 0.15 | O185: 0.02177624
K186: 0.151 | L186: 0.0380749 | N186: 0.151 | O186: 0.02299662
K187: 0.151 | L187: 0.04013055 | N187: 0.151 | O187: 0.02425444
K188: 0.152 | L188: 0.04234479 | N188: 0.152 | O188: 0.02567975
K189: 0.153 | L189: 0.04452194 | N189: 0.153 | O189: 0.02729143
K190: 0.154 | L190: 0.04670078 | N190: 0.154 | O190: 0.02890632
K191: 0.155 | L191: 0.04901081 | N191: 0.155 | O191: 0.0305352
K192: 0.156 | L192: 0.05145111 | N192: 0.156 | O192: 0.03252205
K193: 0.156 | L193: 0.05394892 | N193: 0.156 | O193: 0.03526862
K194: 0.157 | L194: 0.05657025 | N194: 0.157 | O194: 0.03818581
K195: 0.158 | L195: 0.05937725 | N195: 0.158 | O195: 0.04109271
K196: 0.159 | L196: 0.06234768 | N196: 0.159 | O196: 0.04396749
K197: 0.16 | L197: 0.06553622 | N197: 0.16 | O197: 0.04682608
K198: 0.161 | L198: 0.06873933 | N198: 0.161 | O198: 0.04981525
K199: 0.161 | L199: 0.07194469 | N199: 0.161 | O199: 0.05288873
K200: 0.162 | L200: 0.07530279 | N200: 0.162 | O200: 0.0562147
... 4300 more rows

Sheet Suppl Fig1g
A1: DNMT1:H3Ub2:DNAmCG/fCG
A2: Chrom.1 | C2: Chrom.1
A3: UV 1_280 | C3: UV 2_260
A4: ml | B4: mAU | C4: ml | D4: mAU
A5: 0 | B5: 0.5309057 | C5: 0 | D5: 2.979295
A6: 0.001 | B6: 7.732831 | C6: 0.004 | D6: 38.47734
A7: 0.002 | B7: 8.330645 | C7: 0.008 | D7: 41.77374
A8: 0.002 | B8: 8.789053 | C8: 0.012 | D8: 44.4316
A9: 0.003 | B9: 9.170781 | C9: 0.017 | D9: 44.04913
A10: 0.004 | B10: 9.511308 | C10: 0.021 | D10: 39.73654
A11: 0.005 | B11: 9.818433 | C11: 0.025 | D11: 35.41913
A12: 0.006 | B12: 10.11092 | C12: 0.029 | D12: 32.2499
A13: 0.007 | B13: 10.40388 | C13: 0.033 | D13: 31.53744
A14: 0.007 | B14: 10.69684 | C14: 0.037 | D14: 31.53934
A15: 0.008 | B15: 10.98953 | C15: 0.042 | D15: 31.54064
A16: 0.009 | B16: 11.28301 | C16: 0.046 | D16: 31.53903
A17: 0.01 | B17: 11.57597 | C17: 0.05 | D17: 31.53502
A18: 0.011 | B18: 11.86795 | C18: 0.054 | D18: 31.53026
A19: 0.012 | B19: 11.97676 | C19: 0.058 | D19: 31.52412
A20: 0.012 | B20: 12.19098 | C20: 0.062 | D20: 31.51503
A21: 0.013 | B21: 12.48258 | C21: 0.067 | D21: 31.50825
A22: 0.014 | B22: 12.7753 | C22: 0.071 | D22: 31.50389
A23: 0.015 | B23: 13.06917 | C23: 0.075 | D23: 31.50792
A24: 0.016 | B24: 13.36376 | C24: 0.079 | D24: 31.54378
A25: 0.017 | B25: 13.65585 | C25: 0.083 | D25: 31.6443
A26: 0.017 | B26: 13.94794 | C26: 0.087 | D26: 31.81258
A27: 0.018 | B27: 14.24166 | C27: 0.092 | D27: 32.03437
A28: 0.019 | B28: 14.53566 | C28: 0.096 | D28: 32.31128
A29: 0.02 | B29: 14.61164 | C29: 0.1 | D29: 32.62819
A30: 0.021 | B30: 14.61171 | C30: 0.104 | D30: 32.97776
A31: 0.022 | B31: 14.61188 | C31: 0.108 | D31: 33.35526
A32: 0.022 | B32: 14.61205 | C32: 0.112 | D32: 33.75863
A33: 0.023 | B33: 14.61217 | C33: 0.116 | D33: 34.17455
A34: 0.024 | B34: 14.61206 | C34: 0.121 | D34: 34.56952
A35: 0.025 | B35: 14.61188 | C35: 0.125 | D35: 34.89141
A36: 0.026 | B36: 14.61171 | C36: 0.129 | D36: 35.1216
A37: 0.027 | B37: 14.61153 | C37: 0.133 | D37: 35.26723
A38: 0.027 | B38: 14.61093 | C38: 0.137 | D38: 35.33005
A39: 0.028 | B39: 14.61008 | C39: 0.141 | D39: 35.32143
A40: 0.029 | B40: 14.6092 | C40: 0.146 | D40: 35.25304
A41: 0.03 | B41: 14.60832 | C41: 0.15 | D41: 35.12758
A42: 0.031 | B42: 14.60751 | C42: 0.154 | D42: 34.95216
A43: 0.032 | B43: 14.60724 | C43: 0.158 | D43: 34.73223
A44: 0.032 | B44: 14.60707 | C44: 0.162 | D44: 34.48163
A45: 0.033 | B45: 14.60689 | C45: 0.166 | D45: 34.21872
A46: 0.034 | B46: 14.60672 | C46: 0.171 | D46: 33.95925
A47: 0.035 | B47: 14.60626 | C47: 0.175 | D47: 33.71065
A48: 0.036 | B48: 14.60569 | C48: 0.179 | D48: 33.47783
A49: 0.037 | B49: 14.6051 | C49: 0.183 | D49: 33.26936
A50: 0.037 | B50: 14.6045 | C50: 0.187 | D50: 33.07706
A51: 0.038 | B51: 14.60391 | C51: 0.191 | D51: 32.89839
A52: 0.039 | B52: 14.60343 | C52: 0.196 | D52: 32.73278
A53: 0.04 | B53: 14.60301 | C53: 0.2 | D53: 32.57874
A54: 0.041 | B54: 14.60259 | C54: 0.204 | D54: 32.42524
A55: 0.042 | B55: 14.60216 | C55: 0.208 | D55: 32.28049
A56: 0.042 | B56: 14.60186 | C56: 0.212 | D56: 32.13976
A57: 0.043 | B57: 14.60166 | C57: 0.216 | D57: 32.00784
A58: 0.044 | B58: 14.60148 | C58: 0.22 | D58: 31.88061
A59: 0.045 | B59: 14.60129 | C59: 0.225 | D59: 31.75517
A60: 0.046 | B60: 14.60102 | C60: 0.229 | D60: 31.63448
A61: 0.047 | B61: 14.6005 | C61: 0.233 | D61: 31.51562
A62: 0.047 | B62: 14.59981 | C62: 0.237 | D62: 31.40074
A63: 0.048 | B63: 14.59913 | C63: 0.241 | D63: 31.29306
A64: 0.049 | B64: 14.59845 | C64: 0.245 | D64: 31.19442
A65: 0.05 | B65: 14.59775 | C65: 0.25 | D65: 31.09957
A66: 0.051 | B66: 14.59704 | C66: 0.254 | D66: 31.01499
A67: 0.052 | B67: 14.59631 | C67: 0.258 | D67: 30.93251
A68: 0.052 | B68: 14.59558 | C68: 0.262 | D68: 30.85438
A69: 0.053 | B69: 14.59488 | C69: 0.266 | D69: 30.77471
A70: 0.054 | B70: 14.59424 | C70: 0.27 | D70: 30.70067
A71: 0.055 | B71: 14.59361 | C71: 0.275 | D71: 30.6337
A72: 0.056 | B72: 14.59297 | C72: 0.279 | D72: 30.56819
A73: 0.057 | B73: 14.59232 | C73: 0.283 | D73: 30.50772
A74: 0.057 | B74: 14.5917 | C74: 0.287 | D74: 30.45029
A75: 0.058 | B75: 14.59127 | C75: 0.291 | D75: 30.40129
A76: 0.059 | B76: 14.59099 | C76: 0.295 | D76: 30.355
A77: 0.06 | B77: 14.5907 | C77: 0.3 | D77: 30.30825
A78: 0.061 | B78: 14.59042 | C78: 0.304 | D78: 30.26675
A79: 0.062 | B79: 14.58949 | C79: 0.308 | D79: 30.22886
A80: 0.062 | B80: 14.58776 | C80: 0.312 | D80: 30.19316
A81: 0.063 | B81: 14.58579 | C81: 0.316 | D81: 30.1611
A82: 0.064 | B82: 14.58381 | C82: 0.32 | D82: 30.13406
A83: 0.065 | B83: 14.58191 | C83: 0.324 | D83: 30.10865
A84: 0.066 | B84: 14.58028 | C84: 0.329 | D84: 30.08245
A85: 0.067 | B85: 14.57885 | C85: 0.333 | D85: 30.05474
A86: 0.067 | B86: 14.57742 | C86: 0.337 | D86: 30.03045
A87: 0.068 | B87: 14.57599 | C87: 0.341 | D87: 30.01036
A88: 0.069 | B88: 14.58039 | C88: 0.345 | D88: 29.98928
A89: 0.07 | B89: 14.59289 | C89: 0.349 | D89: 29.9692
A90: 0.071 | B90: 14.60793 | C90: 0.354 | D90: 29.94399
A91: 0.072 | B91: 14.62294 | C91: 0.358 | D91: 29.91191
A92: 0.072 | B92: 14.6379 | C92: 0.362 | D92: 29.88274
A93: 0.073 | B93: 14.67072 | C93: 0.366 | D93: 29.85345
A94: 0.074 | B94: 14.72385 | C94: 0.37 | D94: 29.82327
A95: 0.075 | B95: 14.77739 | C95: 0.374 | D95: 29.79639
A96: 0.076 | B96: 14.83088 | C96: 0.379 | D96: 29.77513
A97: 0.077 | B97: 14.89342 | C97: 0.383 | D97: 29.76352
A98: 0.077 | B98: 14.97542 | C98: 0.387 | D98: 29.75478
A99: 0.078 | B99: 15.06822 | C99: 0.391 | D99: 29.74606
A100: 0.079 | B100: 15.16096 | C100: 0.395 | D100: 29.74386
A101: 0.08 | B101: 15.25365 | C101: 0.399 | D101: 29.74873
A102: 0.081 | B102: 15.35808 | C102: 0.404 | D102: 29.75183
A103: 0.082 | B103: 15.47959 | C103: 0.408 | D103: 29.75647
A104: 0.082 | B104: 15.60419 | C104: 0.412 | D104: 29.76438
A105: 0.083 | B105: 15.72896 | C105: 0.416 | D105: 29.77379
A106: 0.084 | B106: 15.85698 | C106: 0.42 | D106: 29.77902
A107: 0.085 | B107: 15.99671 | C107: 0.424 | D107: 29.77055
A108: 0.086 | B108: 16.14631 | C108: 0.428 | D108: 29.75936
A109: 0.087 | B109: 16.29597 | C109: 0.433 | D109: 29.74218
A110: 0.087 | B110: 16.44553 | C110: 0.437 | D110: 29.72261
A111: 0.088 | B111: 16.60564 | C111: 0.441 | D111: 29.70559
A112: 0.089 | B112: 16.77574 | C112: 0.445 | D112: 29.69036
A113: 0.09 | B113: 16.94375 | C113: 0.449 | D113: 29.67463
A114: 0.091 | B114: 17.1146 | C114: 0.453 | D114: 29.6579
A115: 0.092 | B115: 17.29187 | C115: 0.458 | D115: 29.64069
A116: 0.092 | B116: 17.47989 | C116: 0.462 | D116: 29.63222
A117: 0.093 | B117: 17.67868 | C117: 0.466 | D117: 29.62658
A118: 0.094 | B118: 17.877 | C118: 0.47 | D118: 29.6284
A119: 0.095 | B119: 18.07521 | C119: 0.474 | D119: 29.63894
A120: 0.096 | B120: 18.2792 | C120: 0.478 | D120: 29.65008
A121: 0.097 | B121: 18.49421 | C121: 0.483 | D121: 29.65933
A122: 0.097 | B122: 18.71148 | C122: 0.487 | D122: 29.66944
A123: 0.098 | B123: 18.92854 | C123: 0.491 | D123: 29.67962
A124: 0.099 | B124: 19.1481 | C124: 0.495 | D124: 29.6874
A125: 0.1 | B125: 19.37485 | C125: 0.499 | D125: 29.68683
A126: 0.101 | B126: 19.60912 | C126: 0.503 | D126: 29.67621
A127: 0.101 | B127: 19.84309 | C127: 0.508 | D127: 29.66746
A128: 0.102 | B128: 20.07748 | C128: 0.512 | D128: 29.65102
A129: 0.103 | B129: 20.31479 | C129: 0.516 | D129: 29.63527
A130: 0.104 | B130: 20.55951 | C130: 0.52 | D130: 29.62168
A131: 0.105 | B131: 20.80683 | C131: 0.524 | D131: 29.60672
A132: 0.106 | B132: 21.0524 | C132: 0.528 | D132: 29.59144
A133: 0.106 | B133: 21.29826 | C133: 0.532 | D133: 29.57823
A134: 0.107 | B134: 21.54983 | C134: 0.537 | D134: 29.57036
A135: 0.108 | B135: 21.8104 | C135: 0.541 | D135: 29.57037
A136: 0.109 | B136: 22.07037 | C136: 0.545 | D136: 29.56993
A137: 0.11 | B137: 22.32944 | C137: 0.549 | D137: 29.56585
A138: 0.111 | B138: 22.58679 | C138: 0.553 | D138: 29.56597
A139: 0.111 | B139: 22.84268 | C139: 0.557 | D139: 29.56593
A140: 0.112 | B140: 23.09769 | C140: 0.562 | D140: 29.56546
A141: 0.113 | B141: 23.35223 | C141: 0.566 | D141: 29.56498
A142: 0.114 | B142: 23.60701 | C142: 0.57 | D142: 29.56301
A143: 0.115 | B143: 23.84887 | C143: 0.574 | D143: 29.56243
A144: 0.116 | B144: 24.07079 | C144: 0.578 | D144: 29.56015
A145: 0.116 | B145: 24.29163 | C145: 0.582 | D145: 29.56365
A146: 0.117 | B146: 24.51235 | C146: 0.587 | D146: 29.57355
A147: 0.118 | B147: 24.72382 | C147: 0.591 | D147: 29.58438
A148: 0.119 | B148: 24.91362 | C148: 0.595 | D148: 29.59706
A149: 0.12 | B149: 25.09214 | C149: 0.599 | D149: 29.60792
A150: 0.121 | B150: 25.27005 | C150: 0.603 | D150: 29.61808
A151: 0.121 | B151: 25.44675 | C151: 0.607 | D151: 29.63102
A152: 0.122 | B152: 25.60794 | C152: 0.612 | D152: 29.64157
A153: 0.123 | B153: 25.74726 | C153: 0.616 | D153: 29.65003
A154: 0.124 | B154: 25.8826 | C154: 0.62 | D154: 29.65768
A155: 0.125 | B155: 26.01745 | C155: 0.624 | D155: 29.66493
A156: 0.126 | B156: 26.14797 | C156: 0.628 | D156: 29.66479
A157: 0.126 | B157: 26.26002 | C157: 0.632 | D157: 29.66584
A158: 0.127 | B158: 26.35684 | C158: 0.636 | D158: 29.663
A159: 0.128 | B159: 26.45379 | C159: 0.641 | D159: 29.65938
A160: 0.129 | B160: 26.55112 | C160: 0.645 | D160: 29.65667
A161: 0.13 | B161: 26.63333 | C161: 0.649 | D161: 29.64734
A162: 0.131 | B162: 26.69532 | C162: 0.653 | D162: 29.639
A163: 0.131 | B163: 26.75381 | C163: 0.657 | D163: 29.62998
A164: 0.132 | B164: 26.81203 | C164: 0.661 | D164: 29.62012
A165: 0.133 | B165: 26.8657 | C165: 0.666 | D165: 29.60566
A166: 0.134 | B166: 26.9014 | C166: 0.67 | D166: 29.59392
A167: 0.135 | B167: 26.92285 | C167: 0.674 | D167: 29.58017
A168: 0.136 | B168: 26.94422 | C168: 0.678 | D168: 29.57186
A169: 0.136 | B169: 26.96567 | C169: 0.682 | D169: 29.56229
A170: 0.137 | B170: 26.97611 | C170: 0.686 | D170: 29.5536
A171: 0.138 | B171: 26.96955 | C171: 0.691 | D171: 29.55298
A172: 0.139 | B172: 26.95743 | C172: 0.695 | D172: 29.55908
A173: 0.14 | B173: 26.94531 | C173: 0.699 | D173: 29.56723
A174: 0.141 | B174: 26.93014 | C174: 0.703 | D174: 29.57955
A175: 0.141 | B175: 26.90067 | C175: 0.707 | D175: 29.58952
A176: 0.142 | B176: 26.86122 | C176: 0.711 | D176: 29.60238
A177: 0.143 | B177: 26.82411 | C177: 0.716 | D177: 29.61978
A178: 0.144 | B178: 26.78801 | C178: 0.72 | D178: 29.6284
A179: 0.145 | B179: 26.74573 | C179: 0.724 | D179: 29.64325
A180: 0.146 | B180: 26.68662 | C180: 0.728 | D180: 29.65725
A181: 0.146 | B181: 26.62042 | C181: 0.732 | D181: 29.66588
A182: 0.147 | B182: 26.55407 | C182: 0.736 | D182: 29.66516
A183: 0.148 | B183: 26.48765 | C183: 0.741 | D183: 29.66008
A184: 0.149 | B184: 26.41585 | C184: 0.745 | D184: 29.64808
A185: 0.15 | B185: 26.32664 | C185: 0.749 | D185: 29.63605
A186: 0.151 | B186: 26.23476 | C186: 0.753 | D186: 29.62213
A187: 0.151 | B187: 26.14271 | C187: 0.757 | D187: 29.60793
A188: 0.152 | B188: 26.04893 | C188: 0.761 | D188: 29.59877
A189: 0.153 | B189: 25.94596 | C189: 0.765 | D189: 29.58679
A190: 0.154 | B190: 25.83107 | C190: 0.77 | D190: 29.57551
A191: 0.155 | B191: 25.71653 | C191: 0.774 | D191: 29.56841
A192: 0.156 | B192: 25.60155 | C192: 0.778 | D192: 29.56872
A193: 0.156 | B193: 25.48397 | C193: 0.782 | D193: 29.57068
A194: 0.157 | B194: 25.35898 | C194: 0.786 | D194: 29.57759
A195: 0.158 | B195: 25.22906 | C195: 0.79 | D195: 29.59036
A196: 0.159 | B196: 25.0997 | C196: 0.795 | D196: 29.60631
A197: 0.16 | B197: 24.97109 | C197: 0.799 | D197: 29.62168
A198: 0.161 | B198: 24.84253 | C198: 0.803 | D198: 29.63498
A199: 0.161 | B199: 24.70765 | C199: 0.807 | D199: 29.65136
A200: 0.162 | B200: 24.57201 | C200: 0.811 | D200: 29.66217
... 28679 more rows

Sheet Suppl Fig1h

Sheet Suppl Fig1i

Sheet Suppl Fig5b
A1: DNMT1:H3Ub2 | N1: apo-DNMT1
A2: run1.pdb Dro: | B2: 0.075 Ra:1.800 | D2: RGT:41.05 | E2: Vol:185934. Chi^2: 0.843 | N2: q | O2: I(0) | P2: LNI(0) | R2: fit | S2: Lnfit
A3: q | B3: I(0) | C3: LNI(0) | E3: fit | F3: Lnfit | N3: 0.00E+00 | O3: 0.00E+00 | P3: =LN(O3) ->  | Q3: 0.00E+00 | R3: 9.73E-02 | S3: =LN(R3) -> -2.330264662
A4: 0.00E+00 | B4: 0.00E+00 | C4: =LN(B4) ->  | D4: 0.00E+00 | E4: 1.03E-01 | F4: =LN(E4) -> -2.273958764 | N4: 2.00E-03 | O4: 0.00E+00 | P4: =LN(O4) ->  | Q4: 0.00E+00 | R4: 9.71E-02 | S4: =LN(R4) -> -2.332218868
A5: 2.00E-03 | B5: 0.00E+00 | C5: =LN(B5) ->  | D5: 0.00E+00 | E5: 1.03E-01 | F5: =LN(E5) -> -2.2763035 | N5: 4.00E-03 | O5: 0.00E+00 | Q5: 0.00E+00 | R5: 9.65E-02 | S5: -2.338008146
A6: 4.00E-03 | B6: 0.00E+00 | D6: 0.00E+00 | E6: 1.02E-01 | F6: -2.283076627 | N6: 6.00E-03 | O6: 0.00E+00 | Q6: 0.00E+00 | R6: 9.56E-02 | S6: -2.347635808
A7: 5.02E-03 | B7: 1.13E-01 | C7: -2.18E+00 | D7: 2.43E-02 | E7: 1.01E-01 | F7: -2.288228642 | N7: 6.05E-03 | O7: 9.97E-02 | P7: -2.31E+00 | Q7: 1.16E-02 | R7: 9.56E-02 | S7: -2.347953867
A8: 5.19E-03 | B8: 1.12E-01 | C8: -2.19E+00 | D8: 2.22E-02 | E8: 1.01E-01 | F8: -2.289214874 | N8: 6.23E-03 | O8: 9.86E-02 | P8: -2.32E+00 | Q8: 1.07E-02 | R8: 9.55E-02 | S8: -2.348975688
A9: 5.36E-03 | B9: 1.10E-01 | C9: -2.20E+00 | D9: 1.74E-02 | E9: 1.01E-01 | F9: -2.290241588 | N9: 6.40E-03 | O9: 9.94E-02 | P9: -2.31E+00 | Q9: 1.03E-02 | R9: 9.54E-02 | S9: -2.350027915
A10: 5.54E-03 | B10: 1.11E-01 | C10: -2.20E+00 | D10: 1.41E-02 | E10: 1.01E-01 | F10: -2.291299021 | N10: 6.57E-03 | O10: 9.97E-02 | P10: -2.31E+00 | Q10: 9.65E-03 | R10: 9.53E-02 | S10: -2.351107493
A11: 5.71E-03 | B11: 1.10E-01 | C11: -2.21E+00 | D11: 1.19E-02 | E11: 1.01E-01 | F11: -2.292387268 | N11: 6.75E-03 | O11: 9.75E-02 | P11: -2.33E+00 | Q11: 8.49E-03 | R11: 9.52E-02 | S11: -2.352216611
A12: 5.88E-03 | B12: 1.12E-01 | C12: -2.19E+00 | D12: 1.07E-02 | E12: 1.01E-01 | F12: -2.293516339 | N12: 6.92E-03 | O12: 9.73E-02 | P12: -2.33E+00 | Q12: 8.32E-03 | R12: 9.50E-02 | S12: -2.353353262
A13: 6.05E-03 | B13: 1.07E-01 | C13: -2.23E+00 | D13: 9.66E-03 | E13: 1.01E-01 | F13: -2.294666528 | N13: 7.09E-03 | O13: 9.68E-02 | P13: -2.34E+00 | Q13: 7.67E-03 | R13: 9.49E-02 | S13: -2.354519646
A14: 6.23E-03 | B14: 1.07E-01 | C14: -2.24E+00 | D14: 8.73E-03 | E14: 1.01E-01 | F14: -2.295857772 | N14: 7.27E-03 | O14: 9.63E-02 | P14: -2.34E+00 | Q14: 7.28E-03 | R14: 9.48E-02 | S14: -2.355714809
A15: 6.40E-03 | B15: 1.07E-01 | C15: -2.23E+00 | D15: 8.28E-03 | E15: 1.01E-01 | F15: -2.297090218 | N15: 7.44E-03 | O15: 9.66E-02 | P15: -2.34E+00 | Q15: 6.77E-03 | R15: 9.47E-02 | S15: -2.356938855
A16: 6.57E-03 | B16: 1.06E-01 | C16: -2.24E+00 | D16: 7.70E-03 | E16: 1.00E-01 | F16: -2.298344099 | N16: 7.61E-03 | O16: 9.59E-02 | P16: -2.34E+00 | Q16: 6.58E-03 | R16: 9.46E-02 | S16: -2.358191888
A17: 6.75E-03 | B17: 1.08E-01 | C17: -2.23E+00 | D17: 6.75E-03 | E17: 1.00E-01 | F17: -2.299629465 | N17: 7.78E-03 | O17: 9.74E-02 | P17: -2.33E+00 | Q17: 6.34E-03 | R17: 9.45E-02 | S17: -2.359472955
A18: 6.92E-03 | B18: 1.08E-01 | C18: -2.23E+00 | D18: 6.62E-03 | E18: 1.00E-01 | F18: -2.30095642 | N18: 7.96E-03 | O18: 9.75E-02 | P18: -2.33E+00 | Q18: 5.86E-03 | R18: 9.43E-02 | S18: -2.360783224
A19: 7.09E-03 | B19: 1.06E-01 | C19: -2.24E+00 | D19: 6.25E-03 | E19: 1.00E-01 | F19: -2.302315129 | N19: 8.13E-03 | O19: 9.71E-02 | P19: -2.33E+00 | Q19: 5.41E-03 | R19: 9.42E-02 | S19: -2.362122806
A20: 7.27E-03 | B20: 1.07E-01 | C20: -2.24E+00 | D20: 5.81E-03 | E20: 9.99E-02 | F20: -2.303706722 | N20: 8.30E-03 | O20: 9.65E-02 | P20: -2.34E+00 | Q20: 5.12E-03 | R20: 9.41E-02 | S20: -2.363490754
A21: 7.44E-03 | B21: 1.05E-01 | C21: -2.25E+00 | D21: 5.60E-03 | E21: 9.97E-02 | F21: -2.305131332 | N21: 8.48E-03 | O21: 9.59E-02 | P21: -2.34E+00 | Q21: 4.85E-03 | R21: 9.40E-02 | S21: -2.364887183
A22: 7.61E-03 | B22: 1.05E-01 | C22: -2.25E+00 | D22: 5.44E-03 | E22: 9.96E-02 | F22: -2.306589098 | N22: 8.65E-03 | O22: 9.70E-02 | P22: -2.33E+00 | Q22: 4.57E-03 | R22: 9.38E-02 | S22: -2.366313276
A23: 7.78E-03 | B23: 1.05E-01 | C23: -2.26E+00 | D23: 5.05E-03 | E23: 9.95E-02 | F23: -2.308080163 | N23: 8.82E-03 | O23: 9.64E-02 | P23: -2.34E+00 | Q23: 4.38E-03 | R23: 9.37E-02 | S23: -2.367767021
A24: 7.96E-03 | B24: 1.05E-01 | C24: -2.25E+00 | D24: 4.63E-03 | E24: 9.93E-02 | F24: -2.309604673 | N24: 9.00E-03 | O24: 9.65E-02 | P24: -2.34E+00 | Q24: 4.06E-03 | R24: 9.36E-02 | S24: -2.369250675
A25: 8.13E-03 | B25: 1.06E-01 | C25: -2.25E+00 | D25: 4.42E-03 | E25: 9.91E-02 | F25: -2.311162776 | N25: 9.17E-03 | O25: 9.65E-02 | P25: -2.34E+00 | Q25: 3.93E-03 | R25: 9.34E-02 | S25: -2.370762226
A26: 8.30E-03 | B26: 1.05E-01 | C26: -2.26E+00 | D26: 4.17E-03 | E26: 9.90E-02 | F26: -2.312753618 | N26: 9.34E-03 | O26: 9.62E-02 | P26: -2.34E+00 | Q26: 3.78E-03 | R26: 9.33E-02 | S26: -2.37230287
A27: 8.48E-03 | B27: 1.04E-01 | C27: -2.26E+00 | D27: 3.88E-03 | E27: 9.88E-02 | F27: -2.314378361 | N27: 9.51E-03 | O27: 9.63E-02 | P27: -2.34E+00 | Q27: 3.63E-03 | R27: 9.31E-02 | S27: -2.373872738
A28: 8.65E-03 | B28: 1.04E-01 | C28: -2.26E+00 | D28: 3.55E-03 | E28: 9.87E-02 | F28: -2.316037168 | N28: 9.69E-03 | O28: 9.49E-02 | P28: -2.35E+00 | Q28: 3.54E-03 | R28: 9.30E-02 | S28: -2.375470889
A29: 8.82E-03 | B29: 1.05E-01 | C29: -2.25E+00 | D29: 3.47E-03 | E29: 9.85E-02 | F29: -2.317728173 | N29: 9.86E-03 | O29: 9.51E-02 | P29: -2.35E+00 | Q29: 3.58E-03 | R29: 9.28E-02 | S29: -2.377098532
A30: 9.00E-03 | B30: 1.05E-01 | C30: -2.26E+00 | D30: 3.32E-03 | E30: 9.83E-02 | F30: -2.319453569 | N30: 1.00E-02 | O30: 9.54E-02 | P30: -2.35E+00 | Q30: 3.56E-03 | R30: 9.27E-02 | S30: -2.378754727
A31: 9.17E-03 | B31: 1.04E-01 | C31: -2.27E+00 | D31: 3.22E-03 | E31: 9.82E-02 | F31: -2.321211492 | N31: 1.02E-02 | O31: 9.60E-02 | P31: -2.34E+00 | Q31: 3.51E-03 | R31: 9.25E-02 | S31: -2.380439613
A32: 9.34E-03 | B32: 1.04E-01 | C32: -2.27E+00 | D32: 3.08E-03 | E32: 9.80E-02 | F32: -2.32300415 | N32: 1.04E-02 | O32: 9.58E-02 | P32: -2.35E+00 | Q32: 3.49E-03 | R32: 9.24E-02 | S32: -2.38215333
A33: 9.51E-03 | B33: 1.04E-01 | C33: -2.27E+00 | D33: 3.03E-03 | E33: 9.78E-02 | F33: -2.324828657 | N33: 1.06E-02 | O33: 9.50E-02 | P33: -2.35E+00 | Q33: 3.48E-03 | R33: 9.22E-02 | S33: -2.383896021
A34: 9.69E-03 | B34: 1.03E-01 | C34: -2.27E+00 | D34: 2.95E-03 | E34: 9.76E-02 | F34: -2.326688254 | N34: 1.07E-02 | O34: 9.42E-02 | P34: -2.36E+00 | Q34: 3.27E-03 | R34: 9.20E-02 | S34: -2.385667834
A35: 9.86E-03 | B35: 1.03E-01 | C35: -2.27E+00 | D35: 2.96E-03 | E35: 9.74E-02 | F35: -2.328580053 | N35: 1.09E-02 | O35: 9.35E-02 | P35: -2.37E+00 | Q35: 3.31E-03 | R35: 9.19E-02 | S35: -2.387467828
A36: 1.00E-02 | B36: 1.02E-01 | C36: -2.28E+00 | D36: 2.83E-03 | E36: 9.72E-02 | F36: -2.330506287 | N36: 1.11E-02 | O36: 9.44E-02 | P36: -2.36E+00 | Q36: 3.26E-03 | R36: 9.17E-02 | S36: -2.389296151
A37: 1.02E-02 | B37: 1.02E-01 | C37: -2.28E+00 | D37: 2.85E-03 | E37: 9.71E-02 | F37: -2.332465087 | N37: 1.12E-02 | O37: 9.46E-02 | P37: -2.36E+00 | Q37: 3.15E-03 | R37: 9.15E-02 | S37: -2.391154046
A38: 1.04E-02 | B38: 1.02E-01 | C38: -2.28E+00 | D38: 2.79E-03 | E38: 9.69E-02 | F38: -2.33445767 | N38: 1.14E-02 | O38: 9.43E-02 | P38: -2.36E+00 | Q38: 3.15E-03 | R38: 9.14E-02 | S38: -2.393040576
A39: 1.06E-02 | B39: 1.03E-01 | C39: -2.28E+00 | D39: 2.83E-03 | E39: 9.67E-02 | F39: -2.336484231 | N39: 1.16E-02 | O39: 9.46E-02 | P39: -2.36E+00 | Q39: 3.15E-03 | R39: 9.12E-02 | S39: -2.394955897
A40: 1.07E-02 | B40: 1.02E-01 | C40: -2.28E+00 | D40: 2.80E-03 | E40: 9.65E-02 | F40: -2.338543932 | N40: 1.18E-02 | O40: 9.39E-02 | P40: -2.37E+00 | Q40: 3.08E-03 | R40: 9.10E-02 | S40: -2.396900168
A41: 1.09E-02 | B41: 1.02E-01 | C41: -2.28E+00 | D41: 2.75E-03 | E41: 9.63E-02 | F41: -2.340635931 | N41: 1.19E-02 | O41: 9.31E-02 | P41: -2.37E+00 | Q41: 2.97E-03 | R41: 9.08E-02 | S41: -2.39887245
A42: 1.11E-02 | B42: 1.02E-01 | C42: -2.29E+00 | D42: 2.63E-03 | E42: 9.61E-02 | F42: -2.342762504 | N42: 1.21E-02 | O42: 9.30E-02 | P42: -2.38E+00 | Q42: 2.93E-03 | R42: 9.06E-02 | S42: -2.400874005
A43: 1.12E-02 | B43: 1.01E-01 | C43: -2.29E+00 | D43: 2.56E-03 | E43: 9.59E-02 | F43: -2.344922819 | N43: 1.23E-02 | O43: 9.23E-02 | P43: -2.38E+00 | Q43: 2.92E-03 | R43: 9.05E-02 | S43: -2.402905001
A44: 1.14E-02 | B44: 1.01E-01 | C44: -2.29E+00 | D44: 2.49E-03 | E44: 9.56E-02 | F44: -2.347114995 | N44: 1.25E-02 | O44: 9.22E-02 | P44: -2.38E+00 | Q44: 2.96E-03 | R44: 9.03E-02 | S44: -2.404963393
A45: 1.16E-02 | B45: 1.01E-01 | C45: -2.30E+00 | D45: 2.52E-03 | E45: 9.54E-02 | F45: -2.349341327 | N45: 1.26E-02 | O45: 9.30E-02 | P45: -2.37E+00 | Q45: 3.01E-03 | R45: 9.01E-02 | S45: -2.407051564
A46: 1.18E-02 | B46: 1.01E-01 | C46: -2.30E+00 | D46: 2.57E-03 | E46: 9.52E-02 | F46: -2.351602033 | N46: 1.28E-02 | O46: 9.27E-02 | P46: -2.38E+00 | Q46: 2.92E-03 | R46: 8.99E-02 | S46: -2.409167466
A47: 1.19E-02 | B47: 1.00E-01 | C47: -2.30E+00 | D47: 2.53E-03 | E47: 9.50E-02 | F47: -2.353894177 | N47: 1.30E-02 | O47: 9.20E-02 | P47: -2.39E+00 | Q47: 2.86E-03 | R47: 8.97E-02 | S47: -2.411312381
A48: 1.21E-02 | B48: 1.00E-01 | C48: -2.30E+00 | D48: 2.44E-03 | E48: 9.48E-02 | F48: -2.356221129 | N48: 1.31E-02 | O48: 9.15E-02 | P48: -2.39E+00 | Q48: 2.82E-03 | R48: 8.95E-02 | S48: -2.413486487
A49: 1.23E-02 | B49: 9.92E-02 | C49: -2.31E+00 | D49: 2.41E-03 | E49: 9.46E-02 | F49: -2.358579949 | N49: 1.33E-02 | O49: 9.18E-02 | P49: -2.39E+00 | Q49: 2.71E-03 | R49: 8.93E-02 | S49: -2.415688844
A50: 1.25E-02 | B50: 9.96E-02 | C50: -2.31E+00 | D50: 2.38E-03 | E50: 9.43E-02 | F50: -2.360972968 | N50: 1.35E-02 | O50: 9.20E-02 | P50: -2.39E+00 | Q50: 2.71E-03 | R50: 8.91E-02 | S50: -2.417919629
A51: 1.26E-02 | B51: 9.92E-02 | C51: -2.31E+00 | D51: 2.34E-03 | E51: 9.41E-02 | F51: -2.363399358 | N51: 1.37E-02 | O51: 9.15E-02 | P51: -2.39E+00 | Q51: 2.63E-03 | R51: 8.89E-02 | S51: -2.420179022
A52: 1.28E-02 | B52: 9.81E-02 | C52: -2.32E+00 | D52: 2.37E-03 | E52: 9.39E-02 | F52: -2.365858282 | N52: 1.38E-02 | O52: 9.06E-02 | P52: -2.40E+00 | Q52: 2.62E-03 | R52: 8.87E-02 | S52: -2.422467205
A53: 1.30E-02 | B53: 9.83E-02 | C53: -2.32E+00 | D53: 2.33E-03 | E53: 9.36E-02 | F53: -2.368351034 | N53: 1.40E-02 | O53: 9.02E-02 | P53: -2.41E+00 | Q53: 2.64E-03 | R53: 8.85E-02 | S53: -2.424784366
A54: 1.31E-02 | B54: 9.80E-02 | C54: -2.32E+00 | D54: 2.24E-03 | E54: 9.34E-02 | F54: -2.370876782 | N54: 1.42E-02 | O54: 9.02E-02 | P54: -2.41E+00 | Q54: 2.60E-03 | R54: 8.83E-02 | S54: -2.427129561
A55: 1.33E-02 | B55: 9.80E-02 | C55: -2.32E+00 | D55: 2.21E-03 | E55: 9.32E-02 | F55: -2.373434687 | N55: 1.44E-02 | O55: 9.00E-02 | P55: -2.41E+00 | Q55: 2.53E-03 | R55: 8.81E-02 | S55: -2.42950411
A56: 1.35E-02 | B56: 9.71E-02 | C56: -2.33E+00 | D56: 2.22E-03 | E56: 9.29E-02 | F56: -2.376027133 | N56: 1.45E-02 | O56: 9.02E-02 | P56: -2.41E+00 | Q56: 2.56E-03 | R56: 8.79E-02 | S56: -2.431905934
A57: 1.37E-02 | B57: 9.65E-02 | C57: -2.34E+00 | D57: 2.15E-03 | E57: 9.27E-02 | F57: -2.378652214 | N57: 1.47E-02 | O57: 8.96E-02 | P57: -2.41E+00 | Q57: 2.58E-03 | R57: 8.77E-02 | S57: -2.434337498
A58: 1.38E-02 | B58: 9.66E-02 | C58: -2.34E+00 | D58: 2.14E-03 | E58: 9.24E-02 | F58: -2.381310169 | N58: 1.49E-02 | O58: 8.94E-02 | P58: -2.41E+00 | Q58: 2.55E-03 | R58: 8.74E-02 | S58: -2.436797861
A59: 1.40E-02 | B59: 9.64E-02 | C59: -2.34E+00 | D59: 2.18E-03 | E59: 9.22E-02 | F59: -2.384001243 | N59: 1.51E-02 | O59: 8.95E-02 | P59: -2.41E+00 | Q59: 2.49E-03 | R59: 8.72E-02 | S59: -2.439286075
A60: 1.42E-02 | B60: 9.60E-02 | C60: -2.34E+00 | D60: 2.10E-03 | E60: 9.19E-02 | F60: -2.386725686 | N60: 1.52E-02 | O60: 8.98E-02 | P60: -2.41E+00 | Q60: 2.48E-03 | R60: 8.70E-02 | S60: -2.441802334
A61: 1.44E-02 | B61: 9.60E-02 | C61: -2.34E+00 | D61: 2.11E-03 | E61: 9.17E-02 | F61: -2.389483749 | N61: 1.54E-02 | O61: 8.84E-02 | P61: -2.43E+00 | Q61: 2.49E-03 | R61: 8.68E-02 | S61: -2.444347986
A62: 1.45E-02 | B62: 9.56E-02 | C62: -2.35E+00 | D62: 2.11E-03 | E62: 9.14E-02 | F62: -2.392273505 | N62: 1.56E-02 | O62: 8.91E-02 | P62: -2.42E+00 | Q62: 2.45E-03 | R62: 8.66E-02 | S62: -2.446922085
A63: 1.47E-02 | B63: 9.51E-02 | C63: -2.35E+00 | D63: 2.10E-03 | E63: 9.12E-02 | F63: -2.395097391 | N63: 1.57E-02 | O63: 8.89E-02 | P63: -2.42E+00 | Q63: 2.47E-03 | R63: 8.63E-02 | S63: -2.449524834
A64: 1.49E-02 | B64: 9.51E-02 | C64: -2.35E+00 | D64: 2.11E-03 | E64: 9.09E-02 | F64: -2.397953474 | N64: 1.59E-02 | O64: 8.86E-02 | P64: -2.42E+00 | Q64: 2.46E-03 | R64: 8.61E-02 | S64: -2.452155279
A65: 1.51E-02 | B65: 9.51E-02 | C65: -2.35E+00 | D65: 2.15E-03 | E65: 9.06E-02 | F65: -2.400843113 | N65: 1.61E-02 | O65: 8.86E-02 | P65: -2.42E+00 | Q65: 2.46E-03 | R65: 8.59E-02 | S65: -2.454814786
A66: 1.52E-02 | B66: 9.50E-02 | C66: -2.35E+00 | D66: 2.14E-03 | E66: 9.04E-02 | F66: -2.403765469 | N66: 1.63E-02 | O66: 8.78E-02 | P66: -2.43E+00 | Q66: 2.45E-03 | R66: 8.56E-02 | S66: -2.457503568
A67: 1.54E-02 | B67: 9.42E-02 | C67: -2.36E+00 | D67: 2.10E-03 | E67: 9.01E-02 | F67: -2.406721913 | N67: 1.64E-02 | O67: 8.79E-02 | P67: -2.43E+00 | Q67: 2.37E-03 | R67: 8.54E-02 | S67: -2.460219501
A68: 1.56E-02 | B68: 9.39E-02 | C68: -2.37E+00 | D68: 2.06E-03 | E68: 8.98E-02 | F68: -2.409709385 | N68: 1.66E-02 | O68: 8.75E-02 | P68: =LN(O68) -> -2.44E+00 | Q68: 2.40E-03 | R68: 8.52E-02 | S68: =LN(R68) -> -2.462963961
A69: 1.57E-02 | B69: 9.34E-02 | C69: =LN(B69) -> -2.37E+00 | D69: 2.01E-03 | E69: 8.96E-02 | F69: =LN(E69) -> -2.412731487 | N69: 1.68E-02 | O69: 8.76E-02 | P69: -2.44E+00 | Q69: 2.39E-03 | R69: 8.49E-02 | S69: -2.465738341
A70: 1.59E-02 | B70: 9.30E-02 | C70: -2.38E+00 | D70: 2.01E-03 | E70: 8.93E-02 | F70: -2.415785147 | N70: 1.70E-02 | O70: 8.75E-02 | P70: -2.44E+00 | Q70: 2.37E-03 | R70: 8.47E-02 | S70: -2.468539328
A71: 1.61E-02 | B71: 9.33E-02 | C71: -2.37E+00 | D71: 1.99E-03 | E71: 8.90E-02 | F71: -2.418872872 | N71: 1.71E-02 | O71: 8.67E-02 | P71: -2.45E+00 | Q71: 2.40E-03 | R71: 8.45E-02 | S71: -2.471369492
A72: 1.63E-02 | B72: 9.28E-02 | C72: -2.38E+00 | D72: 1.96E-03 | E72: 8.87E-02 | F72: -2.421992698 | N72: 1.73E-02 | O72: 8.60E-02 | P72: -2.45E+00 | Q72: 2.35E-03 | R72: 8.42E-02 | S72: -2.474229059
A73: 1.64E-02 | B73: 9.17E-02 | C73: -2.39E+00 | D73: 1.98E-03 | E73: 8.85E-02 | F73: -2.425144894 | N73: 1.75E-02 | O73: 8.60E-02 | P73: -2.45E+00 | Q73: 2.35E-03 | R73: 8.40E-02 | S73: -2.477115877
A74: 1.66E-02 | B74: 9.13E-02 | C74: -2.39E+00 | D74: 1.99E-03 | E74: 8.82E-02 | F74: -2.428330872 | N74: 1.76E-02 | O74: 8.63E-02 | P74: -2.45E+00 | Q74: 2.28E-03 | R74: 8.37E-02 | S74: -2.480031353
A75: 1.68E-02 | B75: 9.16E-02 | C75: -2.39E+00 | D75: 1.98E-03 | E75: 8.79E-02 | F75: -2.431549786 | N75: 1.78E-02 | O75: 8.55E-02 | P75: -2.46E+00 | Q75: 2.30E-03 | R75: 8.35E-02 | S75: -2.482974518
A76: 1.70E-02 | B76: 9.15E-02 | C76: -2.39E+00 | D76: 1.93E-03 | E76: 8.76E-02 | F76: -2.43480078 | N76: 1.80E-02 | O76: 8.50E-02 | P76: -2.47E+00 | Q76: 2.29E-03 | R76: 8.32E-02 | S76: -2.485947992
A77: 1.71E-02 | B77: 9.10E-02 | C77: -2.40E+00 | D77: 1.94E-03 | E77: 8.73E-02 | F77: -2.43808528 | N77: 1.82E-02 | O77: 8.49E-02 | P77: -2.47E+00 | Q77: 2.26E-03 | R77: 8.30E-02 | S77: -2.488948407
A78: 1.73E-02 | B78: 9.05E-02 | C78: -2.40E+00 | D78: 1.91E-03 | E78: 8.70E-02 | F78: -2.441402432 | N78: 1.83E-02 | O78: 8.42E-02 | P78: -2.47E+00 | Q78: 2.26E-03 | R78: 8.27E-02 | S78: -2.491977187
A79: 1.75E-02 | B79: 9.00E-02 | C79: -2.41E+00 | D79: 1.93E-03 | E79: 8.67E-02 | F79: -2.444751373 | N79: 1.85E-02 | O79: 8.37E-02 | P79: -2.48E+00 | Q79: 2.21E-03 | R79: 8.25E-02 | S79: -2.495034564
A80: 1.76E-02 | B80: 8.94E-02 | C80: -2.41E+00 | D80: 1.90E-03 | E80: 8.65E-02 | F80: -2.448133545 | N80: 1.87E-02 | O80: 8.40E-02 | P80: -2.48E+00 | Q80: 2.21E-03 | R80: 8.22E-02 | S80: -2.498120773
A81: 1.78E-02 | B81: 8.96E-02 | C81: -2.41E+00 | D81: 1.91E-03 | E81: 8.62E-02 | F81: -2.451549246 | N81: 1.89E-02 | O81: 8.41E-02 | P81: -2.48E+00 | Q81: 2.21E-03 | R81: 8.20E-02 | S81: -2.501234832
A82: 1.80E-02 | B82: 8.91E-02 | C82: -2.42E+00 | D82: 1.92E-03 | E82: 8.59E-02 | F82: -2.454997618 | N82: 1.90E-02 | O82: 8.32E-02 | P82: -2.49E+00 | Q82: 2.20E-03 | R82: 8.17E-02 | S82: -2.504376972
A83: 1.82E-02 | B83: 8.84E-02 | C83: -2.43E+00 | D83: 1.90E-03 | E83: 8.56E-02 | F83: -2.458477789 | N83: 1.92E-02 | O83: 8.27E-02 | P83: -2.49E+00 | Q83: 2.17E-03 | R83: 8.15E-02 | S83: -2.507547429
A84: 1.83E-02 | B84: 8.83E-02 | C84: -2.43E+00 | D84: 1.87E-03 | E84: 8.53E-02 | F84: -2.461991225 | N84: 1.94E-02 | O84: 8.22E-02 | P84: -2.50E+00 | Q84: 2.15E-03 | R84: 8.12E-02 | S84: -2.51074644
A85: 1.85E-02 | B85: 8.75E-02 | C85: -2.44E+00 | D85: 1.82E-03 | E85: 8.50E-02 | F85: -2.465537057 | N85: 1.95E-02 | O85: 8.23E-02 | P85: -2.50E+00 | Q85: 2.19E-03 | R85: 8.09E-02 | S85: -2.513974249
A86: 1.87E-02 | B86: 8.71E-02 | C86: -2.44E+00 | D86: 1.82E-03 | E86: 8.47E-02 | F86: -2.469115587 | N86: 1.97E-02 | O86: 8.26E-02 | P86: -2.49E+00 | Q86: 2.17E-03 | R86: 8.07E-02 | S86: -2.517229861
A87: 1.89E-02 | B87: 8.69E-02 | C87: -2.44E+00 | D87: 1.86E-03 | E87: 8.44E-02 | F87: -2.472725937 | N87: 1.99E-02 | O87: 8.23E-02 | P87: -2.50E+00 | Q87: 2.17E-03 | R87: 8.04E-02 | S87: -2.520513517
A88: 1.90E-02 | B88: 8.61E-02 | C88: -2.45E+00 | D88: 1.83E-03 | E88: 8.40E-02 | F88: -2.476370784 | N88: 2.01E-02 | O88: 8.19E-02 | P88: -2.50E+00 | Q88: 2.15E-03 | R88: 8.02E-02 | S88: -2.523825457
A89: 1.92E-02 | B89: 8.63E-02 | C89: -2.45E+00 | D89: 1.79E-03 | E89: 8.37E-02 | F89: -2.480046878 | N89: 2.02E-02 | O89: 8.15E-02 | P89: -2.51E+00 | Q89: 2.10E-03 | R89: 7.99E-02 | S89: -2.527165927
A90: 1.94E-02 | B90: 8.56E-02 | C90: -2.46E+00 | D90: 1.74E-03 | E90: 8.34E-02 | F90: -2.483755712 | N90: 2.04E-02 | O90: 8.15E-02 | P90: -2.51E+00 | Q90: 2.14E-03 | R90: 7.96E-02 | S90: -2.530535177
A91: 1.95E-02 | B91: 8.54E-02 | C91: -2.46E+00 | D91: 1.76E-03 | E91: 8.31E-02 | F91: -2.4874964 | N91: 2.06E-02 | O91: 8.12E-02 | P91: -2.51E+00 | Q91: 2.11E-03 | R91: 7.93E-02 | S91: -2.533932202
A92: 1.97E-02 | B92: 8.54E-02 | C92: -2.46E+00 | D92: 1.73E-03 | E92: 8.28E-02 | F92: -2.491270456 | N92: 2.08E-02 | O92: 8.06E-02 | P92: -2.52E+00 | Q92: 2.11E-03 | R92: 7.91E-02 | S92: -2.537357245
A93: 1.99E-02 | B93: 8.51E-02 | C93: -2.46E+00 | D93: 1.74E-03 | E93: 8.25E-02 | F93: -2.495076993 | N93: 2.09E-02 | O93: 8.04E-02 | P93: -2.52E+00 | Q93: 2.12E-03 | R93: 7.88E-02 | S93: -2.540810557
A94: 2.01E-02 | B94: 8.53E-02 | C94: -2.46E+00 | D94: 1.75E-03 | E94: 8.22E-02 | F94: -2.498916329 | N94: 2.11E-02 | O94: 7.99E-02 | P94: -2.53E+00 | Q94: 2.09E-03 | R94: 7.85E-02 | S94: -2.544291116
A95: 2.02E-02 | B95: 8.46E-02 | C95: -2.47E+00 | D95: 1.75E-03 | E95: 8.19E-02 | F95: -2.502787565 | N95: 2.13E-02 | O95: 7.99E-02 | P95: -2.53E+00 | Q95: 2.06E-03 | R95: 7.83E-02 | S95: -2.547801722
A96: 2.04E-02 | B96: 8.37E-02 | C96: -2.48E+00 | D96: 1.70E-03 | E96: 8.15E-02 | F96: -2.506692242 | N96: 2.15E-02 | O96: 7.92E-02 | P96: -2.54E+00 | Q96: 2.06E-03 | R96: 7.80E-02 | S96: -2.551338803
A97: 2.06E-02 | B97: 8.34E-02 | C97: -2.48E+00 | D97: 1.67E-03 | E97: 8.12E-02 | F97: -2.510628232 | N97: 2.16E-02 | O97: 7.86E-02 | P97: -2.54E+00 | Q97: 2.05E-03 | R97: 7.77E-02 | S97: -2.55490517
A98: 2.08E-02 | B98: 8.29E-02 | C98: -2.49E+00 | D98: 1.70E-03 | E98: 8.09E-02 | F98: -2.514597081 | N98: 2.18E-02 | O98: 7.91E-02 | P98: -2.54E+00 | Q98: 2.02E-03 | R98: 7.74E-02 | S98: -2.558498509
A99: 2.09E-02 | B99: 8.25E-02 | C99: -2.49E+00 | D99: 1.68E-03 | E99: 8.06E-02 | F99: -2.518597879 | N99: 2.20E-02 | O99: 7.86E-02 | P99: -2.54E+00 | Q99: 1.98E-03 | R99: 7.71E-02 | S99: -2.562120363
A100: 2.11E-02 | B100: 8.25E-02 | C100: -2.50E+00 | D100: 1.71E-03 | E100: 8.02E-02 | F100: -2.522632193 | N100: 2.21E-02 | O100: 7.87E-02 | P100: -2.54E+00 | Q100: 2.00E-03 | R100: 7.69E-02 | S100: -2.565770995
A101: 2.13E-02 | B101: 8.22E-02 | C101: -2.50E+00 | D101: 1.72E-03 | E101: 7.99E-02 | F101: -2.526697864 | N101: 2.23E-02 | O101: 7.82E-02 | P101: -2.55E+00 | Q101: 2.00E-03 | R101: 7.66E-02 | S101: -2.569449367
A102: 2.15E-02 | B102: 8.16E-02 | C102: -2.51E+00 | D102: 1.69E-03 | E102: 7.96E-02 | F102: -2.530795208 | N102: 2.25E-02 | O102: 7.78E-02 | P102: -2.55E+00 | Q102: 1.97E-03 | R102: 7.63E-02 | S102: -2.573155738
A103: 2.16E-02 | B103: 8.12E-02 | C103: -2.51E+00 | D103: 1.70E-03 | E103: 7.93E-02 | F103: -2.534925809 | N103: 2.27E-02 | O103: 7.74E-02 | P103: -2.56E+00 | Q103: 1.98E-03 | R103: 7.60E-02 | S103: -2.576889053
A104: 2.18E-02 | B104: 8.05E-02 | C104: -2.52E+00 | D104: 1.71E-03 | E104: 7.89E-02 | F104: -2.539087478 | N104: 2.28E-02 | O104: 7.69E-02 | P104: -2.57E+00 | Q104: 1.97E-03 | R104: 7.57E-02 | S104: -2.580652204
A105: 2.20E-02 | B105: 8.01E-02 | C105: -2.52E+00 | D105: 1.65E-03 | E105: 7.86E-02 | F105: -2.543281804 | N105: 2.30E-02 | O105: 7.62E-02 | P105: -2.57E+00 | Q105: 1.93E-03 | R105: 7.54E-02 | S105: -2.584441501
A106: 2.21E-02 | B106: 8.00E-02 | C106: -2.53E+00 | D106: 1.64E-03 | E106: 7.83E-02 | F106: -2.547507849 | N106: 2.32E-02 | O106: 7.56E-02 | P106: -2.58E+00 | Q106: 1.89E-03 | R106: 7.52E-02 | S106: -2.588259848
A107: 2.23E-02 | B107: 7.97E-02 | C107: -2.53E+00 | D107: 1.63E-03 | E107: 7.79E-02 | F107: -2.551767225 | N107: 2.34E-02 | O107: 7.54E-02 | P107: -2.58E+00 | Q107: 1.92E-03 | R107: 7.49E-02 | S107: -2.592106189
A108: 2.25E-02 | B108: 7.94E-02 | C108: -2.53E+00 | D108: 1.60E-03 | E108: 7.76E-02 | F108: -2.556057706 | N108: 2.35E-02 | O108: 7.52E-02 | P108: -2.59E+00 | Q108: 1.94E-03 | R108: 7.46E-02 | S108: -2.59598079
A109: 2.27E-02 | B109: 7.91E-02 | C109: -2.54E+00 | D109: 1.58E-03 | E109: 7.73E-02 | F109: -2.560379615 | N109: 2.37E-02 | O109: 7.47E-02 | P109: -2.59E+00 | Q109: 1.93E-03 | R109: 7.43E-02 | S109: -2.599882579
A110: 2.28E-02 | B110: 7.86E-02 | C110: -2.54E+00 | D110: 1.56E-03 | E110: 7.69E-02 | F110: -2.564734581 | N110: 2.39E-02 | O110: 7.49E-02 | P110: -2.59E+00 | Q110: 1.92E-03 | R110: 7.40E-02 | S110: -2.603813166
A111: 2.30E-02 | B111: 7.83E-02 | C111: -2.55E+00 | D111: 1.58E-03 | E111: 7.66E-02 | F111: -2.569120344 | N111: 2.40E-02 | O111: 7.44E-02 | P111: -2.60E+00 | Q111: 1.90E-03 | R111: 7.37E-02 | S111: -2.607770119
A112: 2.32E-02 | B112: 7.78E-02 | C112: -2.55E+00 | D112: 1.58E-03 | E112: 7.63E-02 | F112: -2.573538539 | N112: 2.42E-02 | O112: 7.36E-02 | P112: -2.61E+00 | Q112: 1.88E-03 | R112: 7.34E-02 | S112: -2.611756414
A113: 2.34E-02 | B113: 7.71E-02 | C113: -2.56E+00 | D113: 1.55E-03 | E113: 7.59E-02 | F113: -2.577988195 | N113: 2.44E-02 | O113: 7.36E-02 | P113: -2.61E+00 | Q113: 1.88E-03 | R113: 7.31E-02 | S113: -2.615769606
A114: 2.35E-02 | B114: 7.69E-02 | C114: -2.57E+00 | D114: 1.57E-03 | E114: 7.56E-02 | F114: -2.582470968 | N114: 2.46E-02 | O114: 7.38E-02 | P114: -2.61E+00 | Q114: 1.88E-03 | R114: 7.28E-02 | S114: -2.619811328
A115: 2.37E-02 | B115: 7.63E-02 | C115: -2.57E+00 | D115: 1.54E-03 | E115: 7.52E-02 | F115: -2.586984559 | N115: 2.47E-02 | O115: 7.33E-02 | P115: -2.61E+00 | Q115: 1.87E-03 | R115: 7.25E-02 | S115: -2.623880483
A116: 2.39E-02 | B116: 7.59E-02 | C116: -2.58E+00 | D116: 1.55E-03 | E116: 7.49E-02 | F116: -2.591529295 | N116: 2.49E-02 | O116: 7.28E-02 | P116: -2.62E+00 | Q116: 1.86E-03 | R116: 7.22E-02 | S116: -2.62797734
A117: 2.40E-02 | B117: 7.61E-02 | C117: -2.58E+00 | D117: 1.55E-03 | E117: 7.46E-02 | F117: -2.59610685 | N117: 2.51E-02 | O117: 7.24E-02 | P117: -2.63E+00 | Q117: 1.85E-03 | R117: 7.19E-02 | S117: -2.632102173
A118: 2.42E-02 | B118: 7.55E-02 | C118: -2.58E+00 | D118: 1.52E-03 | E118: 7.42E-02 | F118: -2.600714887 | N118: 2.53E-02 | O118: 7.22E-02 | P118: -2.63E+00 | Q118: 1.83E-03 | R118: 7.16E-02 | S118: -2.636255259
A119: 2.44E-02 | B119: 7.49E-02 | C119: -2.59E+00 | D119: 1.54E-03 | E119: 7.39E-02 | F119: -2.605355084 | N119: 2.54E-02 | O119: 7.20E-02 | P119: -2.63E+00 | Q119: 1.83E-03 | R119: 7.13E-02 | S119: -2.640435479
A120: 2.46E-02 | B120: 7.40E-02 | C120: -2.60E+00 | D120: 1.53E-03 | E120: 7.35E-02 | F120: -2.610027794 | N120: 2.56E-02 | O120: 7.21E-02 | P120: -2.63E+00 | Q120: 1.78E-03 | R120: 7.10E-02 | S120: -2.644643101
A121: 2.47E-02 | B121: 7.37E-02 | C121: -2.61E+00 | D121: 1.53E-03 | E121: 7.32E-02 | F121: -2.614730638 | N121: 2.58E-02 | O121: 7.19E-02 | P121: -2.63E+00 | Q121: 1.82E-03 | R121: 7.07E-02 | S121: -2.648878399
A122: 2.49E-02 | B122: 7.32E-02 | C122: -2.61E+00 | D122: 1.52E-03 | E122: 7.28E-02 | F122: -2.619465313 | N122: 2.59E-02 | O122: 7.13E-02 | P122: -2.64E+00 | Q122: 1.85E-03 | R122: 7.04E-02 | S122: -2.65314165
A123: 2.51E-02 | B123: 7.34E-02 | C123: -2.61E+00 | D123: 1.50E-03 | E123: 7.25E-02 | F123: -2.624232167 | N123: 2.61E-02 | O123: 7.05E-02 | P123: -2.65E+00 | Q123: 1.79E-03 | R123: 7.01E-02 | S123: -2.657433135
A124: 2.53E-02 | B124: 7.30E-02 | C124: -2.62E+00 | D124: 1.49E-03 | E124: 7.21E-02 | F124: -2.62903017 | N124: 2.63E-02 | O124: 7.01E-02 | P124: -2.66E+00 | Q124: 1.76E-03 | R124: 6.98E-02 | S124: -2.66175171
A125: 2.54E-02 | B125: 7.22E-02 | C125: -2.63E+00 | D125: 1.49E-03 | E125: 7.18E-02 | F125: -2.633859661 | N125: 2.65E-02 | O125: 7.05E-02 | P125: -2.65E+00 | Q125: 1.76E-03 | R125: 6.95E-02 | S125: -2.666099084
A126: 2.56E-02 | B126: 7.24E-02 | C126: -2.63E+00 | D126: 1.46E-03 | E126: 7.15E-02 | F126: -2.638719587 | N126: 2.66E-02 | O126: 7.01E-02 | P126: -2.66E+00 | Q126: 1.75E-03 | R126: 6.92E-02 | S126: -2.670472664
A127: 2.58E-02 | B127: 7.22E-02 | C127: -2.63E+00 | D127: 1.46E-03 | E127: 7.11E-02 | F127: -2.643611685 | N127: 2.68E-02 | O127: 6.94E-02 | P127: -2.67E+00 | Q127: 1.74E-03 | R127: 6.89E-02 | S127: -2.674874163
A128: 2.59E-02 | B128: 7.15E-02 | C128: -2.64E+00 | D128: 1.46E-03 | E128: 7.08E-02 | F128: -2.6485349 | N128: 2.70E-02 | O128: 6.90E-02 | P128: -2.67E+00 | Q128: 1.76E-03 | R128: 6.86E-02 | S128: -2.679303865
A129: 2.61E-02 | B129: 7.10E-02 | C129: -2.65E+00 | D129: 1.43E-03 | E129: 7.04E-02 | F129: -2.653489575 | N129: 2.72E-02 | O129: 6.90E-02 | P129: -2.67E+00 | Q129: 1.72E-03 | R129: 6.83E-02 | S129: -2.683760597
A130: 2.63E-02 | B130: 7.06E-02 | C130: -2.65E+00 | D130: 1.43E-03 | E130: 7.01E-02 | F130: -2.658476059 | N130: 2.73E-02 | O130: 6.83E-02 | P130: -2.68E+00 | Q130: 1.70E-03 | R130: 6.80E-02 | S130: -2.688246103
A131: 2.65E-02 | B131: 7.00E-02 | C131: -2.66E+00 | D131: 1.41E-03 | E131: 6.97E-02 | F131: -2.663491836 | N131: 2.75E-02 | O131: 6.82E-02 | P131: -2.69E+00 | Q131: 1.69E-03 | R131: 6.77E-02 | S131: -2.692757729
A132: 2.66E-02 | B132: 6.97E-02 | C132: -2.66E+00 | D132: 1.41E-03 | E132: 6.94E-02 | F132: -2.668540107 | N132: 2.77E-02 | O132: 6.80E-02 | P132: =LN(O132) -> -2.69E+00 | Q132: 1.71E-03 | R132: 6.74E-02 | S132: =LN(R132) -> -2.697297222
A133: 2.68E-02 | B133: 6.93E-02 | C133: =LN(B133) -> -2.67E+00 | D133: 1.40E-03 | E133: 6.90E-02 | F133: =LN(E133) -> -2.673619789 | N133: 2.79E-02 | O133: 6.73E-02 | P133: -2.70E+00 | Q133: 1.72E-03 | R133: 6.71E-02 | S133: -2.70186487
A134: 2.70E-02 | B134: 6.88E-02 | C134: -2.68E+00 | D134: 1.41E-03 | E134: 6.87E-02 | F134: -2.678729777 | N134: 2.80E-02 | O134: 6.74E-02 | P134: -2.70E+00 | Q134: 1.71E-03 | R134: 6.68E-02 | S134: -2.706459467
A135: 2.72E-02 | B135: 6.84E-02 | C135: -2.68E+00 | D135: 1.39E-03 | E135: 6.83E-02 | F135: -2.683871867 | N135: 2.82E-02 | O135: 6.76E-02 | P135: -2.69E+00 | Q135: 1.69E-03 | R135: 6.65E-02 | S135: -2.71108129
A136: 2.73E-02 | B136: 6.79E-02 | C136: -2.69E+00 | D136: 1.41E-03 | E136: 6.79E-02 | F136: -2.689043479 | N136: 2.84E-02 | O136: 6.70E-02 | P136: -2.70E+00 | Q136: 1.70E-03 | R136: 6.62E-02 | S136: -2.71573062
A137: 2.75E-02 | B137: 6.79E-02 | C137: -2.69E+00 | D137: 1.40E-03 | E137: 6.76E-02 | F137: -2.694246413 | N137: 2.85E-02 | O137: 6.64E-02 | P137: -2.71E+00 | Q137: 1.67E-03 | R137: 6.58E-02 | S137: -2.720407742
A138: 2.77E-02 | B138: 6.76E-02 | C138: -2.69E+00 | D138: 1.39E-03 | E138: 6.72E-02 | F138: -2.699481022 | N138: 2.87E-02 | O138: 6.60E-02 | P138: -2.72E+00 | Q138: 1.68E-03 | R138: 6.55E-02 | S138: -2.725111419
A139: 2.79E-02 | B139: 6.67E-02 | C139: -2.71E+00 | D139: 1.38E-03 | E139: 6.69E-02 | F139: -2.704746165 | N139: 2.89E-02 | O139: 6.58E-02 | P139: -2.72E+00 | Q139: 1.65E-03 | R139: 6.52E-02 | S139: -2.729843458
A140: 2.80E-02 | B140: 6.58E-02 | C140: -2.72E+00 | D140: 1.38E-03 | E140: 6.65E-02 | F140: -2.710042184 | N140: 2.91E-02 | O140: 6.54E-02 | P140: -2.73E+00 | Q140: 1.66E-03 | R140: 6.49E-02 | S140: -2.734602617
A141: 2.82E-02 | B141: 6.56E-02 | C141: -2.72E+00 | D141: 1.36E-03 | E141: 6.62E-02 | F141: -2.715369421 | N141: 2.92E-02 | O141: 6.49E-02 | P141: -2.73E+00 | Q141: 1.63E-03 | R141: 6.46E-02 | S141: -2.739389177
A142: 2.84E-02 | B142: 6.54E-02 | C142: -2.73E+00 | D142: 1.35E-03 | E142: 6.58E-02 | F142: -2.72072671 | N142: 2.94E-02 | O142: 6.48E-02 | P142: -2.74E+00 | Q142: 1.65E-03 | R142: 6.43E-02 | S142: -2.744203424
A143: 2.85E-02 | B143: 6.52E-02 | C143: -2.73E+00 | D143: 1.34E-03 | E143: 6.55E-02 | F143: -2.726115908 | N143: 2.96E-02 | O143: 6.44E-02 | P143: -2.74E+00 | Q143: 1.67E-03 | R143: 6.40E-02 | S143: -2.749045648
A144: 2.87E-02 | B144: 6.50E-02 | C144: -2.73E+00 | D144: 1.34E-03 | E144: 6.51E-02 | F144: -2.731534307 | N144: 2.98E-02 | O144: 6.41E-02 | P144: -2.75E+00 | Q144: 1.66E-03 | R144: 6.37E-02 | S144: -2.753914575
A145: 2.89E-02 | B145: 6.49E-02 | C145: -2.74E+00 | D145: 1.29E-03 | E145: 6.48E-02 | F145: -2.736983769 | N145: 2.99E-02 | O145: 6.37E-02 | P145: -2.75E+00 | Q145: 1.64E-03 | R145: 6.34E-02 | S145: -2.75881048
A146: 2.91E-02 | B146: 6.44E-02 | C146: -2.74E+00 | D146: 1.31E-03 | E146: 6.44E-02 | F146: -2.742464643 | N146: 3.01E-02 | O146: 6.31E-02 | P146: -2.76E+00 | Q146: 1.67E-03 | R146: 6.31E-02 | S146: -2.763733644
A147: 2.92E-02 | B147: 6.39E-02 | C147: -2.75E+00 | D147: 1.28E-03 | E147: 6.41E-02 | F147: -2.747975723 | N147: 3.03E-02 | O147: 6.30E-02 | P147: -2.76E+00 | Q147: 1.65E-03 | R147: 6.27E-02 | S147: -2.768684354
A148: 2.94E-02 | B148: 6.33E-02 | C148: -2.76E+00 | D148: 1.28E-03 | E148: 6.37E-02 | F148: -2.753517343 | N148: 3.04E-02 | O148: 6.27E-02 | P148: -2.77E+00 | Q148: 1.66E-03 | R148: 6.24E-02 | S148: -2.773661297
A149: 2.96E-02 | B149: 6.29E-02 | C149: -2.77E+00 | D149: 1.31E-03 | E149: 6.33E-02 | F149: -2.759089843 | N149: 3.06E-02 | O149: 6.25E-02 | P149: -2.77E+00 | Q149: 1.63E-03 | R149: 6.21E-02 | S149: -2.778666354
A150: 2.98E-02 | B150: 6.23E-02 | C150: -2.78E+00 | D150: 1.33E-03 | E150: 6.30E-02 | F150: -2.764691984 | N150: 3.08E-02 | O150: 6.17E-02 | P150: -2.79E+00 | Q150: 1.67E-03 | R150: 6.18E-02 | S150: -2.783699823
A151: 2.99E-02 | B151: 6.20E-02 | C151: -2.78E+00 | D151: 1.34E-03 | E151: 6.26E-02 | F151: -2.770325685 | N151: 3.10E-02 | O151: 6.16E-02 | P151: -2.79E+00 | Q151: 1.66E-03 | R151: 6.15E-02 | S151: -2.788758755
A152: 3.01E-02 | B152: 6.18E-02 | C152: -2.78E+00 | D152: 1.34E-03 | E152: 6.23E-02 | F152: -2.775989699 | N152: 3.11E-02 | O152: 6.15E-02 | P152: -2.79E+00 | Q152: 1.69E-03 | R152: 6.12E-02 | S152: -2.793845046
A153: 3.03E-02 | B153: 6.10E-02 | C153: -2.80E+00 | D153: 1.33E-03 | E153: 6.19E-02 | F153: -2.781682748 | N153: 3.13E-02 | O153: 6.16E-02 | P153: -2.79E+00 | Q153: 1.69E-03 | R153: 6.09E-02 | S153: -2.798958981
A154: 3.04E-02 | B154: 6.01E-02 | C154: -2.81E+00 | D154: 1.33E-03 | E154: 6.16E-02 | F154: -2.787406769 | N154: 3.15E-02 | O154: 6.13E-02 | P154: -2.79E+00 | Q154: 1.66E-03 | R154: 6.06E-02 | S154: -2.804099204
A155: 3.06E-02 | B155: 6.02E-02 | C155: -2.81E+00 | D155: 1.31E-03 | E155: 6.12E-02 | F155: -2.79316211 | N155: 3.17E-02 | O155: 6.06E-02 | P155: -2.80E+00 | Q155: 1.66E-03 | R155: 6.02E-02 | S155: -2.809265985
A156: 3.08E-02 | B156: 6.02E-02 | C156: -2.81E+00 | D156: 1.33E-03 | E156: 6.09E-02 | F156: -2.798945839 | N156: 3.18E-02 | O156: 6.01E-02 | P156: -2.81E+00 | Q156: 1.68E-03 | R156: 5.99E-02 | S156: -2.814461268
A157: 3.10E-02 | B157: 5.96E-02 | C157: -2.82E+00 | D157: 1.33E-03 | E157: 6.05E-02 | F157: -2.804761562 | N157: 3.20E-02 | O157: 6.00E-02 | P157: -2.81E+00 | Q157: 1.66E-03 | R157: 5.96E-02 | S157: -2.819682007
A158: 3.11E-02 | B158: 5.89E-02 | C158: -2.83E+00 | D158: 1.34E-03 | E158: 6.02E-02 | F158: -2.810606319 | N158: 3.22E-02 | O158: 5.92E-02 | P158: -2.83E+00 | Q158: 1.66E-03 | R158: 5.93E-02 | S158: -2.824930145
A159: 3.13E-02 | B159: 5.90E-02 | C159: -2.83E+00 | D159: 1.34E-03 | E159: 5.98E-02 | F159: -2.816480423 | N159: 3.23E-02 | O159: 5.86E-02 | P159: -2.84E+00 | Q159: 1.66E-03 | R159: 5.90E-02 | S159: -2.830205971
A160: 3.15E-02 | B160: 5.86E-02 | C160: -2.84E+00 | D160: 1.34E-03 | E160: 5.95E-02 | F160: -2.822385873 | N160: 3.25E-02 | O160: 5.83E-02 | P160: -2.84E+00 | Q160: 1.64E-03 | R160: 5.87E-02 | S160: -2.835508075
A161: 3.17E-02 | B161: 5.79E-02 | C161: -2.85E+00 | D161: 1.35E-03 | E161: 5.91E-02 | F161: -2.828319638 | N161: 3.27E-02 | O161: 5.81E-02 | P161: -2.84E+00 | Q161: 1.64E-03 | R161: 5.84E-02 | S161: -2.840836728
A162: 3.18E-02 | B162: 5.76E-02 | C162: -2.86E+00 | D162: 1.34E-03 | E162: 5.88E-02 | F162: -2.834283717 | N162: 3.29E-02 | O162: 5.82E-02 | P162: -2.84E+00 | Q162: 1.65E-03 | R162: 5.81E-02 | S162: -2.846192206
A163: 3.20E-02 | B163: 5.75E-02 | C163: -2.86E+00 | D163: 1.33E-03 | E163: 5.84E-02 | F163: -2.840278443 | N163: 3.30E-02 | O163: 5.84E-02 | P163: -2.84E+00 | Q163: 1.64E-03 | R163: 5.78E-02 | S163: -2.851574788
A164: 3.22E-02 | B164: 5.70E-02 | C164: -2.86E+00 | D164: 1.32E-03 | E164: 5.81E-02 | F164: -2.846302434 | N164: 3.32E-02 | O164: 5.74E-02 | P164: -2.86E+00 | Q164: 1.64E-03 | R164: 5.74E-02 | S164: -2.856983018
A165: 3.23E-02 | B165: 5.65E-02 | C165: -2.87E+00 | D165: 1.33E-03 | E165: 5.77E-02 | F165: -2.852354268 | N165: 3.34E-02 | O165: 5.71E-02 | P165: -2.86E+00 | Q165: 1.63E-03 | R165: 5.71E-02 | S165: -2.862418905
A166: 3.25E-02 | B166: 5.60E-02 | C166: -2.88E+00 | D166: 1.31E-03 | E166: 5.74E-02 | F166: -2.858437721 | N166: 3.36E-02 | O166: 5.65E-02 | P166: -2.87E+00 | Q166: 1.62E-03 | R166: 5.68E-02 | S166: -2.867880982
A167: 3.27E-02 | B167: 5.59E-02 | C167: -2.88E+00 | D167: 1.30E-03 | E167: 5.70E-02 | F167: -2.864549637 | N167: 3.37E-02 | O167: 5.62E-02 | P167: -2.88E+00 | Q167: 1.64E-03 | R167: 5.65E-02 | S167: -2.873369519
A168: 3.29E-02 | B168: 5.55E-02 | C168: -2.89E+00 | D168: 1.27E-03 | E168: 5.67E-02 | F168: -2.870690314 | N168: 3.39E-02 | O168: 5.63E-02 | P168: -2.88E+00 | Q168: 1.64E-03 | R168: 5.62E-02 | S168: -2.878884786
A169: 3.30E-02 | B169: 5.54E-02 | C169: -2.89E+00 | D169: 1.30E-03 | E169: 5.63E-02 | F169: -2.876861829 | N169: 3.41E-02 | O169: 5.62E-02 | P169: -2.88E+00 | Q169: 1.63E-03 | R169: 5.59E-02 | S169: -2.884427063
A170: 3.32E-02 | B170: 5.49E-02 | C170: -2.90E+00 | D170: 1.31E-03 | E170: 5.60E-02 | F170: -2.883060947 | N170: 3.43E-02 | O170: 5.57E-02 | P170: -2.89E+00 | Q170: 1.62E-03 | R170: 5.56E-02 | S170: -2.889994829
A171: 3.34E-02 | B171: 5.42E-02 | C171: -2.92E+00 | D171: 1.31E-03 | E171: 5.56E-02 | F171: -2.889289743 | N171: 3.44E-02 | O171: 5.54E-02 | P171: -2.89E+00 | Q171: 1.62E-03 | R171: 5.53E-02 | S171: -2.89559015
A172: 3.36E-02 | B172: 5.43E-02 | C172: -2.91E+00 | D172: 1.29E-03 | E172: 5.53E-02 | F172: -2.895548534 | N172: 3.46E-02 | O172: 5.49E-02 | P172: -2.90E+00 | Q172: 1.59E-03 | R172: 5.50E-02 | S172: -2.901209677
A173: 3.37E-02 | B173: 5.37E-02 | C173: -2.92E+00 | D173: 1.31E-03 | E173: 5.49E-02 | F173: -2.901833999 | N173: 3.48E-02 | O173: 5.45E-02 | P173: -2.91E+00 | Q173: 1.59E-03 | R173: 5.46E-02 | S173: -2.906857301
A174: 3.39E-02 | B174: 5.33E-02 | C174: -2.93E+00 | D174: 1.29E-03 | E174: 5.46E-02 | F174: -2.90815006 | N174: 3.49E-02 | O174: 5.39E-02 | P174: -2.92E+00 | Q174: 1.58E-03 | R174: 5.43E-02 | S174: -2.912531481
A175: 3.41E-02 | B175: 5.30E-02 | C175: -2.94E+00 | D175: 1.29E-03 | E175: 5.42E-02 | F175: -2.914495202 | N175: 3.51E-02 | O175: 5.34E-02 | P175: -2.93E+00 | Q175: 1.56E-03 | R175: 5.40E-02 | S175: -2.918232489
A176: 3.43E-02 | B176: 5.32E-02 | C176: -2.93E+00 | D176: 1.25E-03 | E176: 5.39E-02 | F176: -2.920869729 | N176: 3.53E-02 | O176: 5.32E-02 | P176: -2.93E+00 | Q176: 1.58E-03 | R176: 5.37E-02 | S176: -2.923958738
A177: 3.44E-02 | B177: 5.23E-02 | C177: -2.95E+00 | D177: 1.26E-03 | E177: 5.35E-02 | F177: -2.927272077 | N177: 3.55E-02 | O177: 5.30E-02 | P177: -2.94E+00 | Q177: 1.54E-03 | R177: 5.34E-02 | S177: -2.929710478
A178: 3.46E-02 | B178: 5.12E-02 | C178: -2.97E+00 | D178: 1.26E-03 | E178: 5.32E-02 | F178: -2.933702522 | N178: 3.56E-02 | O178: 5.29E-02 | P178: -2.94E+00 | Q178: 1.54E-03 | R178: 5.31E-02 | S178: -2.935489842
A179: 3.48E-02 | B179: 5.10E-02 | C179: -2.98E+00 | D179: 1.27E-03 | E179: 5.29E-02 | F179: -2.940161341 | N179: 3.58E-02 | O179: 5.29E-02 | P179: -2.94E+00 | Q179: 1.53E-03 | R179: 5.28E-02 | S179: -2.941293332
A180: 3.49E-02 | B180: 5.08E-02 | C180: -2.98E+00 | D180: 1.27E-03 | E180: 5.25E-02 | F180: -2.946648819 | N180: 3.60E-02 | O180: 5.26E-02 | P180: -2.95E+00 | Q180: 1.51E-03 | R180: 5.25E-02 | S180: -2.947124983
A181: 3.51E-02 | B181: 5.06E-02 | C181: -2.98E+00 | D181: 1.27E-03 | E181: 5.22E-02 | F181: -2.953165242 | N181: 3.62E-02 | O181: 5.17E-02 | P181: -2.96E+00 | Q181: 1.49E-03 | R181: 5.22E-02 | S181: -2.952981261
A182: 3.53E-02 | B182: 5.05E-02 | C182: -2.99E+00 | D182: 1.25E-03 | E182: 5.18E-02 | F182: -2.959710904 | N182: 3.63E-02 | O182: 5.11E-02 | P182: -2.97E+00 | Q182: 1.52E-03 | R182: 5.19E-02 | S182: -2.958864326
A183: 3.55E-02 | B183: 5.00E-02 | C183: -3.00E+00 | D183: 1.24E-03 | E183: 5.15E-02 | F183: -2.966284157 | N183: 3.65E-02 | O183: 5.10E-02 | P183: -2.98E+00 | Q183: 1.51E-03 | R183: 5.16E-02 | S183: -2.96477445
A184: 3.56E-02 | B184: 4.95E-02 | C184: -3.01E+00 | D184: 1.22E-03 | E184: 5.12E-02 | F184: -2.972885265 | N184: 3.67E-02 | O184: 5.10E-02 | P184: -2.98E+00 | Q184: 1.48E-03 | R184: 5.13E-02 | S184: -2.970708009
A185: 3.58E-02 | B185: 4.93E-02 | C185: -3.01E+00 | D185: 1.23E-03 | E185: 5.08E-02 | F185: -2.979514496 | N185: 3.68E-02 | O185: 5.06E-02 | P185: -2.98E+00 | Q185: 1.45E-03 | R185: 5.10E-02 | S185: -2.976669135
A186: 3.60E-02 | B186: 4.87E-02 | C186: -3.02E+00 | D186: 1.24E-03 | E186: 5.05E-02 | F186: -2.986172118 | N186: 3.70E-02 | O186: 4.96E-02 | P186: -3.00E+00 | Q186: 1.45E-03 | R186: 5.07E-02 | S186: -2.98265614
A187: 3.62E-02 | B187: 4.82E-02 | C187: -3.03E+00 | D187: 1.22E-03 | E187: 5.01E-02 | F187: -2.992856413 | N187: 3.72E-02 | O187: 4.97E-02 | P187: -3.00E+00 | Q187: 1.44E-03 | R187: 5.04E-02 | S187: -2.988669275
A188: 3.63E-02 | B188: 4.80E-02 | C188: -3.04E+00 | D188: 1.19E-03 | E188: 4.98E-02 | F188: -2.999569627 | N188: 3.74E-02 | O188: 4.97E-02 | P188: -3.00E+00 | Q188: 1.44E-03 | R188: 5.01E-02 | S188: -2.994708797
A189: 3.65E-02 | B189: 4.77E-02 | C189: -3.04E+00 | D189: 1.18E-03 | E189: 4.95E-02 | F189: -3.006312042 | N189: 3.75E-02 | O189: 4.98E-02 | P189: -3.00E+00 | Q189: 1.44E-03 | R189: 4.97E-02 | S189: -3.000772956
A190: 3.67E-02 | B190: 4.72E-02 | C190: -3.05E+00 | D190: 1.16E-03 | E190: 4.91E-02 | F190: -3.013081912 | N190: 3.77E-02 | O190: 4.92E-02 | P190: -3.01E+00 | Q190: 1.46E-03 | R190: 4.94E-02 | S190: -3.00686198
A191: 3.68E-02 | B191: 4.68E-02 | C191: -3.06E+00 | D191: 1.14E-03 | E191: 4.88E-02 | F191: -3.019877436 | N191: 3.79E-02 | O191: 4.86E-02 | P191: -3.02E+00 | Q191: 1.44E-03 | R191: 4.91E-02 | S191: -3.012978132
A192: 3.70E-02 | B192: 4.64E-02 | C192: -3.07E+00 | D192: 1.16E-03 | E192: 4.85E-02 | F192: -3.026702952 | N192: 3.81E-02 | O192: 4.84E-02 | P192: -3.03E+00 | Q192: 1.42E-03 | R192: 4.88E-02 | S192: -3.019119638
A193: 3.72E-02 | B193: 4.60E-02 | C193: -3.08E+00 | D193: 1.16E-03 | E193: 4.81E-02 | F193: -3.033554605 | N193: 3.82E-02 | O193: 4.80E-02 | P193: -3.04E+00 | Q193: 1.44E-03 | R193: 4.85E-02 | S193: -3.025286736
A194: 3.74E-02 | B194: 4.59E-02 | C194: -3.08E+00 | D194: 1.14E-03 | E194: 4.78E-02 | F194: -3.040434704 | N194: 3.84E-02 | O194: 4.75E-02 | P194: -3.05E+00 | Q194: 1.42E-03 | R194: 4.82E-02 | S194: -3.031479666
A195: 3.75E-02 | B195: 4.51E-02 | C195: -3.10E+00 | D195: 1.12E-03 | E195: 4.75E-02 | F195: -3.047341407 | N195: 3.86E-02 | O195: 4.72E-02 | P195: -3.05E+00 | Q195: 1.42E-03 | R195: 4.79E-02 | S195: -3.037698673
A196: 3.77E-02 | B196: 4.47E-02 | C196: -3.11E+00 | D196: 1.14E-03 | E196: 4.72E-02 | F196: -3.054274939 | N196: 3.87E-02 | O196: 4.75E-02 | P196: =LN(O196) -> -3.05E+00 | Q196: 1.46E-03 | R196: 4.76E-02 | S196: =LN(R196) -> -3.043941906
A197: 3.79E-02 | B197: 4.47E-02 | C197: =LN(B197) -> -3.11E+00 | D197: 1.13E-03 | E197: 4.68E-02 | F197: =LN(E197) -> -3.061237662 | N197: 3.89E-02 | O197: 4.65E-02 | P197: -3.07E+00 | Q197: 1.44E-03 | R197: 4.73E-02 | S197: -3.050211691
A198: 3.81E-02 | B198: 4.46E-02 | C198: -3.11E+00 | D198: 1.13E-03 | E198: 4.65E-02 | F198: -3.0682277 | N198: 3.91E-02 | O198: 4.63E-02 | P198: -3.07E+00 | Q198: 1.43E-03 | R198: 4.71E-02 | S198: -3.056506157
A199: 3.82E-02 | B199: 4.45E-02 | C199: -3.11E+00 | D199: 1.13E-03 | E199: 4.62E-02 | F199: -3.075243123 | N199: 3.93E-02 | O199: 4.62E-02 | P199: -3.07E+00 | Q199: 1.44E-03 | R199: 4.68E-02 | S199: -3.062827661
A200: 3.84E-02 | B200: 4.41E-02 | C200: -3.12E+00 | D200: 1.15E-03 | E200: 4.59E-02 | F200: -3.082286301 | N200: 3.94E-02 | O200: 4.57E-02 | P200: -3.08E+00 | Q200: 1.46E-03 | R200: 4.65E-02 | S200: -3.069172161
... 1306 more rows

Sheet Sup Fig5c
A1: Serial Analyzer
A2: 8_apo_DNMT1 pk1_asc_A_cn | W2: 4_H3_1823_DNMT1 pk1_asc_A_cn
B4: concentration | C4: sa.I(0) | D4: sa.I(0)*10 | E4: sa.Rg | F4: sa.I(0)/conc | G4: sa.I(0)/conc*300 | W4: concentration | X4: sa.I(0) | Y4: sa.I(0)*9 | Z4: sa.Rg | AA4: sa.I(0)/conc | AB4: sa.I(0)/conc*300
A5: 53 | B5: 0.002603026231 | C5: 0.00147941 | D5: =C5*10 -> 0.0147941 | E5: 21.3208 | F5: 0.5683423327 | G5: =F5*300 -> 170.5026998 | V5: 53 | W5: 0.003556152772 | X5: 0.00325194 | Y5: =X5*9 -> 0.02926746 | Z5: 56.372 | AA5: 0.9144545268 | AB5: =AA5*300 -> 274.336358
A6: 54 | B6: 0.0007364937784 | C6: 0.00178001 | D6: =C6*10 -> 0.0178001 | E6: 22.161 | F6: 2.416870383 | G6: =F6*300 -> 725.0611148 | V6: 54 | W6: 0.002882504467 | X6: 0.00136648 | Y6: =X6*9 -> 0.01229832 | Z6: 19.3918 | AA6: 0.4740599766 | AB6: =AA6*300 -> 142.217993
A7: 55 | B7: -0.0002494462811 | C7: 0.00285888 | D7: 0.0285888 | E7: 43.6574 | F7: -11.46090448 | G7: -3438.271344 | V7: 55 | W7: 0.0005561787658 | X7: 0.00214142 | Y7: 0.01927278 | Z7: 46.7895 | AA7: 3.850236887 | AB7: 1155.071066
A8: 56 | B8: -0.0002014219926 | C8: 0.00216097 | D8: 0.0216097 | E8: 41.5661 | F8: -10.72857026 | G8: -3218.571078 | V8: 56 | W8: 0.00127045798 | X8: 0.0040131 | Y8: 0.0361179 | Z8: 55.447 | AA8: 3.158782158 | AB8: 947.6346474
A9: 57 | B9: 0.0008179341321 | C9: 0.00149942 | D9: 0.0149942 | E9: 23.2644 | F9: 1.833179398 | G9: 549.9538195 | V9: 57 | W9: 0.002705690466 | X9: 0.000917492 | Y9: 0.008257428 | Z9: 9.57263 | AA9: 0.3390971774 | AB9: 101.7291532
A10: 58 | B10: 0.001568904357 | C10: 0.00137085 | D10: 0.0137085 | E10: 22.1747 | F10: 0.8737626321 | G10: 262.1287896 | V10: 58 | W10: 0.002071346344 | X10: 0.00141915 | Y10: 0.01277235 | Z10: 20.7403 | AA10: 0.6851340935 | AB10: 205.5402281
A11: 59 | B11: 0.001197577373 | C11: 0.00137905 | D11: 0.0137905 | E11: 23.2278 | F11: 1.151533113 | G11: 345.4599339 | V11: 59 | W11: 0.0004059382043 | X11: 0.00168329 | Y11: 0.01514961 | Z11: 26.0379 | AA11: 4.146665631 | AB11: 1243.999689
A12: 60 | B12: 0.001181407394 | C12: 0.00184963 | D12: 0.0184963 | E12: 25.5752 | F12: 1.56561573 | G12: 469.6847191 | V12: 60 | W12: -0.0002729838768 | X12: 0.00129726 | Y12: 0.01167534 | Z12: 19.9684 | AA12: -4.752148791 | AB12: -1425.644637
A13: 61 | B13: 0.002373185326 | C13: 0.00179365 | D13: 0.0179365 | E13: 29.6945 | F13: 0.7557985381 | G13: 226.7395614 | V13: 61 | W13: -0.0003213258036 | X13: 0.000889316 | Y13: 0.008003844 | Z13: 15.8821 | AA13: -2.767645767 | AB13: -830.2937301
A14: 62 | B14: 0.003099952556 | C14: 0.00174104 | D14: 0.0174104 | E14: 23.3476 | F14: 0.561634402 | G14: 168.4903206 | V14: 62 | W14: 0.0001638018662 | X14: 0.00105505 | Y14: 0.00949545 | Z14: 13.9179 | AA14: 6.441013307 | AB14: 1932.303992
A15: 63 | B15: 0.004787549838 | C15: 0.00206077 | D15: 0.0206077 | E15: 31.0378 | F15: 0.4304435609 | G15: 129.1330683 | V15: 63 | W15: 0.001069391225 | X15: 0.00126757 | Y15: 0.01140813 | Z15: 17.0222 | AA15: 1.185319246 | AB15: 355.5957738
A16: 64 | B16: 0.005915214774 | C16: 0.00151474 | D16: 0.0151474 | E16: 23.2765 | F16: 0.2560752328 | G16: 76.82256983 | V16: 64 | W16: 0.001780138677 | X16: 0.00132873 | Y16: 0.01195857 | Z16: 23.2166 | AA16: 0.7464193756 | AB16: 223.9258127
A17: 65 | B17: 0.004421855218 | C17: 0.00199415 | D17: 0.0199415 | E17: 45.3469 | F17: 0.4509758691 | G17: 135.2927607 | V17: 65 | W17: 0.001507320186 | X17: 0.00124794 | Y17: 0.01123146 | Z17: 12.6336 | AA17: 0.8279196497 | AB17: 248.3758949
A18: 66 | B18: 0.002365743445 | C18: 0.00120407 | D18: 0.0120407 | E18: 16.1562 | F18: 0.5089605141 | G18: 152.6881542 | V18: 66 | W18: 0.0005847544095 | X18: 0.0012082 | Y18: 0.0108738 | Z18: 14.4952 | AA18: 2.066166549 | AB18: 619.8499646
A19: 67 | B19: 0.001762758836 | C19: 0.00142003 | D19: 0.0142003 | E19: 20.4255 | F19: 0.8055724759 | G19: 241.6717428 | V19: 67 | W19: 0.002560771028 | X19: 0.00138589 | Y19: 0.01247301 | Z19: 19.7376 | AA19: 0.541200281 | AB19: 162.3600843
A20: 68 | B20: 0.002116776878 | C20: 0.00179657 | D20: 0.0179657 | E20: 27.4236 | F20: 0.8487290364 | G20: 254.6187109 | V20: 68 | W20: 0.00596712407 | X20: 0.00178485 | Y20: 0.01606365 | Z20: 33.4822 | AA20: 0.2991139415 | AB20: 89.73418246
A21: 69 | B21: 0.001477484511 | C21: 0.0013755 | D21: 0.013755 | E21: 19.0914 | F21: 0.9309742265 | G21: 279.2922679 | V21: 69 | W21: 0.00602099424 | X21: 0.00167508 | Y21: 0.01507572 | Z21: 28.8059 | AA21: 0.2782065442 | AB21: 83.46196325
A22: 70 | B22: 0.0007204481636 | C22: 0.00128119 | D22: 0.0128119 | E22: 20.7271 | F22: 1.778323639 | G22: 533.4970917 | V22: 70 | W22: 0.005084521736 | X22: 0.00135792 | Y22: 0.01222128 | Z22: 15.6463 | AA22: 0.2670693667 | AB22: 80.12081001
A23: 71 | B23: 0.001924329718 | C23: 0.00151099 | D23: 0.0151099 | E23: 23.6588 | F23: 0.7852032766 | G23: 235.560983 | V23: 71 | W23: 0.006973157784 | X23: 0.00193209 | Y23: 0.01738881 | Z23: 41.2606 | AA23: 0.2770753308 | AB23: 83.12259925
A24: 72 | B24: 0.00398768224 | C24: 0.00197483 | D24: 0.0197483 | E24: 25.8867 | F24: 0.4952325389 | G24: 148.5697617 | V24: 72 | W24: 0.008708336675 | X24: 0.00296235 | Y24: 0.02666115 | Z24: 51.8948 | AA24: 0.3401740322 | AB24: 102.0522096
A25: 73 | B25: 0.004848021385 | C25: 0.0015572 | D25: 0.015572 | E25: 24.9634 | F25: 0.3212032036 | G25: 96.36096108 | V25: 73 | W25: 0.009522833033 | X25: 0.00178565 | Y25: 0.01607085 | Z25: 33.0324 | AA25: 0.1875124759 | AB25: 56.25374278
A26: 74 | B26: 0.006911643497 | C26: 0.00154112 | D26: 0.0154112 | E26: 20.6569 | F26: 0.2229744634 | G26: 66.89233902 | V26: 74 | W26: 0.009972949225 | X26: 0.00179214 | Y26: 0.01612926 | Z26: 24.4021 | AA26: 0.1797001027 | AB26: 53.91003081
A27: 75 | B27: 0.008376006966 | C27: 0.00151338 | D27: 0.0151338 | E27: 21.3134 | F27: 0.1806803655 | G27: 54.20410965 | V27: 75 | W27: 0.01097766554 | X27: 0.00328458 | Y27: 0.02956122 | Z27: 47.9951 | AA27: 0.2992056908 | AB27: 89.76170723
A28: 76 | B28: 0.007659282621 | C28: 0.00165077 | D28: 0.0165077 | E28: 26.1955 | F28: 0.2155254064 | G28: 64.65762193 | V28: 76 | W28: 0.01242790626 | X28: 0.00241125 | Y28: 0.02170125 | Z28: 34.6167 | AA28: 0.1940190045 | AB28: 58.20570136
A29: 77 | B29: 0.006381241982 | C29: 0.00193515 | D29: 0.0193515 | E29: 35.7362 | F29: 0.3032560128 | G29: 90.97680383 | V29: 77 | W29: 0.01422186217 | X29: 0.00270364 | Y29: 0.02433276 | Z29: 41.724 | AA29: 0.1901045002 | AB29: 57.03135005
A30: 78 | B30: 0.005843480822 | C30: 0.00148736 | D30: 0.0148736 | E30: 24.6351 | F30: 0.2545332218 | G30: 76.35996653 | V30: 78 | W30: 0.01825977152 | X30: 0.00253644 | Y30: 0.02282796 | Z30: 36.0668 | AA30: 0.1389086385 | AB30: 41.67259154
A31: 79 | B31: 0.007129170672 | C31: 0.00187371 | D31: 0.0187371 | E31: 39.8317 | F31: 0.2628229967 | G31: 78.84689901 | V31: 79 | W31: 0.02472729035 | X31: 0.00349921 | Y31: 0.03149289 | Z31: 49.2362 | AA31: 0.1415120682 | AB31: 42.45362047
A32: 80 | B32: 0.008633347606 | C32: 0.00133604 | D32: 0.0133604 | E32: 18.473 | F32: 0.1547534121 | G32: 46.42602363 | V32: 80 | W32: 0.03142567804 | X32: 0.00396436 | Y32: 0.03567924 | Z32: 47.5854 | AA32: 0.126150341 | AB32: 37.84510229
A33: 81 | B33: 0.009983829889 | C33: 0.00124456 | D33: 0.0124456 | E33: 13.4885 | F33: 0.1246575727 | G33: 37.3972718 | V33: 81 | W33: 0.03753816153 | X33: 0.00411963 | Y33: 0.03707667 | Z33: 38.0954 | AA33: 0.1097451189 | AB33: 32.92353566
A34: 82 | B34: 0.01178608714 | C34: 0.00214065 | D34: 0.0214065 | E34: 36.33 | F34: 0.1816251632 | G34: 54.48754895 | V34: 82 | W34: 0.04444991615 | X34: 0.00455445 | Y34: 0.04099005 | Z34: 38.9527 | AA34: 0.1024625105 | AB34: 30.73875315
A35: 83 | B35: 0.01146447927 | C35: 0.00210221 | D35: 0.0210221 | E35: 39.6449 | F35: 0.1833672469 | G35: 55.01017407 | V35: 83 | W35: 0.05464825432 | X35: 0.00537711 | Y35: 0.04839399 | Z35: 39.0931 | AA35: 0.09839490881 | AB35: 29.51847264
A36: 84 | B36: 0.01075647132 | C36: 0.00182114 | D36: 0.0182114 | E36: 24.8889 | F36: 0.1693064524 | G36: 50.79193573 | V36: 84 | W36: 0.0665241851 | X36: 0.0071555 | Y36: 0.0643995 | Z36: 43.077 | AA36: 0.1075623848 | AB36: 32.26871545
A37: 85 | B37: 0.01265785586 | C37: 0.00218063 | D37: 0.0218063 | E37: 34.1937 | F37: 0.1722748327 | G37: 51.6824498 | V37: 85 | W37: 0.08109383624 | X37: 0.00830422 | Y37: 0.07473798 | Z37: 40.1875 | AA37: 0.102402604 | AB37: 30.7207812
A38: 86 | B38: 0.01500244362 | C38: 0.00248907 | D38: 0.0248907 | E38: 30.3191 | F38: 0.1659109718 | G38: 49.77329154 | V38: 86 | W38: 0.1003692566 | X38: 0.010276 | Y38: 0.092484 | Z38: 40.9315 | AA38: 0.1023819479 | AB38: 30.71458437
A39: 87 | B39: 0.01670703087 | C39: 0.00245431 | D39: 0.0245431 | E39: 31.5739 | F39: 0.1469028231 | G39: 44.07084692 | V39: 87 | W39: 0.1231270999 | X39: 0.0129852 | Y39: 0.1168668 | Z39: 43.1177 | AA39: 0.1054617547 | AB39: 31.6385264
A40: 88 | B40: 0.0198063276 | C40: 0.00224732 | D40: 0.0224732 | E40: 28.1854 | F40: 0.1134647495 | G40: 34.03942486 | V40: 88 | W40: 0.1483270126 | X40: 0.0149036 | Y40: 0.1341324 | Z40: 40.1664 | AA40: 0.1004779894 | AB40: 30.14339683
A41: 89 | B41: 0.02363859838 | C41: 0.00306678 | D41: 0.0306678 | E41: 43.574 | F41: 0.1297361185 | G41: 38.92083555 | V41: 89 | W41: 0.1777351793 | X41: 0.0181048 | Y41: 0.1629432 | Z41: 41.8866 | AA41: 0.1018639083 | AB41: 30.55917249
A42: 90 | B42: 0.02727517584 | C42: 0.00277319 | D42: 0.0277319 | E42: 31.3669 | F42: 0.1016745049 | G42: 30.50235147 | V42: 90 | W42: 0.210519922 | X42: 0.0223576 | Y42: 0.2012184 | Z42: 43.2585 | AA42: 0.1062018254 | AB42: 31.86054762
A43: 91 | B43: 0.03335282113 | C43: 0.00354421 | D43: 0.0354421 | E43: 33.5041 | F43: 0.1062641744 | G43: 31.87925231 | V43: 91 | W43: 0.2480884903 | X43: 0.0267517 | Y43: 0.2407653 | Z43: 42.9021 | AA43: 0.1078312822 | AB43: 32.34938465
A44: 92 | B44: 0.04191591524 | C44: 0.00400056 | D44: 0.0400056 | E44: 34.9405 | F44: 0.0954425062 | G44: 28.63275186 | V44: 92 | W44: 0.2931739299 | X44: 0.0318255 | Y44: 0.2864295 | Z44: 43.8444 | AA44: 0.1085550138 | AB44: 32.56650413
A45: 93 | B45: 0.05045682361 | C45: 0.0049336 | D45: 0.049336 | E45: 37.8656 | F45: 0.09777864811 | G45: 29.33359443 | V45: 93 | W45: 0.3442769994 | X45: 0.0363108 | Y45: 0.3267972 | Z45: 42.2684 | AA45: 0.1054697237 | AB45: 31.6409171
A46: 94 | B46: 0.06036608026 | C46: 0.00597514 | D46: 0.0597514 | E46: 37.2797 | F46: 0.09898174562 | G46: 29.69452369 | V46: 94 | W46: 0.4004169603 | X46: 0.0429346 | Y46: 0.3864114 | Z46: 42.6495 | AA46: 0.1072247289 | AB46: 32.16741866
A47: 95 | B47: 0.0731078385 | C47: 0.00679184 | D47: 0.0679184 | E47: 37.0122 | F47: 0.09290166608 | G47: 27.87049982 | V47: 95 | W47: 0.4618189071 | X47: 0.0502181 | Y47: 0.4519629 | Z47: 43.7839 | AA47: 0.1087398095 | AB47: 32.62194286
A48: 96 | B48: 0.08707487747 | C48: 0.00834399 | D48: 0.0834399 | E48: 38.6721 | F48: 0.09582545785 | G48: 28.74763735 | V48: 96 | W48: 0.5275747117 | X48: 0.057217 | Y48: 0.514953 | Z48: 43.35 | AA48: 0.1084528859 | AB48: 32.53586577
A49: 97 | B49: 0.1020783048 | C49: 0.00979059 | D49: 0.0979059 | E49: 38.3011 | F49: 0.09591254497 | G49: 28.77376349 | V49: 97 | W49: 0.6008584704 | X49: 0.0653982 | Y49: 0.5885838 | Z49: 43.4383 | AA49: 0.1088412716 | AB49: 32.65238149
A50: 98 | B50: 0.120894108 | C50: 0.0119808 | D50: 0.119808 | E50: 39.084 | F50: 0.09910160387 | G50: 29.73048116 | V50: 98 | W50: 0.6802939066 | X50: 0.0739803 | Y50: 0.6658227 | Z50: 43.4748 | AA50: 0.1087475564 | AB50: 32.62426693
A51: 99 | B51: 0.1457879875 | C51: 0.0136593 | D51: 0.136593 | E51: 37.5558 | F51: 0.09369290457 | G51: 28.10787137 | V51: 99 | W51: 0.7631611397 | X51: 0.0826723 | Y51: 0.7440507 | Z51: 43.3816 | AA51: 0.1083287601 | AB51: 32.49862802
A52: 100 | B52: 0.1731687557 | C52: 0.0165596 | D52: 0.165596 | E52: 38.3015 | F52: 0.09562695034 | G52: 28.6880851 | V52: 100 | W52: 0.8487924745 | X52: 0.0919408 | Y52: 0.8274672 | Z52: 43.3697 | AA52: 0.1083195278 | AB52: 32.49585833
A53: 101 | B53: 0.2022700252 | C53: 0.0194908 | D53: 0.194908 | E53: 38.6397 | F53: 0.09636029845 | G53: 28.90808954 | V53: 101 | W53: 0.9356154607 | X53: 0.101071 | Y53: 0.909639 | Z53: 43.2549 | AA53: 0.1080262183 | AB53: 32.40786549
A54: 102 | B54: 0.2351943562 | C54: 0.0232653 | D54: 0.232653 | E54: 39.9392 | F54: 0.09891946549 | G54: 29.67583965 | V54: 102 | W54: 1.02344012 | X54: 0.111356 | Y54: 1.002204 | Z54: 44.0831 | AA54: 0.108805584 | AB54: 32.64167521
A55: 103 | B55: 0.2739023981 | C55: 0.0270431 | D55: 0.270431 | E55: 39.9565 | F55: 0.09873261495 | G55: 29.61978448 | V55: 103 | W55: 1.110190022 | X55: 0.119929 | Y55: 1.079361 | Z55: 43.0737 | AA55: 0.1080256511 | AB55: 32.40769533
A56: 104 | B56: 0.3169598799 | C56: 0.0304563 | D56: 0.304563 | E56: 37.9132 | F56: 0.09608881734 | G56: 28.8266452 | V56: 104 | W56: 1.190819394 | X56: 0.129605 | Y56: 1.166445 | Z56: 43.568 | AA56: 0.1088368233 | AB56: 32.651047
A57: 105 | B57: 0.3617836046 | C57: 0.0348022 | D57: 0.348022 | E57: 37.9927 | F57: 0.09619617792 | G57: 28.85885338 | V57: 105 | W57: 1.267891554 | X57: 0.13811 | Y57: 1.24299 | Z57: 43.5335 | AA57: 0.1089288745 | AB57: 32.67866235
A58: 106 | B58: 0.4088663134 | C58: 0.0400937 | D58: 0.400937 | E58: 38.4832 | F58: 0.09806065867 | G58: 29.4181976 | V58: 106 | W58: 1.341874861 | X58: 0.146505 | Y58: 1.318545 | Z58: 43.6037 | AA58: 0.1091793313 | AB58: 32.75379938
A59: 107 | B59: 0.4629711814 | C59: 0.0462056 | D59: 0.462056 | E59: 39.5416 | F59: 0.09980232432 | G59: 29.9406973 | V59: 107 | W59: 1.40848014 | X59: 0.154071 | Y59: 1.386639 | Z59: 43.6787 | AA59: 0.1093881239 | AB59: 32.81643716
A60: 108 | B60: 0.523434786 | C60: 0.0513251 | D60: 0.513251 | E60: 38.6995 | F60: 0.0980544308 | G60: 29.41632924 | V60: 108 | W60: 1.464638797 | X60: 0.160152 | Y60: 1.441368 | Z60: 43.3519 | AA60: 0.1093457311 | AB60: 32.80371933
A61: 109 | B61: 0.5857053537 | C61: 0.0578496 | D61: 0.578496 | E61: 38.9954 | F61: 0.09876911597 | G61: 29.63073479 | V61: 109 | W61: 1.512285779 | X61: 0.16746 | Y61: 1.50714 | Z61: 44.2602 | AA61: 0.1107330389 | AB61: 33.21991167
A62: 110 | B62: 0.6493825137 | C62: 0.0645649 | D62: 0.645649 | E62: 39.282 | F62: 0.0994250671 | G62: 29.82752013 | V62: 110 | W62: 1.552018552 | X62: 0.169969 | Y62: 1.529721 | Z62: 43.4515 | AA62: 0.1095147991 | AB62: 32.85443974
A63: 111 | B63: 0.7158934396 | C63: 0.0703698 | D63: 0.703698 | E63: 38.6678 | F63: 0.09829647279 | G63: 29.48894184 | V63: 111 | W63: 1.582280421 | X63: 0.173462 | Y63: 1.561158 | Z63: 43.5576 | AA63: 0.1096278496 | AB63: 32.88835489
A64: 112 | B64: 0.782855214 | C64: 0.0774009 | D64: 0.774009 | E64: 38.6211 | F64: 0.09887000638 | G64: 29.66100191 | V64: 112 | W64: 1.602112202 | X64: 0.176409 | Y64: 1.587681 | Z64: 44.0199 | AA64: 0.1101102655 | AB64: 33.03307966
A65: 113 | B65: 0.8468253469 | C65: 0.0836574 | D65: 0.836574 | E65: 38.4391 | F65: 0.09878943788 | G65: 29.63683136 | V65: 113 | W65: 1.612456384 | X65: 0.176916 | Y65: 1.592244 | Z65: 43.8804 | AA65: 0.1097183165 | AB65: 32.91549496
A66: 114 | B66: 0.9080202184 | C66: 0.0911739 | D66: 0.911739 | E66: 39.2435 | F66: 0.1004095483 | G66: 30.1228645 | V66: 114 | W66: 1.614391667 | X66: 0.176592 | Y66: 1.589328 | Z66: 43.6205 | AA66: 0.1093860949 | AB66: 32.81582846
A67: 115 | B67: 0.9705700415 | C67: 0.0966309 | D67: 0.966309 | E67: 38.5302 | F67: 0.09956097537 | G67: 29.86829261 | V67: 115 | W67: 1.607922879 | X67: 0.175766 | Y67: 1.581894 | Z67: 43.6134 | AA67: 0.1093124566 | AB67: 32.79373699
A68: 116 | B68: 1.030893531 | C68: 0.10355 | D68: 1.0355 | E68: 39.1195 | F68: 0.1004468424 | G68: 30.13405272 | V68: 116 | W68: 1.591657235 | X68: 0.173877 | Y68: 1.564893 | Z68: 43.6777 | AA68: 0.1092427416 | AB68: 32.77282248
A69: 117 | B69: 1.08600776 | C69: 0.109937 | D69: 1.09937 | E69: 39.5025 | F69: 0.1012304001 | G69: 30.36912002 | V69: 117 | W69: 1.569133298 | X69: 0.172263 | Y69: 1.550367 | Z69: 43.8597 | AA69: 0.1097822602 | AB69: 32.93467805
A70: 118 | B70: 1.136423311 | C70: 0.113473 | D70: =C70*10 -> 1.13473 | E70: 38.7485 | F70: 0.09985099644 | G70: =F70*300 -> 29.95529893 | V70: 118 | W70: 1.542052372 | X70: 0.168417 | Y70: =X70*9 -> 1.515753 | Z70: 43.506 | AA70: 0.109216135 | AB70: =AA70*300 -> 32.7648405
A71: 119 | B71: 1.180053161 | C71: 0.118959 | D71: 1.18959 | E71: 39.1662 | F71: 0.1008081703 | G71: 30.24245109 | V71: 119 | W71: 1.509464454 | X71: 0.164757 | Y71: 1.482813 | Z71: 43.6958 | AA71: 0.1091493076 | AB71: 32.74479228
A72: 120 | B72: 1.21524435 | C72: 0.122773 | D72: 1.22773 | E72: 39.2262 | F72: 0.1010274189 | G72: 30.30822567 | V72: 120 | W72: 1.472669712 | X72: 0.160158 | Y72: 1.441422 | Z72: 43.3298 | AA72: 0.1087535098 | AB72: 32.62605295
A73: 121 | B73: 1.243808318 | C73: 0.125175 | D73: 1.25175 | E73: 39.1358 | F73: 0.1006384973 | G73: 30.19154918 | V73: 121 | W73: 1.431654347 | X73: 0.157065 | Y73: 1.413585 | Z73: 44.1046 | AA73: 0.1097087438 | AB73: 32.91262315
A74: 122 | B74: 1.26566331 | C74: 0.128197 | D74: 1.28197 | E74: 39.5693 | F74: 0.1012883908 | G74: 30.38651725 | V74: 122 | W74: 1.383377391 | X74: 0.151873 | Y74: 1.366857 | Z74: 44.0024 | AA74: 0.1097842143 | AB74: 32.93526429
A75: 123 | B75: 1.281123282 | C75: 0.128712 | D75: 1.28712 | E75: 39.153 | F75: 0.1004680829 | G75: 30.14042486 | V75: 123 | W75: 1.331433014 | X75: 0.145882 | Y75: 1.312938 | Z75: 43.8572 | AA75: 0.1095676601 | AB75: 32.87029804
A76: 124 | B76: 1.289517324 | C76: 0.129686 | D76: 1.29686 | E76: 39.0552 | F76: 0.1005694127 | G76: 30.17082382 | V76: 124 | W76: 1.280713848 | X76: 0.139508 | Y76: 1.255572 | Z76: 43.2767 | AA76: 0.1089298755 | AB76: 32.67896266
A77: 125 | B77: 1.290503156 | C77: 0.128993 | D77: 1.28993 | E77: 38.6261 | F77: 0.09995558664 | G77: 29.98667599 | V77: 125 | W77: 1.230582207 | X77: 0.134561 | Y77: 1.211049 | Z77: 43.4794 | AA77: 0.1093474286 | AB77: 32.80422857
A78: 126 | B78: 1.283687308 | C78: 0.128939 | D78: 1.28939 | E78: 38.8872 | F78: 0.1004442431 | G78: 30.13327293 | V78: 126 | W78: 1.179332493 | X78: 0.128154 | Y78: 1.153386 | Z78: 43.168 | AA78: 0.1086665557 | AB78: 32.5999667
A79: 127 | B79: 1.27177389 | C79: 0.12815 | D79: 1.2815 | E79: 39.3357 | F79: 0.1007647672 | G79: 30.22943017 | V79: 127 | W79: 1.12537994 | X79: 0.122317 | Y79: 1.100853 | Z79: 43.4546 | AA79: 0.1086895151 | AB79: 32.60685453
A80: 128 | B80: 1.255186783 | C80: 0.125272 | D80: 1.25272 | E80: 38.8599 | F80: 0.09980347281 | G80: 29.94104184 | V80: 128 | W80: 1.069501474 | X80: 0.116231 | Y80: 1.046079 | Z80: 43.592 | AA80: 0.1086777371 | AB80: 32.60332112
A81: 129 | B81: 1.232088965 | C81: 0.12432 | D81: 1.2432 | E81: 39.4017 | F81: 0.1009018046 | G81: 30.27054139 | V81: 129 | W81: 1.012799719 | X81: 0.110938 | Y81: 0.998442 | Z81: 43.7905 | AA81: 0.1095359704 | AB81: 32.86079112
A82: 130 | B82: 1.203984164 | C82: 0.121821 | D82: 1.21821 | E82: 39.3041 | F82: 0.1011815634 | G82: 30.35446902 | V82: 130 | W82: 0.954746433 | X82: 0.103279 | Y82: 0.929511 | Z82: 43.0278 | AA82: 0.1081742716 | AB82: 32.45228149
A83: 131 | B83: 1.175025483 | C83: 0.118532 | D83: 1.18532 | E83: 39.0709 | F83: 0.1008761101 | G83: 30.26283302 | V83: 131 | W83: 0.8954139847 | X83: 0.0972693 | Y83: 0.8754237 | Z83: 43.04 | AA83: 0.1086305348 | AB83: 32.58916043
A84: 132 | B84: 1.142617275 | C84: 0.114558 | D84: 1.14558 | E84: 38.894 | F84: 0.1002592929 | G84: 30.07778786 | V84: 132 | W84: 0.834413503 | X84: 0.0902564 | Y84: 0.8123076 | Z84: 43.0307 | AA84: 0.1081674729 | AB84: 32.45024188
A85: 133 | B85: 1.106238365 | C85: 0.110422 | D85: 1.10422 | E85: 38.7825 | F85: 0.09981754703 | G85: 29.94526411 | V85: 133 | W85: 0.7726631646 | X85: 0.0833402 | Y85: 0.7500618 | Z85: 42.6212 | AA85: 0.1078609721 | AB85: 32.35829162
A86: 134 | B86: 1.066737271 | C86: 0.106876 | D86: 1.06876 | E86: 39.2503 | F86: 0.1001896183 | G86: 30.0568855 | V86: 134 | W86: 0.7124315555 | X86: 0.0772032 | Y86: 0.6948288 | Z86: 42.533 | AA86: 0.1083657783 | AB86: 32.50973349
A87: 135 | B87: 1.024429196 | C87: 0.10249 | D87: 1.0249 | E87: 39.0393 | F87: 0.1000459577 | G87: 30.01378731 | V87: 135 | W87: 0.6539337264 | X87: 0.0708504 | Y87: 0.6376536 | Z87: 42.6667 | AA87: 0.1083449242 | AB87: 32.50347725
A88: 136 | B88: 0.978685176 | C88: 0.0975106 | D88: 0.975106 | E88: 38.5962 | F88: 0.0996342873 | G88: 29.89028619 | V88: 136 | W88: 0.5961668096 | X88: 0.0650255 | Y88: 0.5852295 | Z88: 42.9608 | AA88: 0.1090726605 | AB88: 32.72179814
A89: 137 | B89: 0.9319512515 | C89: 0.0933096 | D89: 0.933096 | E89: 38.6985 | F89: 0.1001228335 | G89: 30.03685005 | V89: 137 | W89: 0.5409165701 | X89: 0.0590854 | Y89: 0.5317686 | Z89: 42.8238 | AA89: 0.1092320022 | AB89: 32.76960067
A90: 138 | B90: 0.8855454768 | C90: 0.0882186 | D90: 0.882186 | E90: 38.6108 | F90: 0.09962063193 | G90: 29.88618958 | V90: 138 | W90: 0.4890420211 | X90: 0.0532733 | Y90: 0.4794597 | Z90: 42.9114 | AA90: 0.1089339928 | AB90: 32.68019783
A91: 139 | B91: 0.838758364 | C91: 0.0835122 | D91: 0.835122 | E91: 38.6409 | F91: 0.09956645869 | G91: 29.86993761 | V91: 139 | W91: 0.4403094102 | X91: 0.0474301 | Y91: 0.4268709 | Z91: 42.8885 | AA91: 0.1077199326 | AB91: 32.31597979
A92: 140 | B92: 0.7880118188 | C92: 0.0784676 | D92: 0.784676 | E92: 38.708 | F92: 0.0995766791 | G92: 29.87300373 | V92: 140 | W92: 0.3938151423 | X92: 0.0413346 | Y92: 0.3720114 | Z92: 41.835 | AA92: 0.1049593974 | AB92: 31.48781921
A93: 141 | B93: 0.7361151478 | C93: 0.0735319 | D93: 0.735319 | E93: 38.7336 | F93: 0.09989184466 | G93: 29.9675534 | V93: 141 | W93: 0.3501301057 | X93: 0.0373237 | Y93: 0.3359133 | Z93: 42.1378 | AA93: 0.1065995166 | AB93: 31.97985497
A94: 142 | B94: 0.6869455132 | C94: 0.0690102 | D94: 0.690102 | E94: 39.0495 | F94: 0.1004594959 | G94: 30.13784878 | V94: 142 | W94: 0.3096992081 | X94: 0.0328447 | Y94: 0.2956023 | Z94: 42.3575 | AA94: 0.1060535486 | AB94: 31.81606457
A95: 143 | B95: 0.6374473012 | C95: 0.0640037 | D95: 0.640037 | E95: 39.1377 | F95: 0.1004062609 | G95: 30.12187826 | V95: 143 | W95: 0.2712817311 | X95: 0.0287675 | Y95: 0.2589075 | Z95: 41.7426 | AA95: 0.1060428945 | AB95: 31.81286836
A96: 144 | B96: 0.5868274139 | C96: 0.0588217 | D96: 0.588217 | E96: 38.601 | F96: 0.1002367964 | G96: 30.07103892 | V96: 144 | W96: 0.2358342764 | X96: 0.024753 | Y96: 0.222777 | Z96: 41.5176 | AA96: 0.1049592976 | AB96: 31.48778928
A97: 145 | B97: 0.5387940726 | C97: 0.0537976 | D97: 0.537976 | E97: 39.1089 | F97: 0.099848166 | G97: 29.9544498 | V97: 145 | W97: 0.2055849455 | X97: 0.0214748 | Y97: 0.1932732 | Z97: 42.0477 | AA97: 0.1044570649 | AB97: 31.33711948
A98: 146 | B98: 0.4916427622 | C98: 0.0493921 | D98: 0.493921 | E98: 39.2672 | F98: 0.1004633929 | G98: 30.13901788 | V98: 146 | W98: 0.1778347239 | X98: 0.0192391 | Y98: 0.1731519 | Z98: 42.6853 | AA98: 0.1081852834 | AB98: 32.45558502
A99: 147 | B99: 0.4451659119 | C99: 0.0446682 | D99: 0.446682 | E99: 39.2562 | F99: 0.100340567 | G99: 30.10217009 | V99: 147 | W99: 0.1534791554 | X99: 0.0160917 | Y99: 0.1448253 | Z99: 41.6376 | AA99: 0.1048461595 | AB99: 31.45384784
A100: 148 | B100: 0.4003791992 | C100: 0.0393187 | D100: 0.393187 | E100: 38.3178 | F100: 0.09820365313 | G100: 29.46109594 | V100: 148 | W100: 0.1327891961 | X100: 0.0140709 | Y100: 0.1266381 | Z100: 42.337 | AA100: 0.105964193 | AB100: 31.7892579
A101: 149 | B101: 0.3570447706 | C101: 0.0358964 | D101: 0.358964 | E101: 39.4758 | F101: 0.1005375319 | G101: 30.16125956 | V101: 149 | W101: 0.1138511505 | X101: 0.0120071 | Y101: 0.1080639 | Z101: 41.8717 | AA101: 0.1054631415 | AB101: 31.63894245
A102: 150 | B102: 0.3172208612 | C102: 0.0315083 | D102: 0.315083 | E102: 38.8067 | F102: 0.09932606538 | G102: 29.79781961 | V102: 150 | W102: 0.0983751894 | X102: 0.0101031 | Y102: 0.0909279 | Z102: 40.2346 | AA102: 0.1026996752 | AB102: 30.80990256
A103: 151 | B103: 0.2811963583 | C103: 0.0283423 | D103: 0.283423 | E103: 39.6297 | F103: 0.1007918458 | G103: 30.23755375 | V103: 151 | W103: 0.08495226122 | X103: 0.00891358 | Y103: 0.08022222 | Z103: 42.098 | AA103: 0.1049245761 | AB103: 31.47737284
A104: 152 | B104: 0.2478252307 | C104: 0.0240954 | D104: 0.240954 | E104: 38.0904 | F104: 0.09722738857 | G104: 29.16821657 | V104: 152 | W104: 0.07154723589 | X104: 0.00745922 | Y104: 0.06713298 | Z104: 41.4813 | AA104: 0.1042558794 | AB104: 31.27676383
A105: 153 | B105: 0.2167236507 | C105: 0.0207426 | D105: 0.207426 | E105: 37.9677 | F105: 0.09570990489 | G105: 28.71297147 | V105: 153 | W105: 0.06115838929 | X105: 0.00651102 | Y105: 0.05859918 | Z105: 41.2443 | AA105: 0.1064616004 | AB105: 31.93848011
A106: 154 | B106: 0.1881785966 | C106: 0.01837 | D106: 0.1837 | E106: 37.8994 | F106: 0.09762002869 | G106: 29.28600861 | V106: 154 | W106: 0.05198145223 | X106: 0.00556582 | Y106: 0.05009238 | Z106: 42.7258 | AA106: 0.1070731917 | AB106: 32.12195751
A107: 155 | B107: 0.1616061255 | C107: 0.0156692 | D107: 0.156692 | E107: 37.9835 | F107: 0.09695919601 | G107: 29.0877588 | V107: 155 | W107: 0.04231532662 | X107: 0.00482185 | Y107: 0.04339665 | Z107: 40.9176 | AA107: 0.113950438 | AB107: 34.18513139
A108: 156 | B108: 0.1373435388 | C108: 0.0136692 | D108: 0.136692 | E108: 38.6657 | F108: 0.09952561382 | G108: 29.85768415 | V108: 156 | W108: 0.034303971 | X108: 0.00363073 | Y108: 0.03267657 | Z108: 36.0364 | AA108: 0.1058399332 | AB108: 31.75197997
A109: 157 | B109: 0.1168322721 | C109: 0.011354 | D109: 0.11354 | E109: 38.2494 | F109: 0.09718205249 | G109: 29.15461575 | V109: 157 | W109: 0.02916815843 | X109: 0.00384053 | Y109: 0.03456477 | Z109: 40.5585 | AA109: 0.1316685799 | AB109: 39.50057398
A110: 158 | B110: 0.1000382882 | C110: 0.00972471 | D110: 0.0972471 | E110: 37.5165 | F110: 0.09720988011 | G110: 29.16296403 | V110: 158 | W110: 0.02654237048 | X110: 0.00365289 | Y110: 0.03287601 | Z110: 44.7863 | AA110: 0.1376248592 | AB110: 41.28745775
A111: 159 | B111: 0.08563049957 | C111: 0.00839338 | D111: 0.0839338 | E111: 37.8024 | F111: 0.09801858032 | G111: 29.4055741 | V111: 159 | W111: 0.02418235607 | X111: 0.00302458 | Y111: 0.02722122 | Z111: 41.2822 | AA111: 0.1250738344 | AB111: 37.52215033
A112: 160 | B112: 0.07181043449 | C112: 0.00751378 | D112: 0.0751378 | E112: 42.4487 | F112: 0.1046335404 | G112: 31.39006213 | V112: 160 | W112: 0.02015285794 | X112: 0.00328186 | Y112: 0.02953674 | Z112: 47.5342 | AA112: 0.1628483667 | AB112: 48.85451001
A113: 161 | B113: 0.05818644069 | C113: 0.00561522 | D113: 0.0561522 | E113: 33.6949 | F113: 0.09650392657 | G113: 28.95117797 | V113: 161 | W113: 0.01587983451 | X113: 0.00229351 | Y113: 0.02064159 | Z113: 28.434 | AA113: 0.144429087 | AB113: 43.32872609
A114: 162 | B114: 0.04739367984 | C114: 0.00514417 | D114: 0.0514417 | E114: 38.057 | F114: 0.1085412658 | G114: 32.56237974 | V114: 162 | W114: 0.01344952121 | X114: 0.00183299 | Y114: 0.01649691 | Z114: 27.5724 | AA114: 0.1362866358 | AB114: 40.88599075
A115: 163 | B115: 0.04103905343 | C115: 0.00459894 | D115: 0.0459894 | E115: 40.8883 | F115: 0.1120625262 | G115: 33.61875786 | V115: 163 | W115: 0.01229402441 | X115: 0.00208726 | Y115: 0.01878534 | Z115: 30.8869 | AA115: 0.1697784168 | AB115: 50.93352505
A116: 164 | B116: 0.03692640299 | C116: 0.00434953 | D116: 0.0434953 | E116: 40.4003 | F116: 0.1177891603 | G116: 35.33674808 | V116: 164 | W116: 0.01105327863 | X116: 0.0018663 | Y116: 0.0167967 | Z116: 27.8204 | AA116: 0.1688458295 | AB116: 50.65374886
A117: 165 | B117: 0.03121599321 | C117: 0.00297824 | D117: 0.0297824 | E117: 33.1106 | F117: 0.0954075041 | G117: 28.62225123 | V117: 165 | W117: 0.009492865338 | X117: 0.00224149 | Y117: 0.02017341 | Z117: 42.9045 | AA117: 0.2361236487 | AB117: 70.8370946
A118: 166 | B118: 0.02575890246 | C118: 0.00280048 | D118: 0.0280048 | E118: 37.533 | F118: 0.1087189178 | G118: 32.61567535 | V118: 166 | W118: 0.006519308138 | X118: 0.00170853 | Y118: 0.01537677 | Z118: 21.2944 | AA118: 0.262072288 | AB118: 78.62168641
A119: 167 | B119: 0.0224229286 | C119: 0.0024745 | D119: 0.024745 | E119: 31.1767 | F119: 0.11035579 | G119: 33.10673701 | V119: 167 | W119: 0.003953755014 | X119: 0.00209217 | Y119: 0.01882953 | Z119: 35.0632 | AA119: 0.5291602521 | AB119: 158.7480756
A120: 168 | B120: 0.0193022708 | C120: 0.00241237 | D120: 0.0241237 | E120: 31.5876 | F120: 0.1249785595 | G120: 37.49356785 | V120: 168 | W120: 0.003828486247 | X120: 0.00186337 | Y120: 0.01677033 | Z120: 45.0411 | AA120: 0.4867119483 | AB120: 146.0135845
A121: 169 | B121: 0.01421435468 | C121: 0.00170548 | D121: 0.0170548 | E121: 27.0802 | F121: 0.1199829354 | G121: 35.99488063 | V121: 169 | W121: 0.004876140827 | X121: 0.00163087 | Y121: 0.01467783 | Z121: 25.7794 | AA121: 0.3344591672 | AB121: 100.3377502
A122: 170 | B122: 0.009969873877 | C122: 0.0027948 | D122: 0.027948 | E122: 45.2267 | F122: 0.2803245091 | G122: 84.09735272 | V122: 170 | W122: 0.005149668877 | X122: 0.00202527 | Y122: 0.01822743 | Z122: 32.226 | AA122: 0.393281597 | AB122: 117.9844791
A123: 171 | B123: 0.008957410474 | C123: 0.00263056 | D123: 0.0263056 | E123: 40.2556 | F123: 0.2936741604 | G123: 88.10224811 | V123: 171 | W123: 0.004377811104 | X123: 0.00190147 | Y123: 0.01711323 | Z123: 32.7866 | AA123: 0.4343426326 | AB123: 130.3027898
A124: 172 | B124: 0.00947848704 | C124: 0.00174965 | D124: 0.0174965 | E124: 28.3323 | F124: 0.1845916962 | G124: 55.37750886 | V124: 172 | W124: 0.002343211657 | X124: 0.00194083 | Y124: 0.01746747 | Z124: 35.3561 | AA124: 0.8282777162 | AB124: 248.4833149
A125: 173 | B125: 0.00849489102 | C125: 0.00148069 | D125: 0.0148069 | E125: 21.029 | F125: 0.1743035898 | G125: 52.29107695 | V125: 173 | W125: 0.001622893913 | X125: 0.00213192 | Y125: 0.01918728 | Z125: 34.6243 | AA125: 1.313653334 | AB125: 394.0960003
A126: 174 | B126: 0.00693576481 | C126: 0.00203954 | D126: 0.0203954 | E126: 39.6153 | F126: 0.2940612976 | G126: 88.21838929 | V126: 174 | W126: 0.002408315403 | X126: 0.00235717 | Y126: 0.02121453 | Z126: 41.2316 | AA126: 0.9787629962 | AB126: 293.6288989
A127: 175 | B127: 0.006534013576 | C127: 0.00183115 | D127: 0.0183115 | E127: 36.1697 | F127: 0.280248882 | G127: 84.07466461 | V127: 175 | W127: 0.004220872509 | X127: 0.00234408 | Y127: 0.02109672 | Z127: 34.1037 | AA127: 0.5553543717 | AB127: 166.6063115
A128: 176 | B128: 0.00617461883 | C128: 0.00162404 | D128: 0.0162404 | E128: 25.201 | F128: 0.2630186647 | G128: 78.90559942 | V128: 176 | W128: 0.006506645159 | X128: 0.00186028 | Y128: 0.01674252 | Z128: 40.2662 | AA128: 0.2859046336 | AB128: 85.77139007
A129: 177 | B129: 0.004467954825 | C129: 0.00154786 | D129: 0.0154786 | E129: 27.0869 | F129: 0.346435911 | G129: 103.9307733 | V129: 177 | W129: 0.007552077839 | X129: 0.00157739 | Y129: 0.01419651 | Z129: 27.8412 | AA129: 0.2088683451 | AB129: 62.66050352
A130: 178 | B130: 0.003702845081 | C130: 0.00288636 | D130: 0.0288636 | E130: 45.8233 | F130: 0.7794979096 | G130: 233.8493729 | V130: 178 | W130: 0.006628062896 | X130: 0.00230853 | Y130: 0.02077677 | Z130: 46.6255 | AA130: 0.3482963328 | AB130: 104.4888998
A131: 179 | B131: 0.004010616923 | C131: 0.00101485 | D131: 0.0101485 | E131: 10.1169 | F131: 0.2530408712 | G131: 75.91226135 | V131: 179 | W131: 0.005811453113 | X131: 0.00112835 | Y131: 0.01015515 | Z131: 9.01975 | AA131: 0.1941597012 | AB131: 58.24791036
A132: 180 | B132: 0.004495324991 | C132: 0.00237392 | D132: 0.0237392 | E132: 44.7721 | F132: 0.5280864019 | G132: 158.4259206 | V132: 180 | W132: 0.005314509382 | X132: 0.00086675 | Y132: 0.00780075 | Z132: 11.8317 | AA132: 0.1630912541 | AB132: 48.92737623
A133: 181 | B133: 0.004861890022 | C133: 0.00127138 | D133: 0.0127138 | E133: 16.9309 | F133: 0.2614991278 | G133: 78.44973833 | V133: 181 | W133: 0.004535297885 | X133: 0.00153456 | Y133: 0.01381104 | Z133: 20.7322 | AA133: 0.338359252 | AB133: 101.5077756
A134: 182 | B134: 0.003924725438 | C134: 0.00135882 | D134: =C134*10 -> 0.0135882 | E134: 18.3034 | F134: 0.3462203972 | G134: =F134*300 -> 103.8661192 | V134: 182 | W134: 0.003477009237 | X134: 0.00259017 | Y134: =X134*9 -> 0.02331153 | Z134: 51.1328 | AA134: 0.7449419382 | AB134: =AA134*300 -> 223.4825815
A135: 183 | B135: 0.002480703615 | C135: 0.00220312 | D135: 0.0220312 | E135: 38.214 | F135: 0.8881028699 | G135: 266.430861 | V135: 183 | W135: 0.002388912386 | X135: 0.0015803 | Y135: 0.0142227 | Z135: 29.4297 | AA135: 0.6615144236 | AB135: 198.4543271
A136: 184 | B136: 0.001439289672 | C136: 0.00159979 | D136: 0.0159979 | E136: 28.5625 | F136: 1.111513569 | G136: 333.4540707 | V136: 184 | W136: 0.000443325204 | X136: 0.00184676 | Y136: 0.01662084 | Z136: 34.3499 | AA136: 4.165700446 | AB136: 1249.710134
A137: 185 | B137: 0.0003398483995 | C137: 0.000902345 | D137: 0.00902345 | E137: 16.8611 | F137: 2.655139767 | G137: 796.54193 | V137: 185 | W137: -0.002142117189 | X137: 0.00283053 | Y137: 0.02547477 | Z137: 53.1803 | AA137: -1.321370285 | AB137: -396.4110855
A138: 186 | B138: 0.000743659878 | C138: 0.00197533 | D138: 0.0197533 | E138: 30.221 | F138: 2.656227744 | G138: 796.8683232 | V138: 186 | W138: -0.002276500368 | X138: 0.00132787 | Y138: 0.01195083 | Z138: 15.9828 | AA138: -0.5832944368 | AB138: -174.988331
A139: 187 | B139: 0.002712202654 | C139: 0.00340602 | D139: 0.0340602 | E139: 52.6341 | F139: 1.255813239 | G139: 376.7439717 | V139: 187 | W139: 0.000538256277 | X139: 0.00166745 | Y139: 0.01500705 | Z139: 23.1352 | AA139: 3.097873766 | AB139: 929.3621298
A140: 188 | B140: 0.004292176275 | C140: 0.00165403 | D140: 0.0165403 | E140: 23.2776 | F140: 0.3853592896 | G140: 115.6077869 | V140: 188 | W140: 0.002528723367 | X140: 0.00180696 | Y140: 0.01626264 | Z140: 29.8026 | AA140: 0.7145740114 | AB140: 214.3722034
A141: 189 | B141: 0.004794362101 | C141: 0.00176805 | D141: 0.0176805 | E141: 27.217 | F141: 0.3687769015 | G141: 110.6330704 | V141: 189 | W141: 0.002643484431 | X141: 0.00201043 | Y141: 0.01809387 | Z141: 36.7434 | AA141: 0.7605227315 | AB141: 228.1568194
A142: 190 | B142: 0.005017656255 | C142: 0.0017198 | D142: 0.017198 | E142: 26.3791 | F142: 0.3427496649 | G142: 102.8248995 | V142: 190 | W142: 0.002995826297 | X142: 0.0018352 | Y142: 0.0165168 | Z142: 34.1515 | AA142: 0.6125855834 | AB142: 183.775675
A143: 191 | B143: 0.004246071 | C143: 0.0013958 | D143: 0.013958 | E143: 20.8664 | F143: 0.3287274282 | G143: 98.61822846 | V143: 191 | W143: 0.002617855327 | X143: 0.00195329 | Y143: 0.01757961 | Z143: 32.9638 | AA143: 0.7461413088 | AB143: 223.8423926
A144: 192 | B144: 0.003209574954 | C144: 0.00115474 | D144: 0.0115474 | E144: 12.3541 | F144: 0.3597797268 | G144: 107.933918 | V144: 192 | W144: 0.0005814464851 | X144: 0.00173132 | Y144: 0.01558188 | Z144: 32.4853 | AA144: 2.977608506 | AB144: 893.2825518
A145: 193 | B145: 0.001869687059 | C145: 0.00139999 | D145: 0.0139999 | E145: 20.1677 | F145: 0.7487830616 | G145: 224.6349185 | V145: 193 | W145: 0.0003776710492 | X145: 0.00181082 | Y145: 0.01629738 | Z145: 21.5417 | AA145: 4.794701642 | AB145: 1438.410493
A146: 194 | B146: 0.0007370961284 | C146: 0.00161765 | D146: 0.0161765 | E146: 24.5361 | F146: 2.194625555 | G146: 658.3876666 | V146: 194 | W146: 0.001603969583 | X146: 0.00160553 | Y146: 0.01444977 | Z146: 26.8915 | AA146: 1.000972847 | AB146: 300.2918541
A147: 195 | B147: 0.0003763854237 | C147: 0.00169489 | D147: 0.0169489 | E147: 34.142 | F147: 4.503070239 | G147: 1350.921072 | V147: 195 | W147: 0.0006582753609 | X147: 0.00173748 | Y147: 0.01563732 | Z147: 36.4281 | AA147: 2.639442554 | AB147: 791.8327663
A148: 196 | B148: 0.000710488414 | C148: 0.00153353 | D148: 0.0153353 | E148: 24.834 | F148: 2.158416618 | G148: 647.5249855 | V148: 196 | W148: -0.001180581218 | X148: 0.00177614 | Y148: 0.01598526 | Z148: 33.3942 | AA148: -1.504462356 | AB148: -451.3387067
A149: 197 | B149: 0.0007763980117 | C149: 0.00146894 | D149: 0.0146894 | E149: 22.1419 | F149: 1.891993511 | G149: 567.5980532 | V149: 197 | W149: 0.0005689419465 | X149: 0.00112335 | Y149: 0.01011015 | Z149: 12.0916 | AA149: 1.974454524 | AB149: 592.3363571
A150: 198 | B150: 0.0008366145773 | C150: 0.00124189 | D150: 0.0124189 | E150: 15.4552 | F150: 1.484423095 | G150: 445.3269284 | V150: 198 | W150: 0.004108257023 | X150: 0.00153469 | Y150: 0.01381221 | Z150: 19.2453 | AA150: 0.373562314 | AB150: 112.0686942
A151: 199 | B151: 0.001817955874 | C151: 0.00175718 | D151: 0.0175718 | E151: 20.915 | F151: 0.9665691146 | G151: 289.9707344 | V151: 199 | W151: 0.004090929588 | X151: 0.00253012 | Y151: 0.02277108 | Z151: 55.2048 | AA151: 0.618470679 | AB151: 185.5412037
A152: 200 | B152: 0.00326612726 | C152: 0.000994444 | D152: 0.00994444 | E152: 16.4138 | F152: 0.3044719084 | G152: 91.34157253 | V152: 200 | W152: 0.004090929588 | X152: 0.00170013 | Y152: 0.01530117 | Z152: 46.2771 | AA152: 0.4155852511 | AB152: 124.6755753
A153: 201 | B153: 0.005380473312 | C153: 0.00143518 | D153: 0.0143518 | E153: 22.2525 | F153: 0.2667386151 | G153: 80.02158454
A154: 202 | B154: 0.005428358919 | C154: 0.00194895 | D154: 0.0194895 | E154: 31.8232 | F154: 0.3590311601 | G154: 107.709348

Sheet Sup Fig5d, e
A1: Serial Analyzer
A2: 8_apo_DNMT1 pk1_asc_A_cn | AE2: 4_H3Ub21823_DNMT1 pk1_asc_A_cn
A3: Guinier | D3: Pr | AE3: Guinier | AH3: Pr
A4: points | B4: 11-158 | D4: points | E4: 11-1151 | F4: Dmax | G4: 139.25 Å | H4: Prod Vol | I4: 247275 A | AE4: points | AF4: 13-144 | AH4: points | AI4: 13-1029 | AJ4: Dmax | AK4: 155.44 | AL4: Prod Vol | AM4: 276939
A5: qrange | B5: 0.30-1.3 | D5: qrange | E5: 0.0069-0.2074 | AE5: qrange | AF5: 0.31-1.3 | AH5: qrange | AI5: 0.0078-0.2048
A6: Rg | B6: 39.03 ± 0.31 | D6: Rg | E6: 0.3956E ± 0.2837E | AE6: Rg | AF6: 43.67 ± 0.29 | AH6: Rg | AI6: 0.4647E+02 ± 0.1692E+00
A7: I0 | B7: 0.1 | C7: ± 0.00048 | D7: I0 | E7: 0.1007 | AE7: I0 | AF7: 0.11 | AG7: ± 0.00045 | AH7: I0 | AI7: 1.117E-01 | AJ7: ± 0.3670E-03
A9: points | B9: q | C9: q2 | D9: I(q) | E9: LN Iq | F9: LN Iq/I0 | G9: r | H9: Pr | I9: Pr/I0 | J9: Error/I0 | K9: Error | L9: r手動で直した | AE9: points | AF9: q | AG9: q2 | AH9: I(q) | AI9: LN Iq | AJ9: LN Iq/I0 | AK9: r | AL9: Pr | AM9: Pr/I0 | AN9: Error/I0 | AO9: Error | AQ9: r手動で直した
A10: 1 | B10: 6.05E-03 | C10: =B10^2 -> 3.67E-05 | D10: 9.97E-02 | E10: =LN(D10) -> -2.306002794 | F10: =LN(D10/$B$7) -> -0.003417700817 | G10: 0.0000E | H10: 0.0000E | I10: =H10/$E$7 ->  | K10: 0.0000E | L10: 0 | AE10: 1 | AF10: 5.02E-03 | AG10: =AF10^2 -> 2.52E-05 | AH10: 1.13E-01 | AI10: =LN(AH10) -> -2.181284331 | AJ10: =LN(AH10/$AF$7) -> 0.02599058199 | AK10: 0.0000E | AL10: 0.0000E | AM10: =AL10/$AI$7 ->  | AO10: 0.0000E | AQ10: 0.00E+00
A11: 2 | B11: 6.23E-03 | C11: =B11^2 -> 3.88E-05 | D11: 9.86E-02 | E11: =LN(D11) -> -2.316789511 | F11: =LN(D11/$B$7) -> -0.01420441813 | G11: 0.5461E | H11: 5.45E-07 | I11: =H11/$E$7 -> 5.408142999e-06 | K11: 7.34E-08 | L11: 0.5461 | AE11: 2 | AF11: 5.19E-03 | AG11: =AF11^2 -> 2.69E-05 | AH11: 1.12E-01 | AI11: =LN(AH11) -> -2.189902679 | AJ11: =LN(AH11/$AF$7) -> 0.01737223371 | AK11: 0.6120E | AL11: 8.74E-07 | AM11: =AL11/$AI$7 -> 7.83E-06 | AO11: 2.68E-08 | AQ11: 6.12E-01
A12: 3 | B12: 6.40E-03 | C12: 4.10E-05 | D12: 9.94E-02 | E12: -2.308726213 | F12: -0.006141119779 | G12: 0.1092E | H12: 1.20E-06 | I12: 1.193644489e-05 | K12: 1.37E-07 | L12: 1.092 | AE12: 3 | AF12: 5.36E-03 | AG12: 2.88E-05 | AH12: 1.10E-01 | AI12: -2.204179912 | AJ12: 0.003095001108 | AK12: 0.1224E | AL12: 1.85E-06 | AM12: =AL12/$AI$7 -> 1.66E-05 | AO12: 5.07E-08 | AQ12: 1.22E+00
A13: 4 | B13: 6.57E-03 | C13: 4.32E-05 | D13: 9.97E-02 | E13: -2.306021313 | F13: -0.003436220036 | G13: 0.1638E | H13: 1.97E-06 | I13: 1.958291956e-05 | K13: 1.90E-07 | L13: 1.638 | AE13: 4 | AF13: 5.54E-03 | AG13: 3.06E-05 | AH13: 1.11E-01 | AI13: -2.197734688 | AJ13: 0.009540225384 | AK13: 0.1836E | AL13: 2.93E-06 | AM13: 2.62E-05 | AO13: 7.16E-08 | AQ13: 1.84E+00
A14: 5 | B14: 6.75E-03 | C14: 4.55E-05 | D14: 9.75E-02 | E14: -2.32827192 | F14: -0.02568682671 | G14: 0.2184E | H14: 2.85E-06 | I14: 2.833167825e-05 | K14: 2.34E-07 | L14: 2.184 | AE14: 5 | AF14: 5.71E-03 | AG14: 3.26E-05 | AH14: 1.10E-01 | AI14: -2.207308184 | AJ14: -3.327088082e-05 | AK14: 0.2448E | AL14: 4.10E-06 | AM14: 3.67E-05 | AO14: 8.95E-08 | AQ14: 2.45E+00
A15: 6 | B15: 6.92E-03 | C15: 4.79E-05 | D15: 9.73E-02 | E15: -2.330120575 | F15: -0.02753548243 | G15: 0.2730E | H15: 3.85E-06 | I15: 3.818272095e-05 | K15: 2.68E-07 | L15: 2.73 | AE15: 6 | AF15: 5.88E-03 | AG15: 3.46E-05 | AH15: 1.12E-01 | AI15: -2.192646199 | AJ15: 0.01462871417 | AK15: 0.3060E | AL15: 5.38E-06 | AM15: 4.82E-05 | AO15: 1.05E-07 | AQ15: 3.06E+00
A16: 7 | B16: 7.09E-03 | C16: 5.03E-05 | D16: 9.68E-02 | E16: -2.335422988 | F16: -0.03283789487 | G16: 0.3276E | H16: 4.95E-06 | I16: 4.911618669e-05 | K16: 2.94E-07 | L16: 3.276 | AE16: 7 | AF16: 6.05E-03 | AG16: 3.67E-05 | AH16: 1.07E-01 | AI16: -2.23047895 | AJ16: -0.02320403668 | AK16: 0.3672E | AL16: 6.75E-06 | AM16: 6.05E-05 | AO16: 1.17E-07 | AQ16: 3.67E+00
A17: 8 | B17: 7.27E-03 | C17: 5.28E-05 | D17: 9.63E-02 | E17: -2.340303821 | F17: -0.03771872806 | G17: 0.3823E | H17: 6.15E-06 | I17: 6.110228401e-05 | K17: 3.11E-07 | L17: 3.823 | AE17: 8 | AF17: 6.23E-03 | AG17: 3.88E-05 | AH17: 1.07E-01 | AI17: -2.238277616 | AJ17: -0.03100270292 | AK17: 0.4284E | AL17: 8.22E-06 | AM17: 7.36E-05 | AO17: 1.27E-07 | AQ17: 4.28E+00
A18: 9 | B18: 7.44E-03 | C18: 5.53E-05 | D18: 9.66E-02 | E18: -2.33753514 | F18: -0.03495004731 | G18: 0.4369E | H18: 7.47E-06 | I18: 7.414101291e-05 | K18: 3.19E-07 | L18: 4.369 | AE18: 9 | AF18: 6.40E-03 | AG18: 4.10E-05 | AH18: 1.07E-01 | AI18: -2.233829558 | AJ18: -0.0265546449 | AK18: 0.4896E | AL18: 9.78E-06 | AM18: 8.76E-05 | AO18: 1.35E-07 | AQ18: 4.90E+00
A19: 10 | B19: 7.61E-03 | C19: 5.79E-05 | D19: 9.59E-02 | E19: -2.344506843 | F19: -0.04192175003 | G19: 0.4915E | H19: 8.88E-06 | I19: 8.819265144e-05 | K19: 3.20E-07 | L19: 4.915 | AE19: 10 | AF19: 6.57E-03 | AG19: 4.32E-05 | AH19: 1.06E-01 | AI19: -2.24287265 | AJ19: -0.03559773636 | AK19: 0.5508E | AL19: 1.14E-05 | AM19: 1.02E-04 | AO19: 1.40E-07 | AQ19: 5.51E+00
A20: 11 | B20: 7.78E-03 | C20: 6.06E-05 | D20: 9.74E-02 | E20: -2.328704634 | F20: -0.02611954065 | G20: 0.5461E | H20: 1.04E-05 | I20: 0.0001032770606 | K20: 3.15E-07 | L20: 5.461 | AE20: 11 | AF20: 6.75E-03 | AG20: 4.55E-05 | AH20: 1.08E-01 | AI20: -2.228189081 | AJ20: -0.02091416754 | AK20: 0.6120E | AL20: 1.32E-05 | AM20: 1.18E-04 | AO20: 1.44E-07 | AQ20: 6.12E+00
A21: 12 | B21: 7.96E-03 | C21: 6.33E-05 | D21: 9.75E-02 | E21: -2.328174128 | F21: -0.0255890353 | G21: 0.6007E | H21: 1.20E-05 | I21: 0.000119265144 | K21: 3.03E-07 | L21: 6.007 | AE21: 12 | AF21: 6.92E-03 | AG21: 4.79E-05 | AH21: 1.08E-01 | AI21: -2.227904668 | AJ21: -0.02062975434 | AK21: 0.6732E | AL21: 1.50E-05 | AM21: 1.34E-04 | AO21: 1.46E-07 | AQ21: 6.73E+00
A22: 13 | B22: 8.13E-03 | C22: 6.61E-05 | D22: 9.71E-02 | E22: -2.332496302 | F22: -0.02991120944 | G22: 0.6553E | H22: 1.37E-05 | I22: 0.0001361469712 | K22: 2.86E-07 | L22: 6.553 | AE22: 13 | AF22: 7.09E-03 | AG22: 5.03E-05 | AH22: 1.06E-01 | AI22: -2.241752748 | AJ22: -0.03447783509 | AK22: 0.7344E | AL22: 1.69E-05 | AM22: 1.51E-04 | AO22: 1.46E-07 | AQ22: 7.34E+00
A23: 14 | B23: 8.30E-03 | C23: 6.90E-05 | D23: 9.65E-02 | E23: -2.338093788 | F23: -0.03550869527 | G23: 0.7099E | H23: 1.55E-05 | I23: 0.0001539225422 | K23: 2.65E-07 | L23: 7.099 | AE23: 14 | AF23: 7.27E-03 | AG23: 5.28E-05 | AH23: 1.07E-01 | AI23: -2.23927554 | AJ23: -0.03200062639 | AK23: 0.7956E | AL23: 1.89E-05 | AM23: 1.69E-04 | AO23: 1.45E-07 | AQ23: 7.96E+00
A24: 15 | B24: 8.48E-03 | C24: 7.19E-05 | D24: 9.59E-02 | E24: -2.344559698 | F24: -0.04197460472 | G24: 0.7645E | H24: 1.74E-05 | I24: 0.0001726911619 | K24: 2.42E-07 | L24: 7.645 | AE24: 15 | AF24: 7.44E-03 | AG24: 5.53E-05 | AH24: 1.05E-01 | AI24: -2.249424581 | AJ24: -0.0421496677 | AK24: 0.8568E | AL24: 2.10E-05 | AM24: 1.88E-04 | AO24: 1.43E-07 | AQ24: 8.57E+00
A25: 16 | B25: 8.65E-03 | C25: 7.48E-05 | D25: 9.70E-02 | E25: -2.332605138 | F25: -0.03002004478 | G25: 0.8191E | H25: 1.94E-05 | I25: 0.0001921549156 | K25: 2.18E-07 | L25: 8.191 | AE25: 16 | AF25: 7.61E-03 | AG25: 5.79E-05 | AH25: 1.05E-01 | AI25: -2.252796193 | AJ25: -0.04552128006 | AK25: 0.9180E | AL25: 2.31E-05 | AM25: 2.07E-04 | AO25: 1.41E-07 | AQ25: 9.18E+00
A26: 17 | B26: 8.82E-03 | C26: 7.78E-05 | D26: 9.64E-02 | E26: -2.339249365 | F26: -0.03666427188 | G26: 0.8737E | H26: 2.14E-05 | I26: 0.0002124131082 | K26: 1.96E-07 | L26: 8.737 | AE26: 17 | AF26: 7.78E-03 | AG26: 6.06E-05 | AH26: 1.05E-01 | AI26: -2.257840919 | AJ26: -0.05056600574 | AK26: 0.9791E | AL26: 2.53E-05 | AM26: 2.26E-04 | AO26: 1.39E-07 | AQ26: 9.79E+00
A27: 18 | B27: 9.00E-03 | C27: 8.09E-05 | D27: 9.65E-02 | E27: -2.338635522 | F27: -0.0360504289 | G27: 0.9283E | H27: 2.35E-05 | I27: 0.000233366435 | K27: 1.79E-07 | L27: 9.283 | AE27: 18 | AF27: 7.96E-03 | AG27: 6.33E-05 | AH27: 1.05E-01 | AI27: -2.251560111 | AJ27: -0.04428519781 | AK27: 0.1040E | AL27: 2.75E-05 | AM27: 2.47E-04 | AO27: 1.37E-07 | AQ27: 1.04E+01
A28: 19 | B28: 9.17E-03 | C28: 8.41E-05 | D28: 9.65E-02 | E28: -2.338713651 | F28: -0.03612855843 | G28: 0.9829E | H28: 2.57E-05 | I28: 0.0002551142006 | K28: 1.71E-07 | L28: 9.829 | AE28: 19 | AF28: 8.13E-03 | AG28: 6.61E-05 | AH28: 1.06E-01 | AI28: -2.246726109 | AJ28: -0.03945119545 | AK28: 0.1102E | AL28: 2.99E-05 | AM28: 2.67E-04 | AO28: 1.35E-07 | AQ28: 1.10E+01
A29: 20 | B29: 9.34E-03 | C29: 8.73E-05 | D29: 9.62E-02 | E29: -2.341487449 | F29: -0.03890235577 | G29: 0.1038E | H29: 2.79E-05 | I29: 0.0002773584906 | K29: 1.74E-07 | L29: 10.38 | AE29: 20 | AF29: 8.30E-03 | AG29: 6.90E-05 | AH29: 1.05E-01 | AI29: -2.257384532 | AJ29: -0.05010961891 | AK29: 0.1163E | AL29: 3.22E-05 | AM29: 2.88E-04 | AO29: 1.35E-07 | AQ29: 1.16E+01
A30: 21 | B30: 9.51E-03 | C30: 9.05E-05 | D30: 9.63E-02 | E30: -2.340378446 | F30: -0.03779335333 | G30: 0.1092E | H30: 3.02E-05 | I30: 0.0003002979146 | K30: 1.90E-07 | L30: 10.92 | AE30: 21 | AF30: 8.48E-03 | AG30: 7.19E-05 | AH30: 1.04E-01 | AI30: -2.26227961 | AJ30: -0.05500469666 | AK30: 0.1224E | AL30: 3.46E-05 | AM30: 3.10E-04 | AO30: 1.35E-07 | AQ30: 1.22E+01
A31: 22 | B31: 9.69E-03 | C31: 9.39E-05 | D31: 9.49E-02 | E31: -2.354927481 | F31: -0.05234238819 | G31: 0.1147E | H31: 3.26E-05 | I31: 0.000323733863 | K31: 2.15E-07 | L31: 11.47 | AE31: 22 | AF31: 8.65E-03 | AG31: 7.48E-05 | AH31: 1.04E-01 | AI31: -2.262750276 | AJ31: -0.05547536322 | AK31: 0.1285E | AL31: 3.71E-05 | AM31: 3.32E-04 | AO31: 1.37E-07 | AQ31: 1.29E+01
A32: 23 | B32: 9.86E-03 | C32: 9.72E-05 | D32: 9.51E-02 | E32: -2.352966186 | F32: -0.05038109283 | G32: 0.1201E | H32: 3.50E-05 | I32: 0.0003477656405 | K32: 2.46E-07 | L32: 12.01 | AE32: 23 | AF32: 8.82E-03 | AG32: 7.78E-05 | AH32: 1.05E-01 | AI32: -2.253691161 | AJ32: -0.04641624752 | AK32: 0.1346E | AL32: 3.96E-05 | AM32: 3.54E-04 | AO32: 1.40E-07 | AQ32: 1.35E+01
A33: 24 | B33: 1.00E-02 | C33: 1.01E-04 | D33: 9.54E-02 | E33: -2.349262458 | F33: -0.04667736516 | G33: 0.1256E | H33: 3.75E-05 | I33: 0.0003721946375 | K33: 2.80E-07 | L33: 12.56 | AE33: 24 | AF33: 9.00E-03 | AG33: 8.09E-05 | AH33: 1.05E-01 | AI33: -2.258500025 | AJ33: -0.05122511218 | AK33: 0.1408E | AL33: 4.21E-05 | AM33: 3.77E-04 | AO33: 1.45E-07 | AQ33: 1.41E+01
A34: 25 | B34: 1.02E-02 | C34: 1.04E-04 | D34: 9.60E-02 | E34: -2.343863841 | F34: -0.04127874794 | G34: 0.1311E | H34: 4.00E-05 | I34: 0.0003969215492 | K34: 3.16E-07 | L34: 13.11 | AE34: 25 | AF34: 9.17E-03 | AG34: 8.41E-05 | AH34: 1.04E-01 | AI34: -2.267828428 | AJ34: -0.06055351435 | AK34: 0.1469E | AL34: 4.46E-05 | AM34: 4.00E-04 | AO34: 1.51E-07 | AQ34: 1.47E+01
A35: 26 | B35: 1.04E-02 | C35: 1.08E-04 | D35: 9.58E-02 | E35: -2.34560374 | F35: -0.04301864741 | G35: 0.1365E | H35: 4.25E-05 | I35: 0.0004221449851 | K35: 3.51E-07 | L35: 13.65 | AE35: 26 | AF35: 9.34E-03 | AG35: 8.73E-05 | AH35: 1.04E-01 | AI35: -2.267517317 | AJ35: -0.06024240391 | AK35: 0.1530E | AL35: 4.72E-05 | AM35: 4.23E-04 | AO35: 1.57E-07 | AQ35: 1.53E+01
A36: 27 | B36: 1.06E-02 | C36: 1.11E-04 | D36: 9.50E-02 | E36: -2.353640064 | F36: -0.05105497083 | G36: 0.1420E | H36: 4.51E-05 | I36: 0.0004475670308 | K36: 3.85E-07 | L36: 14.2 | AE36: 27 | AF36: 9.51E-03 | AG36: 9.05E-05 | AH36: 1.04E-01 | AI36: -2.266637093 | AJ36: -0.05936218018 | AK36: 0.1591E | AL36: 4.98E-05 | AM36: 4.46E-04 | AO36: 1.64E-07 | AQ36: 1.59E+01
A37: 28 | B37: 1.07E-02 | C37: 1.15E-04 | D37: 9.42E-02 | E37: -2.362072913 | F37: -0.05948781964 | G37: 0.1474E | H37: 4.77E-05 | I37: 0.0004732869911 | K37: 4.16E-07 | L37: 14.74 | AE37: 28 | AF37: 9.69E-03 | AG37: 9.39E-05 | AH37: 1.03E-01 | AI37: -2.270408014 | AJ37: -0.0631331011 | AK37: 0.1652E | AL37: 5.24E-05 | AM37: 4.69E-04 | AO37: 1.72E-07 | AQ37: 1.65E+01
A38: 29 | B38: 1.09E-02 | C38: 1.19E-04 | D38: 9.35E-02 | E38: -2.369591733 | F38: -0.06700664044 | G38: 0.1529E | H38: 5.03E-05 | I38: 0.0004992055611 | K38: 4.45E-07 | L38: 15.29 | AE38: 29 | AF38: 9.86E-03 | AG38: 9.72E-05 | AH38: 1.03E-01 | AI38: -2.273652101 | AJ38: -0.06637718827 | AK38: 0.1714E | AL38: 5.50E-05 | AM38: 4.92E-04 | AO38: 1.79E-07 | AQ38: 1.71E+01
A39: 30 | B39: 1.11E-02 | C39: 1.23E-04 | D39: 9.44E-02 | E39: -2.359713327 | F39: -0.0571282336 | G39: 0.1584E | H39: 5.29E-05 | I39: 0.0005253227408 | K39: 4.70E-07 | L39: 15.84 | AE39: 30 | AF39: 1.00E-02 | AG39: 1.01E-04 | AH39: 1.02E-01 | AI39: -2.281847761 | AJ39: -0.07457284756 | AK39: 0.1775E | AL39: 5.76E-05 | AM39: 5.16E-04 | AO39: 1.87E-07 | AQ39: 1.78E+01
A40: 31 | B40: 1.12E-02 | C40: 1.26E-04 | D40: 9.46E-02 | E40: -2.358280389 | F40: -0.05569529582 | G40: 0.1638E | H40: 5.55E-05 | I40: 0.0005515392254 | K40: 4.92E-07 | L40: 16.38 | AE40: 31 | AF40: 1.02E-02 | AG40: 1.04E-04 | AH40: 1.02E-01 | AI40: -2.284846069 | AJ40: -0.0775711554 | AK40: 0.1836E | AL40: 6.02E-05 | AM40: 5.39E-04 | AO40: 1.94E-07 | AQ40: 1.84E+01
A41: 32 | B41: 1.14E-02 | C41: 1.30E-04 | D41: 9.43E-02 | E41: -2.361006788 | F41: -0.0584216946 | G41: 0.1693E | H41: 5.82E-05 | I41: 0.00057775571 | K41: 5.09E-07 | L41: 16.93 | AE41: 32 | AF41: 1.04E-02 | AG41: 1.08E-04 | AH41: 1.02E-01 | AI41: -2.278115063 | AJ41: -0.07084014962 | AK41: 0.1897E | AL41: 6.28E-05 | AM41: 5.62E-04 | AO41: 2.00E-07 | AQ41: 1.90E+01
A42: 33 | B42: 1.16E-02 | C42: 1.34E-04 | D42: 9.46E-02 | E42: -2.358461685 | F42: -0.05587659226 | G42: 0.1747E | H42: 6.08E-05 | I42: 0.0006039721946 | K42: 5.23E-07 | L42: 17.47 | AE42: 33 | AF42: 1.06E-02 | AG42: 1.11E-04 | AH42: 1.03E-01 | AI42: -2.276078453 | AJ42: -0.06880353974 | AK42: 0.1958E | AL42: 6.54E-05 | AM42: 5.85E-04 | AO42: 2.07E-07 | AQ42: 1.96E+01
A43: 34 | B43: 1.18E-02 | C43: 1.38E-04 | D43: 9.39E-02 | E43: -2.365654415 | F43: -0.0630693217 | G43: 0.1802E | H43: 6.35E-05 | I43: 0.0006302879841 | K43: 5.32E-07 | L43: 18.02 | AE43: 34 | AF43: 1.07E-02 | AG43: 1.15E-04 | AH43: 1.02E-01 | AI43: -2.281469743 | AJ43: -0.0741948303 | AK43: 0.2019E | AL43: 6.79E-05 | AM43: 6.08E-04 | AO43: 2.12E-07 | AQ43: 2.02E+01
A44: 35 | B44: 1.19E-02 | C44: 1.42E-04 | D44: 9.31E-02 | E44: -2.373643085 | F44: -0.07105799249 | G44: 0.1857E | H44: 6.61E-05 | I44: 0.0006564051639 | K44: 5.37E-07 | L44: 18.57 | AE44: 35 | AF44: 1.09E-02 | AG44: 1.19E-04 | AH44: 1.02E-01 | AI44: -2.279340625 | AJ44: -0.07206571217 | AK44: 0.2081E | AL44: 7.04E-05 | AM44: 6.31E-04 | AO44: 2.17E-07 | AQ44: 2.08E+01
A45: 36 | B45: 1.21E-02 | C45: 1.47E-04 | D45: 9.30E-02 | E45: -2.375444449 | F45: -0.07285935587 | G45: 0.1911E | H45: 6.87E-05 | I45: 0.0006825223436 | K45: 5.37E-07 | L45: 19.11 | AE45: 36 | AF45: 1.11E-02 | AG45: 1.23E-04 | AH45: 1.02E-01 | AI45: -2.285021459 | AJ45: -0.07774654605 | AK45: 0.2142E | AL45: 7.29E-05 | AM45: 6.53E-04 | AO45: 2.21E-07 | AQ45: 2.14E+01
A46: 37 | B46: 1.23E-02 | C46: 1.51E-04 | D46: 9.23E-02 | E46: -2.3825588 | F46: -0.07997370733 | G46: 0.1966E | H46: 7.13E-05 | I46: 0.0007084409136 | K46: 5.34E-07 | L46: 19.66 | AE46: 37 | AF46: 1.12E-02 | AG46: 1.26E-04 | AH46: 1.01E-01 | AI46: -2.290001959 | AJ46: -0.08272704547 | AK46: 0.2203E | AL46: 7.54E-05 | AM46: 6.75E-04 | AO46: 2.24E-07 | AQ46: 2.20E+01
A47: 38 | B47: 1.25E-02 | C47: 1.55E-04 | D47: 9.22E-02 | E47: -2.383325165 | F47: -0.08074007228 | G47: 0.2020E | H47: 7.39E-05 | I47: 0.0007341608739 | K47: 5.27E-07 | L47: 20.2 | AE47: 38 | AF47: 1.14E-02 | AG47: 1.30E-04 | AH47: 1.01E-01 | AI47: -2.294326907 | AJ47: -0.08705199413 | AK47: 0.2264E | AL47: 7.78E-05 | AM47: 6.97E-04 | AO47: 2.27E-07 | AQ47: 2.26E+01
A48: 39 | B48: 1.26E-02 | C48: 1.59E-04 | D48: 9.30E-02 | E48: -2.374772973 | F48: -0.07218788037 | G48: 0.2075E | H48: 7.65E-05 | I48: 0.0007596822244 | K48: 5.17E-07 | L48: 20.75 | AE48: 39 | AF48: 1.16E-02 | AG48: 1.34E-04 | AH48: 1.01E-01 | AI48: -2.295986264 | AJ48: -0.08871135112 | AK48: 0.2325E | AL48: 8.02E-05 | AM48: 7.18E-04 | AO48: 2.28E-07 | AQ48: 2.33E+01
A49: 40 | B49: 1.28E-02 | C49: 1.64E-04 | D49: 9.27E-02 | E49: -2.378705701 | F49: -0.07612060803 | G49: 0.2130E | H49: 7.91E-05 | I49: 0.0007850049652 | K49: 5.05E-07 | L49: 21.3 | AE49: 40 | AF49: 1.18E-02 | AG49: 1.38E-04 | AH49: 1.01E-01 | AI49: -2.296971877 | AJ49: -0.08969696393 | AK49: 0.2387E | AL49: 8.26E-05 | AM49: 7.39E-04 | AO49: 2.30E-07 | AQ49: 2.39E+01
A50: 41 | B50: 1.30E-02 | C50: 1.68E-04 | D50: 9.20E-02 | E50: -2.385534463 | F50: -0.08294936971 | G50: 0.2184E | H50: 8.16E-05 | I50: 0.0008099304866 | K50: 4.90E-07 | L50: 21.84 | AE50: 41 | AF50: 1.19E-02 | AG50: 1.42E-04 | AH50: 1.00E-01 | AI50: -2.298064503 | AJ50: -0.09078958962 | AK50: 0.2448E | AL50: 8.49E-05 | AM50: 7.60E-04 | AO50: 2.30E-07 | AQ50: 2.45E+01
A51: 42 | B51: 1.31E-02 | C51: 1.73E-04 | D51: 9.15E-02 | E51: -2.391299616 | F51: -0.08871452259 | G51: 0.2239E | H51: 8.40E-05 | I51: 0.0008345580933 | K51: 4.74E-07 | L51: 22.39 | AE51: 42 | AF51: 1.21E-02 | AG51: 1.47E-04 | AH51: 1.00E-01 | AI51: -2.301316812 | AJ51: -0.09404189928 | AK51: 0.2509E | AL51: 8.71E-05 | AM51: 7.80E-04 | AO51: 2.31E-07 | AQ51: 2.51E+01
A52: 43 | B52: 1.33E-02 | C52: 1.77E-04 | D52: 9.18E-02 | E52: -2.38775749 | F52: -0.08517239656 | G52: 0.2294E | H52: 8.65E-05 | I52: 0.0008588877855 | K52: 4.57E-07 | L52: 22.94 | AE52: 43 | AF52: 1.23E-02 | AG52: 1.51E-04 | AH52: 9.92E-02 | AI52: -2.310150761 | AJ52: -0.1028758483 | AK52: 0.2570E | AL52: 8.93E-05 | AM52: 8.00E-04 | AO52: 2.31E-07 | AQ52: 2.57E+01
A53: 44 | B53: 1.35E-02 | C53: 1.82E-04 | D53: 9.20E-02 | E53: -2.385965489 | F53: -0.08338039602 | G53: 0.2348E | H53: 8.89E-05 | I53: 0.0008828202582 | K53: 4.41E-07 | L53: 23.48 | AE53: 44 | AF53: 1.25E-02 | AG53: 1.55E-04 | AH53: 9.96E-02 | AI53: -2.306447102 | AJ53: -0.09917218856 | AK53: 0.2631E | AL53: 9.15E-05 | AM53: 8.19E-04 | AO53: 2.31E-07 | AQ53: 2.63E+01
A54: 45 | B54: 1.37E-02 | C54: 1.87E-04 | D54: 9.15E-02 | E54: -2.391591556 | F54: -0.08900646253 | G54: 0.2403E | H54: 9.13E-05 | I54: 0.0009063555114 | K54: 4.26E-07 | L54: 24.03 | AE54: 45 | AF54: 1.26E-02 | AG54: 1.59E-04 | AH54: 9.92E-02 | AI54: -2.310573499 | AJ54: -0.1032985857 | AK54: 0.2693E | AL54: 9.36E-05 | AM54: 8.38E-04 | AO54: 2.31E-07 | AQ54: 2.69E+01
A55: 46 | B55: 1.38E-02 | C55: 1.92E-04 | D55: 9.06E-02 | E55: -2.40097415 | F55: -0.09838905674 | G55: 0.2457E | H55: 9.36E-05 | I55: 0.0009294935452 | K55: 4.13E-07 | L55: 24.57 | AE55: 46 | AF55: 1.28E-02 | AG55: 1.64E-04 | AH55: 9.81E-02 | AI55: -2.321404527 | AJ55: -0.1141296139 | AK55: 0.2754E | AL55: 9.56E-05 | AM55: 8.56E-04 | AO55: 2.32E-07 | AQ55: 2.75E+01
A56: 47 | B56: 1.40E-02 | C56: 1.96E-04 | D56: 9.02E-02 | E56: -2.405959026 | F56: -0.1033739334 | G56: 0.2512E | H56: 9.59E-05 | I56: 0.0009521350546 | K56: 4.04E-07 | L56: 25.12 | AE56: 47 | AF56: 1.30E-02 | AG56: 1.68E-04 | AH56: 9.83E-02 | AI56: -2.320026914 | AJ56: -0.112752001 | AK56: 0.2815E | AL56: 9.76E-05 | AM56: 8.73E-04 | AO56: 2.32E-07 | AQ56: 2.82E+01
A57: 48 | B57: 1.42E-02 | C57: 2.01E-04 | D57: 9.02E-02 | E57: -2.405365677 | F57: -0.1027805837 | G57: 0.2567E | H57: 9.81E-05 | I57: 0.0009742800397 | K57: 4.00E-07 | L57: 25.67 | AE57: 48 | AF57: 1.31E-02 | AG57: 1.73E-04 | AH57: 9.80E-02 | AI57: -2.322986169 | AJ57: -0.1157112559 | AK57: 0.2876E | AL57: 9.95E-05 | AM57: 8.90E-04 | AO57: 2.34E-07 | AQ57: 2.88E+01
A58: 49 | B58: 1.44E-02 | C58: 2.06E-04 | D58: 9.00E-02 | E58: -2.407760613 | F58: -0.1051755197 | G58: 0.2621E | H58: 1.00E-04 | I58: 0.0009960278054 | K58: 4.00E-07 | L58: 26.21 | AE58: 49 | AF58: 1.33E-02 | AG58: 1.77E-04 | AH58: 9.80E-02 | AI58: -2.322451182 | AJ58: -0.1151762689 | AK58: 0.2937E | AL58: 1.01E-04 | AM58: 9.07E-04 | AO58: 2.36E-07 | AQ58: 2.94E+01
A59: 50 | B59: 1.45E-02 | C59: 2.11E-04 | D59: 9.02E-02 | E59: -2.405285337 | F59: -0.1027002443 | G59: 0.2676E | H59: 1.02E-04 | I59: 0.001016881827 | K59: 4.05E-07 | L59: 26.76 | AE59: 50 | AF59: 1.35E-02 | AG59: 1.82E-04 | AH59: 9.71E-02 | AI59: -2.33161482 | AJ59: -0.1243399068 | AK59: 0.2999E | AL59: 1.03E-04 | AM59: 9.22E-04 | AO59: 2.38E-07 | AQ59: 3.00E+01
A60: 51 | B60: 1.47E-02 | C60: 2.16E-04 | D60: 8.96E-02 | E60: -2.411853231 | F60: -0.1092681378 | G60: 0.2730E | H60: 1.05E-04 | I60: 0.001037735849 | K60: 4.15E-07 | L60: 27.3 | AE60: 51 | AF60: 1.37E-02 | AG60: 1.87E-04 | AH60: 9.65E-02 | AI60: -2.338435925 | AJ60: -0.1311610116 | AK60: 0.3060E | AL60: 1.05E-04 | AM60: 9.37E-04 | AO60: 2.42E-07 | AQ60: 3.06E+01
A61: 52 | B61: 1.49E-02 | C61: 2.21E-04 | D61: 8.94E-02 | E61: -2.414566592 | F61: -0.1119814993 | G61: 0.2785E | H61: 1.07E-04 | I61: 0.001057596822 | K61: 4.29E-07 | L61: 27.85 | AE61: 52 | AF61: 1.38E-02 | AG61: 1.92E-04 | AH61: 9.66E-02 | AI61: -2.33672785 | AJ61: -0.1294529367 | AK61: 0.3121E | AL61: 1.06E-04 | AM61: 9.52E-04 | AO61: 2.46E-07 | AQ61: 3.12E+01
A62: 53 | B62: 1.51E-02 | C62: 2.27E-04 | D62: 8.95E-02 | E62: -2.413676668 | F62: -0.1110915755 | G62: 0.2840E | H62: 1.09E-04 | I62: 0.001077457795 | K62: 4.47E-07 | L62: 28.4 | AE62: 53 | AF62: 1.40E-02 | AG62: 1.96E-04 | AH62: 9.64E-02 | AI62: -2.339202856 | AJ62: -0.1319279426 | AK62: 0.3182E | AL62: 1.08E-04 | AM62: 9.66E-04 | AO62: 2.50E-07 | AQ62: 3.18E+01
A63: 54 | B63: 1.52E-02 | C63: 2.32E-04 | D63: 8.98E-02 | E63: -2.409661498 | F63: -0.1070764047 | G63: 0.2894E | H63: 1.10E-04 | I63: 0.00109632572 | K63: 4.66E-07 | L63: 28.94 | AE63: 54 | AF63: 1.42E-02 | AG63: 2.01E-04 | AH63: 9.60E-02 | AI63: -2.343776196 | AJ63: -0.1365012828 | AK63: 0.3243E | AL63: 1.09E-04 | AM63: 9.79E-04 | AO63: 2.56E-07 | AQ63: 3.24E+01
A64: 55 | B64: 1.54E-02 | C64: 2.37E-04 | D64: 8.84E-02 | E64: -2.42533899 | F64: -0.1227538966 | G64: 0.2949E | H64: 1.12E-04 | I64: 0.001115193644 | K64: 4.87E-07 | L64: 29.49 | AE64: 55 | AF64: 1.44E-02 | AG64: 2.06E-04 | AH64: 9.60E-02 | AI64: -2.343395673 | AJ64: -0.1361207595 | AK64: 0.3305E | AL64: 1.11E-04 | AM64: 9.92E-04 | AO64: 2.62E-07 | AQ64: 3.31E+01
A65: 56 | B65: 1.56E-02 | C65: 2.42E-04 | D65: 8.91E-02 | E65: -2.418221288 | F65: -0.1156361952 | G65: 0.3003E | H65: 1.14E-04 | I65: 0.00113306852 | K65: 5.09E-07 | L65: 30.03 | AE65: 56 | AF65: 1.45E-02 | AG65: 2.11E-04 | AH65: 9.56E-02 | AI65: -2.347869799 | AJ65: -0.1405948861 | AK65: 0.3366E | AL65: 1.12E-04 | AM65: 1.00E-03 | AO65: 2.68E-07 | AQ65: 3.37E+01
A66: 57 | B66: 1.57E-02 | C66: 2.48E-04 | D66: 8.89E-02 | E66: -2.419708419 | F66: -0.1171233261 | G66: 0.3058E | H66: 1.16E-04 | I66: 0.001149950348 | K66: 5.30E-07 | L66: 30.58 | AE66: 57 | AF66: 1.47E-02 | AG66: 2.16E-04 | AH66: 9.51E-02 | AI66: -2.352839401 | AJ66: -0.1455644882 | AK66: 0.3427E | AL66: 1.13E-04 | AM66: 1.02E-03 | AO66: 2.75E-07 | AQ66: 3.43E+01
A67: 58 | B67: 1.59E-02 | C67: 2.53E-04 | D67: 8.86E-02 | E67: -2.424126363 | F67: -0.12154127 | G67: 0.3113E | H67: 1.18E-04 | I67: 0.001166832175 | K67: 5.51E-07 | L67: 31.13 | AE67: 58 | AF67: 1.49E-02 | AG67: 2.21E-04 | AH67: 9.51E-02 | AI67: -2.353212622 | AJ67: -0.1459377092 | AK67: 0.3488E | AL67: 1.15E-04 | AM67: 1.03E-03 | AO67: 2.82E-07 | AQ67: 3.49E+01
A68: 59 | B68: 1.61E-02 | C68: 2.59E-04 | D68: 8.86E-02 | E68: -2.423653336 | F68: -0.1210682432 | G68: 0.3167E | H68: 1.19E-04 | I68: 0.001182720953 | K68: 5.70E-07 | L68: 31.67 | AE68: 59 | AF68: 1.51E-02 | AG68: 2.27E-04 | AH68: 9.51E-02 | AI68: -2.352555983 | AJ68: -0.1452810701 | AK68: 0.3549E | AL68: 1.16E-04 | AM68: 1.04E-03 | AO68: 2.89E-07 | AQ68: 3.55E+01
A69: 60 | B69: 1.63E-02 | C69: 2.64E-04 | D69: 8.78E-02 | E69: -2.432468833 | F69: -0.1298837405 | G69: 0.3222E | H69: 1.21E-04 | I69: 0.001197616683 | K69: 5.87E-07 | L69: 32.22 | AE69: 60 | AF69: 1.52E-02 | AG69: 2.32E-04 | AH69: 9.50E-02 | AI69: -2.354315959 | AJ69: -0.1470410456 | AK69: 0.3611E | AL69: 1.17E-04 | AM69: 1.04E-03 | AO69: 2.96E-07 | AQ69: 3.61E+01
A70: 61 | B70: 1.64E-02 | C70: 2.70E-04 | D70: 8.79E-02 | E70: -2.431784504 | F70: -0.1291994106 | G70: 0.3276E | H70: 1.22E-04 | I70: 0.001212512413 | K70: 6.01E-07 | L70: 32.76 | AE70: 61 | AF70: 1.54E-02 | AG70: 2.37E-04 | AH70: 9.42E-02 | AI70: -2.362106832 | AJ70: -0.154831919 | AK70: 0.3672E | AL70: 1.18E-04 | AM70: 1.05E-03 | AO70: 3.02E-07 | AQ70: 3.67E+01
A71: 62 | B71: 1.66E-02 | C71: 2.76E-04 | D71: 8.75E-02 | E71: -2.436278299 | F71: -0.133693206 | G71: 0.3331E | H71: 1.24E-04 | I71: 0.001226415094 | K71: 6.14E-07 | L71: 33.31 | AE71: 62 | AF71: 1.56E-02 | AG71: 2.42E-04 | AH71: 9.39E-02 | AI71: -2.365190503 | AJ71: -0.1579155897 | AK71: 0.3733E | AL71: 1.19E-04 | AM71: 1.06E-03 | AO71: 3.09E-07 | AQ71: 3.73E+01
A72: 63 | B72: 1.68E-02 | C72: 2.82E-04 | D72: 8.76E-02 | E72: -2.435090215 | F72: -0.1325051219 | G72: 0.3386E | H72: 1.25E-04 | I72: 0.001240317776 | K72: 6.23E-07 | L72: 33.86 | AE72: 63 | AF72: 1.57E-02 | AG72: 2.48E-04 | AH72: 9.34E-02 | AI72: -2.370760099 | AJ72: -0.1634851859 | AK72: 0.3794E | AL72: 1.19E-04 | AM72: 1.07E-03 | AO72: 3.15E-07 | AQ72: 3.79E+01
A73: 64 | B73: 1.70E-02 | C73: 2.87E-04 | D73: 8.75E-02 | E73: -2.435548067 | F73: -0.1329629743 | G73: 0.3440E | H73: 1.26E-04 | I73: 0.001253227408 | K73: 6.30E-07 | L73: 34.4 | AE73: 64 | AF73: 1.59E-02 | AG73: 2.53E-04 | AH73: 9.30E-02 | AI73: -2.37506401 | AJ73: -0.1677890966 | AK73: 0.3855E | AL73: 1.20E-04 | AM73: 1.08E-03 | AO73: 3.20E-07 | AQ73: 3.86E+01
A74: 65 | B74: 1.71E-02 | C74: 2.93E-04 | D74: 8.67E-02 | E74: -2.445273519 | F74: -0.1426884263 | G74: 0.3495E | H74: 1.27E-04 | I74: 0.001265143992 | K74: 6.34E-07 | L74: 34.95 | AE74: 65 | AF74: 1.61E-02 | AG74: 2.59E-04 | AH74: 9.33E-02 | AI74: -2.372423126 | AJ74: -0.1651482125 | AK74: 0.3917E | AL74: 1.21E-04 | AM74: 1.08E-03 | AO74: 3.25E-07 | AQ74: 3.92E+01
A75: 66 | B75: 1.73E-02 | C75: =B75^2 -> 2.99E-04 | D75: 8.60E-02 | E75: =LN(D75) -> -2.453973817 | F75: =LN(D75/$B$7) -> -0.1513887241 | G75: 0.3550E | H75: 1.29E-04 | I75: =H75/$E$7 -> 0.001277060576 | K75: 6.35E-07 | L75: 35.5 | AE75: 66 | AF75: 1.63E-02 | AG75: =AF75^2 -> 2.64E-04 | AH75: 9.28E-02 | AI75: =LN(AH75) -> -2.377680336 | AJ75: =LN(AH75/$AF$7) -> -0.1704054229 | AK75: 0.3978E | AL75: 1.21E-04 | AM75: 1.09E-03 | AO75: 3.30E-07 | AQ75: 3.98E+01
A76: 67 | B76: 1.75E-02 | C76: 3.05E-04 | D76: 8.60E-02 | E76: -2.453117456 | F76: -0.1505323629 | G76: 0.3604E | H76: 1.30E-04 | I76: 0.001287984111 | K76: 6.35E-07 | L76: 36.04 | AE76: 67 | AF76: 1.64E-02 | AG76: 2.70E-04 | AH76: 9.17E-02 | AI76: -2.389398449 | AJ76: -0.1821235358 | AK76: 0.4039E | AL76: 1.22E-04 | AM76: =AL76/$AI$7 -> 1.09E-03 | AO76: 3.34E-07 | AQ76: 4.04E+01
A77: 68 | B77: 1.76E-02 | C77: 3.11E-04 | D77: 8.63E-02 | E77: -2.449797576 | F77: -0.1472124828 | G77: 0.3659E | H77: 1.31E-04 | I77: 0.001297914598 | K77: 6.32E-07 | L77: 36.59 | AE77: 68 | AF77: 1.66E-02 | AG77: 2.76E-04 | AH77: 9.13E-02 | AI77: -2.393432222 | AJ77: -0.1861573084 | AK77: 0.4100E | AL77: 1.23E-04 | AM77: 1.10E-03 | AO77: 3.37E-07 | AQ77: 4.10E+01
A78: 69 | B78: 1.78E-02 | C78: 3.17E-04 | D78: 8.55E-02 | E78: -2.459131474 | F78: -0.1565463808 | G78: 0.3713E | H78: 1.32E-04 | I78: 0.001307845084 | K78: 6.28E-07 | L78: 37.13 | AE78: 69 | AF78: 1.68E-02 | AG78: 2.82E-04 | AH78: 9.16E-02 | AI78: -2.390489582 | AJ78: -0.1832146688 | AK78: 0.4161E | AL78: 1.23E-04 | AM78: 1.10E-03 | AO78: 3.40E-07 | AQ78: 4.16E+01
A79: 70 | B79: 1.80E-02 | C79: 3.24E-04 | D79: 8.50E-02 | E79: -2.465188481 | F79: -0.1626033883 | G79: 0.3768E | H79: 1.33E-04 | I79: 0.001316782522 | K79: 6.22E-07 | L79: 37.68 | AE79: 70 | AF79: 1.70E-02 | AG79: 2.87E-04 | AH79: 9.15E-02 | AI79: -2.391648039 | AJ79: -0.184373126 | AK79: 0.4223E | AL79: 1.23E-04 | AM79: 1.10E-03 | AO79: 3.42E-07 | AQ79: 4.22E+01
A80: 71 | B80: 1.82E-02 | C80: 3.30E-04 | D80: 8.49E-02 | E80: -2.466272295 | F80: -0.1636872017 | G80: 0.3823E | H80: 1.33E-04 | I80: 0.001324726912 | K80: 6.16E-07 | L80: 38.23 | AE80: 71 | AF80: 1.71E-02 | AG80: 2.93E-04 | AH80: 9.10E-02 | AI80: -2.397277455 | AJ80: -0.1900025423 | AK80: 0.4284E | AL80: 1.24E-04 | AM80: 1.11E-03 | AO80: 3.43E-07 | AQ80: 4.28E+01
A81: 72 | B81: 1.83E-02 | C81: 3.36E-04 | D81: 8.42E-02 | E81: -2.47461602 | F81: -0.1720309268 | G81: 0.3877E | H81: 1.34E-04 | I81: 0.001332671301 | K81: 6.10E-07 | L81: 38.77 | AE81: 72 | AF81: 1.73E-02 | AG81: 2.99E-04 | AH81: 9.05E-02 | AI81: -2.401911967 | AJ81: -0.1946370541 | AK81: 0.4345E | AL81: 1.24E-04 | AM81: 1.11E-03 | AO81: 3.44E-07 | AQ81: 4.35E+01
A82: 73 | B82: 1.85E-02 | C82: 3.43E-04 | D82: 8.37E-02 | E82: -2.479921022 | F82: -0.1773359292 | G82: 0.3932E | H82: 1.35E-04 | I82: 0.001339622642 | K82: 6.05E-07 | L82: 39.32 | AE82: 73 | AF82: 1.75E-02 | AG82: 3.05E-04 | AH82: 9.00E-02 | AI82: -2.407731865 | AJ82: -0.2004569519 | AK82: 0.4406E | AL82: 1.24E-04 | AM82: 1.11E-03 | AO82: 3.44E-07 | AQ82: 4.41E+01
A83: 74 | B83: 1.87E-02 | C83: 3.49E-04 | D83: 8.40E-02 | E83: -2.477136555 | F83: -0.1745514621 | G83: 0.3986E | H83: 1.36E-04 | I83: 0.001345580933 | K83: 6.01E-07 | L83: 39.86 | AE83: 74 | AF83: 1.76E-02 | AG83: 3.11E-04 | AH83: 8.94E-02 | AI83: -2.414990741 | AJ83: -0.207715828 | AK83: 0.4467E | AL83: 1.24E-04 | AM83: 1.11E-03 | AO83: 3.45E-07 | AQ83: 4.47E+01
A84: 75 | B84: 1.89E-02 | C84: 3.56E-04 | D84: 8.41E-02 | E84: -2.475753065 | F84: -0.1731679724 | G84: 0.4041E | H84: 1.36E-04 | I84: 0.001351539225 | K84: 5.99E-07 | L84: 40.41 | AE84: 75 | AF84: 1.78E-02 | AG84: 3.17E-04 | AH84: 8.96E-02 | AI84: -2.411898869 | AJ84: -0.2046239556 | AK84: 0.4529E | AL84: 1.24E-04 | AM84: 1.11E-03 | AO84: 3.44E-07 | AQ84: 4.53E+01
A85: 76 | B85: 1.90E-02 | C85: 3.62E-04 | D85: 8.32E-02 | E85: -2.485968182 | F85: -0.1833830893 | G85: 0.4096E | H85: 1.37E-04 | I85: 0.001356504469 | K85: 5.99E-07 | L85: 40.96 | AE85: 76 | AF85: 1.80E-02 | AG85: 3.24E-04 | AH85: 8.91E-02 | AI85: -2.418517284 | AJ85: -0.211242371 | AK85: 0.4590E | AL85: 1.24E-04 | AM85: 1.11E-03 | AO85: 3.44E-07 | AQ85: 4.59E+01
A86: 77 | B86: 1.92E-02 | C86: 3.69E-04 | D86: 8.27E-02 | E86: -2.49291533 | F86: -0.1903302375 | G86: 0.4150E | H86: 1.37E-04 | I86: 0.001360476663 | K86: 6.01E-07 | L86: 41.5 | AE86: 77 | AF86: 1.82E-02 | AG86: 3.30E-04 | AH86: 8.84E-02 | AI86: -2.426031434 | AJ86: -0.2187565205 | AK86: 0.4651E | AL86: 1.24E-04 | AM86: 1.11E-03 | AO86: 3.44E-07 | AQ86: 4.65E+01
A87: 78 | B87: 1.94E-02 | C87: 3.75E-04 | D87: 8.22E-02 | E87: -2.499042591 | F87: -0.1964574981 | G87: 0.4205E | H87: 1.37E-04 | I87: 0.001364448858 | K87: 6.07E-07 | L87: 42.05 | AE87: 78 | AF87: 1.83E-02 | AG87: 3.36E-04 | AH87: 8.83E-02 | AI87: -2.426954024 | AJ87: -0.2196791108 | AK87: 0.4712E | AL87: 1.24E-04 | AM87: 1.11E-03 | AO87: 3.43E-07 | AQ87: 4.71E+01
A88: 79 | B88: 1.95E-02 | C88: 3.82E-04 | D88: 8.23E-02 | E88: -2.497769698 | F88: -0.1951846046 | G88: 0.4259E | H88: 1.38E-04 | I88: 0.001366434955 | K88: 6.16E-07 | L88: 42.59 | AE88: 79 | AF88: 1.85E-02 | AG88: 3.43E-04 | AH88: 8.75E-02 | AI88: -2.436430655 | AJ88: -0.2291557418 | AK88: 0.4773E | AL88: 1.24E-04 | AM88: 1.11E-03 | AO88: 3.43E-07 | AQ88: 4.77E+01
A89: 80 | B89: 1.97E-02 | C89: 3.89E-04 | D89: 8.26E-02 | E89: -2.494269359 | F89: -0.1916842658 | G89: 0.4314E | H89: 1.38E-04 | I89: 0.001369414101 | K89: 6.27E-07 | L89: 43.14 | AE89: 80 | AF89: 1.87E-02 | AG89: 3.49E-04 | AH89: 8.71E-02 | AI89: -2.441262883 | AJ89: -0.2339879695 | AK89: 0.4835E | AL89: 1.24E-04 | AM89: 1.11E-03 | AO89: 3.43E-07 | AQ89: 4.84E+01
A90: 81 | B90: 1.99E-02 | C90: 3.96E-04 | D90: 8.23E-02 | E90: -2.496804506 | F90: -0.1942194133 | G90: 0.4369E | H90: 1.38E-04 | I90: 0.00137040715 | K90: 6.41E-07 | L90: 43.69 | AE90: 81 | AF90: 1.89E-02 | AG90: 3.56E-04 | AH90: 8.69E-02 | AI90: -2.443374429 | AJ90: -0.2360995161 | AK90: 0.4896E | AL90: 1.23E-04 | AM90: 1.10E-03 | AO90: 3.43E-07 | AQ90: 4.90E+01
A91: 82 | B91: 2.01E-02 | C91: 4.03E-04 | D91: 8.19E-02 | E91: -2.501975805 | F91: -0.1993907123 | G91: 0.4423E | H91: 1.38E-04 | I91: 0.001371400199 | K91: 6.58E-07 | L91: 44.23 | AE91: 82 | AF91: 1.90E-02 | AG91: 3.62E-04 | AH91: 8.61E-02 | AI91: -2.452148992 | AJ91: -0.2448740787 | AK91: 0.4957E | AL91: 1.23E-04 | AM91: 1.10E-03 | AO91: 3.43E-07 | AQ91: 4.96E+01
A92: 83 | B92: 2.02E-02 | C92: 4.10E-04 | D92: 8.15E-02 | E92: -2.507536121 | F92: -0.2049510278 | G92: 0.4478E | H92: 1.38E-04 | I92: 0.001371400199 | K92: 6.76E-07 | L92: 44.78 | AE92: 83 | AF92: 1.92E-02 | AG92: 3.69E-04 | AH92: 8.63E-02 | AI92: -2.449809146 | AJ92: -0.2425342326 | AK92: 0.5018E | AL92: 1.23E-04 | AM92: 1.10E-03 | AO92: 3.44E-07 | AQ92: 5.02E+01
A93: 84 | B93: 2.04E-02 | C93: 4.17E-04 | D93: 8.15E-02 | E93: -2.507304784 | F93: -0.2047196909 | G93: 0.4532E | H93: 1.38E-04 | I93: 0.001371400199 | K93: 6.96E-07 | L93: 45.32 | AE93: 84 | AF93: 1.94E-02 | AG93: 3.75E-04 | AH93: 8.56E-02 | AI93: -2.458114682 | AJ93: -0.2508397692 | AK93: 0.5079E | AL93: 1.22E-04 | AM93: 1.09E-03 | AO93: 3.45E-07 | AQ93: 5.08E+01
A94: 85 | B94: 2.06E-02 | C94: 4.24E-04 | D94: 8.12E-02 | E94: -2.511027892 | F94: -0.2084427992 | G94: 0.4587E | H94: 1.38E-04 | I94: 0.00137040715 | K94: 7.16E-07 | L94: 45.87 | AE94: 85 | AF94: 1.95E-02 | AG94: 3.82E-04 | AH94: 8.54E-02 | AI94: -2.460853648 | AJ94: -0.2535787349 | AK94: 0.5141E | AL94: 1.22E-04 | AM94: 1.09E-03 | AO94: 3.47E-07 | AQ94: 5.14E+01
A95: 86 | B95: 2.08E-02 | C95: 4.31E-04 | D95: 8.06E-02 | E95: -2.5177623 | F95: -0.2151772067 | G95: 0.4642E | H95: 1.38E-04 | I95: 0.001368421053 | K95: 7.36E-07 | L95: 46.42 | AE95: 86 | AF95: 1.97E-02 | AG95: 3.89E-04 | AH95: 8.54E-02 | AI95: -2.460293637 | AJ95: -0.2530187242 | AK95: 0.5202E | AL95: 1.21E-04 | AM95: 1.09E-03 | AO95: 3.49E-07 | AQ95: 5.20E+01
A96: 87 | B96: 2.09E-02 | C96: 4.38E-04 | D96: 8.04E-02 | E96: -2.520943463 | F96: -0.2183583698 | G96: 0.4696E | H96: 1.38E-04 | I96: 0.001365441907 | K96: 7.57E-07 | L96: 46.96 | AE96: 87 | AF96: 1.99E-02 | AG96: 3.96E-04 | AH96: 8.51E-02 | AI96: -2.463923108 | AJ96: -0.2566481947 | AK96: 0.5263E | AL96: 1.21E-04 | AM96: 1.08E-03 | AO96: 3.52E-07 | AQ96: 5.26E+01
A97: 88 | B97: 2.11E-02 | C97: 4.45E-04 | D97: 7.99E-02 | E97: -2.526854906 | F97: -0.2242698126 | G97: 0.4751E | H97: 1.37E-04 | I97: 0.001362462761 | K97: 7.76E-07 | L97: 47.51 | AE97: 88 | AF97: 2.01E-02 | AG97: 4.03E-04 | AH97: 8.53E-02 | AI97: -2.461353838 | AJ97: -0.2540789245 | AK97: 0.5324E | AL97: 1.20E-04 | AM97: 1.08E-03 | AO97: 3.54E-07 | AQ97: 5.32E+01
A98: 89 | B98: 2.13E-02 | C98: 4.53E-04 | D98: 7.99E-02 | E98: -2.526891891 | F98: -0.2243067979 | G98: 0.4805E | H98: 1.37E-04 | I98: 0.001358490566 | K98: 7.95E-07 | L98: 48.05 | AE98: 89 | AF98: 2.02E-02 | AG98: 4.10E-04 | AH98: 8.46E-02 | AI98: -2.469302377 | AJ98: -0.2620274639 | AK98: 0.5385E | AL98: 1.20E-04 | AM98: 1.07E-03 | AO98: 3.58E-07 | AQ98: 5.39E+01
A99: 90 | B99: 2.15E-02 | C99: 4.60E-04 | D99: 7.92E-02 | E99: -2.536212993 | F99: -0.2336278999 | G99: 0.4860E | H99: 1.36E-04 | I99: 0.001354518371 | K99: 8.12E-07 | L99: 48.6 | AE99: 90 | AF99: 2.04E-02 | AG99: 4.17E-04 | AH99: 8.37E-02 | AI99: -2.480072599 | AJ99: -0.2727976854 | AK99: 0.5447E | AL99: 1.19E-04 | AM99: 1.07E-03 | AO99: 3.61E-07 | AQ99: 5.45E+01
A100: 91 | B100: 2.16E-02 | C100: 4.68E-04 | D100: 7.86E-02 | E100: -2.543214807 | F100: -0.2406297138 | G100: 0.4915E | H100: 1.36E-04 | I100: 0.001349553128 | K100: 8.27E-07 | L100: 49.15 | AE100: 91 | AF100: 2.06E-02 | AG100: 4.24E-04 | AH100: 8.34E-02 | AI100: -2.484036302 | AJ100: -0.2767613892 | AK100: 0.5508E | AL100: 1.18E-04 | AM100: 1.06E-03 | AO100: 3.65E-07 | AQ100: 5.51E+01
A101: 92 | B101: 2.18E-02 | C101: 4.75E-04 | D101: 7.91E-02 | E101: -2.536637454 | F101: -0.2340523606 | G101: 0.4969E | H101: 1.35E-04 | I101: 0.001343594836 | K101: 8.40E-07 | L101: 49.69 | AE101: 92 | AF101: 2.08E-02 | AG101: 4.31E-04 | AH101: 8.29E-02 | AI101: -2.489639614 | AJ101: -0.2823647006 | AK101: 0.5569E | AL101: 1.18E-04 | AM101: 1.05E-03 | AO101: 3.69E-07 | AQ101: 5.57E+01
A102: 93 | B102: 2.20E-02 | C102: 4.83E-04 | D102: 7.86E-02 | E102: -2.543233882 | F102: -0.2406487895 | G102: 0.5024E | H102: 1.35E-04 | I102: 0.001336643496 | K102: 8.51E-07 | L102: 50.24 | AE102: 93 | AF102: 2.09E-02 | AG102: 4.38E-04 | AH102: 8.25E-02 | AI102: -2.494357604 | AJ102: -0.2870826911 | AK102: 0.5630E | AL102: 1.17E-04 | AM102: 1.05E-03 | AO102: 3.72E-07 | AQ102: 5.63E+01
A103: 94 | B103: 2.21E-02 | C103: 4.90E-04 | D103: 7.87E-02 | E103: -2.542732294 | F103: -0.2401472008 | G103: 0.5079E | H103: 1.34E-04 | I103: 0.001329692155 | K103: 8.59E-07 | L103: 50.79 | AE103: 94 | AF103: 2.11E-02 | AG103: 4.45E-04 | AH103: 8.25E-02 | AI103: -2.495476496 | AJ103: -0.2882015826 | AK103: 0.5691E | AL103: 1.16E-04 | AM103: 1.04E-03 | AO103: 3.76E-07 | AQ103: 5.69E+01
A104: 95 | B104: 2.23E-02 | C104: 4.98E-04 | D104: 7.82E-02 | E104: -2.548079224 | F104: -0.2454941313 | G104: 0.5133E | H104: 1.33E-04 | I104: 0.001322740814 | K104: 8.66E-07 | L104: 51.33 | AE104: 95 | AF104: 2.13E-02 | AG104: 4.53E-04 | AH104: 8.22E-02 | AI104: -2.498992096 | AJ104: -0.2917171827 | AK104: 0.5753E | AL104: 1.15E-04 | AM104: 1.03E-03 | AO104: 3.80E-07 | AQ104: 5.75E+01
A105: 96 | B105: 2.25E-02 | C105: 5.06E-04 | D105: 7.78E-02 | E105: -2.553603628 | F105: -0.2510185349 | G105: 0.5188E | H105: 1.32E-04 | I105: 0.001313803376 | K105: 8.70E-07 | L105: 51.88 | AE105: 96 | AF105: 2.15E-02 | AG105: 4.60E-04 | AH105: 8.16E-02 | AI105: -2.506135031 | AJ105: -0.2988601175 | AK105: 0.5814E | AL105: 1.14E-04 | AM105: 1.02E-03 | AO105: 3.84E-07 | AQ105: 5.81E+01
A106: 97 | B106: 2.27E-02 | C106: 5.14E-04 | D106: 7.74E-02 | E106: -2.55829101 | F106: -0.2557059168 | G106: 0.5242E | H106: 1.31E-04 | I106: 0.001304865938 | K106: 8.72E-07 | L106: 52.42 | AE106: 97 | AF106: 2.16E-02 | AG106: 4.68E-04 | AH106: 8.12E-02 | AI106: -2.511453101 | AJ106: -0.3041781875 | AK106: 0.5875E | AL106: 1.14E-04 | AM106: 1.02E-03 | AO106: 3.88E-07 | AQ106: 5.88E+01
A107: 98 | B107: 2.28E-02 | C107: 5.21E-04 | D107: 7.69E-02 | E107: -2.565617075 | F107: -0.2630319815 | G107: 0.5297E | H107: 1.31E-04 | I107: 0.0012959285 | K107: 8.72E-07 | L107: 52.97 | AE107: 98 | AF107: 2.18E-02 | AG107: 4.75E-04 | AH107: 8.05E-02 | AI107: -2.519622959 | AJ107: -0.3123480456 | AK107: 0.5936E | AL107: 1.13E-04 | AM107: 1.01E-03 | AO107: 3.91E-07 | AQ107: 5.94E+01
A108: 99 | B108: 2.30E-02 | C108: 5.29E-04 | D108: 7.62E-02 | E108: -2.573881563 | F108: -0.2712964695 | G108: 0.5352E | H108: 1.30E-04 | I108: 0.001285998014 | K108: 8.70E-07 | L108: 53.52 | AE108: 99 | AF108: 2.20E-02 | AG108: 4.83E-04 | AH108: 8.01E-02 | AI108: -2.524404319 | AJ108: -0.3171294055 | AK108: 0.5997E | AL108: 1.12E-04 | AM108: 1.00E-03 | AO108: 3.94E-07 | AQ108: 6.00E+01
A109: 100 | B109: 2.32E-02 | C109: 5.37E-04 | D109: 7.56E-02 | E109: -2.581708823 | F109: -0.2791237298 | G109: 0.5406E | H109: 1.28E-04 | I109: 0.001275074479 | K109: 8.66E-07 | L109: 54.06 | AE109: 100 | AF109: 2.21E-02 | AG109: 4.90E-04 | AH109: 8.00E-02 | AI109: -2.525902763 | AJ109: -0.3186278499 | AK109: 0.6058E | AL109: 1.11E-04 | AM109: 9.92E-04 | AO109: 3.97E-07 | AQ109: 6.06E+01
A110: 101 | B110: 2.34E-02 | C110: 5.45E-04 | D110: 7.54E-02 | E110: -2.584888546 | F110: -0.2823034534 | G110: 0.5461E | H110: 1.27E-04 | I110: 0.001264150943 | K110: 8.61E-07 | L110: 54.61 | AE110: 101 | AF110: 2.23E-02 | AG110: 4.98E-04 | AH110: 7.97E-02 | AI110: -2.529638281 | AJ110: -0.3223633677 | AK110: 0.6120E | AL110: 1.10E-04 | AM110: 9.84E-04 | AO110: 4.00E-07 | AQ110: 6.12E+01
A111: 102 | B111: 2.35E-02 | C111: 5.54E-04 | D111: 7.52E-02 | E111: -2.587349426 | F111: -0.2847643327 | G111: 0.5515E | H111: 1.26E-04 | I111: 0.001253227408 | K111: 8.55E-07 | L111: 55.15 | AE111: 102 | AF111: 2.25E-02 | AG111: 5.06E-04 | AH111: 7.94E-02 | AI111: -2.532646169 | AJ111: -0.3253712555 | AK111: 0.6181E | AL111: 1.09E-04 | AM111: 9.75E-04 | AO111: 4.02E-07 | AQ111: 6.18E+01
A112: 103 | B112: 2.37E-02 | C112: 5.62E-04 | D112: 7.47E-02 | E112: -2.594365449 | F112: -0.2917803561 | G112: 0.5570E | H112: 1.25E-04 | I112: 0.001241310824 | K112: 8.48E-07 | L112: 55.7 | AE112: 103 | AF112: 2.27E-02 | AG112: 5.14E-04 | AH112: 7.91E-02 | AI112: -2.537462937 | AJ112: -0.3301880242 | AK112: 0.6242E | AL112: 1.08E-04 | AM112: 9.66E-04 | AO112: 4.04E-07 | AQ112: 6.24E+01
A113: 104 | B113: 2.39E-02 | C113: 5.70E-04 | D113: 7.49E-02 | E113: -2.591966129 | F113: -0.2893810355 | G113: 0.5625E | H113: 1.24E-04 | I113: 0.001228401192 | K113: 8.41E-07 | L113: 56.25 | AE113: 104 | AF113: 2.28E-02 | AG113: 5.21E-04 | AH113: 7.86E-02 | AI113: -2.543803307 | AJ113: -0.336528394 | AK113: 0.6303E | AL113: 1.07E-04 | AM113: 9.56E-04 | AO113: 4.06E-07 | AQ113: 6.30E+01
A114: 105 | B114: 2.40E-02 | C114: 5.78E-04 | D114: 7.44E-02 | E114: -2.597919201 | F114: -0.2953341083 | G114: 0.5679E | H114: 1.22E-04 | I114: 0.001215491559 | K114: 8.35E-07 | L114: 56.79 | AE114: 105 | AF114: 2.30E-02 | AG114: 5.29E-04 | AH114: 7.83E-02 | AI114: -2.547564925 | AJ114: -0.3402900119 | AK114: 0.6364E | AL114: 1.06E-04 | AM114: 9.47E-04 | AO114: 4.08E-07 | AQ114: 6.36E+01
A115: 106 | B115: 2.42E-02 | C115: 5.87E-04 | D115: 7.36E-02 | E115: -2.609137632 | F115: -0.3065525388 | G115: 0.5734E | H115: 1.21E-04 | I115: 0.001201588878 | K115: 8.28E-07 | L115: 57.34 | AE115: 106 | AF115: 2.32E-02 | AG115: 5.37E-04 | AH115: 7.78E-02 | AI115: -2.553376001 | AJ115: -0.3461010874 | AK115: 0.6426E | AL115: 1.05E-04 | AM115: 9.37E-04 | AO115: 4.09E-07 | AQ115: 6.43E+01
A116: 107 | B116: 2.44E-02 | C116: 5.95E-04 | D116: 7.36E-02 | E116: -2.609693408 | F116: -0.3071083149 | G116: 0.5788E | H116: 1.20E-04 | I116: 0.001187686197 | K116: 8.22E-07 | L116: 57.88 | AE116: 107 | AF116: 2.34E-02 | AG116: 5.45E-04 | AH116: 7.71E-02 | AI116: -2.562952276 | AJ116: -0.355677363 | AK116: 0.6487E | AL116: 1.04E-04 | AM116: 9.27E-04 | AO116: 4.10E-07 | AQ116: 6.49E+01
A117: 108 | B117: 2.46E-02 | C117: 6.03E-04 | D117: 7.38E-02 | E117: -2.606695164 | F117: -0.3041100709 | G117: 0.5843E | H117: 1.18E-04 | I117: 0.001173783515 | K117: 8.18E-07 | L117: 58.43 | AE117: 108 | AF117: 2.35E-02 | AG117: 5.54E-04 | AH117: 7.69E-02 | AI117: -2.565001007 | AJ117: -0.3577260943 | AK117: 0.6548E | AL117: 1.03E-04 | AM117: 9.18E-04 | AO117: 4.12E-07 | AQ117: 6.55E+01
A118: 109 | B118: 2.47E-02 | C118: 6.12E-04 | D118: 7.33E-02 | E118: -2.613437402 | F118: -0.3108523093 | G118: 0.5898E | H118: 1.17E-04 | I118: 0.001158887786 | K118: 8.15E-07 | L118: 58.98 | AE118: 109 | AF118: 2.37E-02 | AG118: 5.62E-04 | AH118: 7.63E-02 | AI118: -2.572558268 | AJ118: -0.3652833547 | AK118: 0.6609E | AL118: 1.01E-04 | AM118: 9.08E-04 | AO118: 4.13E-07 | AQ118: 6.61E+01
A119: 110 | B119: 2.49E-02 | C119: 6.21E-04 | D119: 7.28E-02 | E119: -2.619567689 | F119: -0.3169825959 | G119: 0.5952E | H119: 1.15E-04 | I119: 0.001143992056 | K119: 8.13E-07 | L119: 59.52 | AE119: 110 | AF119: 2.39E-02 | AG119: 5.70E-04 | AH119: 7.59E-02 | AI119: -2.578501874 | AJ119: -0.3712269606 | AK119: 0.6670E | AL119: 1.00E-04 | AM119: 8.98E-04 | AO119: 4.14E-07 | AQ119: 6.67E+01
A120: 111 | B120: 2.51E-02 | C120: 6.29E-04 | D120: 7.24E-02 | E120: -2.625340721 | F120: -0.3227556282 | G120: 0.6007E | H120: 1.14E-04 | I120: 0.001129096326 | K120: 8.14E-07 | L120: 60.07 | AE120: 111 | AF120: 2.40E-02 | AG120: 5.78E-04 | AH120: 7.61E-02 | AI120: -2.575696192 | AJ120: -0.3684212789 | AK120: 0.6732E | AL120: 9.91E-05 | AM120: 8.87E-04 | AO120: 4.15E-07 | AQ120: 6.73E+01
A121: 112 | B121: 2.53E-02 | C121: 6.38E-04 | D121: 7.22E-02 | E121: -2.627946161 | F121: -0.3253610679 | G121: 0.6061E | H121: 1.12E-04 | I121: 0.001113207547 | K121: 8.16E-07 | L121: 60.61 | AE121: 112 | AF121: 2.42E-02 | AG121: 5.87E-04 | AH121: 7.55E-02 | AI121: -2.584142905 | AJ121: -0.3768679917 | AK121: 0.6793E | AL121: 9.80E-05 | AM121: 8.77E-04 | AO121: 4.17E-07 | AQ121: 6.79E+01
A122: 113 | B122: 2.54E-02 | C122: 6.47E-04 | D122: 7.20E-02 | E122: -2.630995459 | F122: -0.3284103657 | G122: 0.6116E | H122: 1.11E-04 | I122: 0.001097318769 | K122: 8.20E-07 | L122: 61.16 | AE122: 113 | AF122: 2.44E-02 | AG122: 5.95E-04 | AH122: 7.49E-02 | AI122: -2.591592252 | AJ122: -0.3843173384 | AK122: 0.6854E | AL122: 9.68E-05 | AM122: 8.67E-04 | AO122: 4.18E-07 | AQ122: 6.85E+01
A123: 114 | B123: 2.56E-02 | C123: 6.56E-04 | D123: 7.21E-02 | E123: -2.630065406 | F123: -0.3274803132 | G123: 0.6171E | H123: 1.09E-04 | I123: 0.00108142999 | K123: 8.26E-07 | L123: 61.71 | AE123: 114 | AF123: 2.46E-02 | AG123: 6.03E-04 | AH123: 7.40E-02 | AI123: -2.603697792 | AJ123: -0.3964228791 | AK123: 0.6915E | AL123: 9.56E-05 | AM123: 8.56E-04 | AO123: 4.20E-07 | AQ123: 6.92E+01
A124: 115 | B124: 2.58E-02 | C124: 6.64E-04 | D124: 7.19E-02 | E124: -2.63310308 | F124: -0.3305179873 | G124: 0.6225E | H124: 1.07E-04 | I124: 0.001064548163 | K124: 8.34E-07 | L124: 62.25 | AE124: 115 | AF124: 2.47E-02 | AG124: 6.12E-04 | AH124: 7.37E-02 | AI124: -2.608086077 | AJ124: -0.4008111638 | AK124: 0.6976E | AL124: 9.45E-05 | AM124: 8.46E-04 | AO124: 4.21E-07 | AQ124: 6.98E+01
A125: 116 | B125: 2.59E-02 | C125: 6.73E-04 | D125: 7.13E-02 | E125: -2.640914285 | F125: -0.3383291917 | G125: 0.6280E | H125: 1.06E-04 | I125: 0.001047666336 | K125: 8.44E-07 | L125: 62.8 | AE125: 116 | AF125: 2.49E-02 | AG125: 6.21E-04 | AH125: 7.32E-02 | AI125: -2.614087151 | AJ125: -0.4068122383 | AK125: 0.7038E | AL125: 9.33E-05 | AM125: 8.35E-04 | AO125: 4.23E-07 | AQ125: 7.04E+01
A126: 117 | B126: 2.61E-02 | C126: 6.82E-04 | D126: 7.05E-02 | E126: -2.652081053 | F126: -0.3494959597 | G126: 0.6335E | H126: 1.04E-04 | I126: 0.001030784508 | K126: 8.55E-07 | L126: 63.35 | AE126: 117 | AF126: 2.51E-02 | AG126: 6.29E-04 | AH126: 7.34E-02 | AI126: -2.611426431 | AJ126: -0.4041515181 | AK126: 0.7099E | AL126: 9.21E-05 | AM126: 8.24E-04 | AO126: 4.26E-07 | AQ126: 7.10E+01
A127: 118 | B127: 2.63E-02 | C127: 6.91E-04 | D127: 7.01E-02 | E127: -2.657213683 | F127: -0.3546285899 | G127: 0.6389E | H127: 1.02E-04 | I127: 0.001013902681 | K127: 8.67E-07 | L127: 63.89 | AE127: 118 | AF127: 2.53E-02 | AG127: 6.38E-04 | AH127: 7.30E-02 | AI127: -2.61707436 | AJ127: -0.4097994466 | AK127: 0.7160E | AL127: 9.09E-05 | AM127: 8.14E-04 | AO127: 4.28E-07 | AQ127: 7.16E+01
A128: 119 | B128: 2.65E-02 | C128: 7.01E-04 | D128: 7.05E-02 | E128: -2.652699096 | F128: -0.3501140035 | G128: 0.6444E | H128: 1.00E-04 | I128: 0.000997020854 | K128: 8.80E-07 | L128: 64.44 | AE128: 119 | AF128: 2.54E-02 | AG128: 6.47E-04 | AH128: 7.22E-02 | AI128: -2.628616363 | AJ128: -0.4213414501 | AK128: 0.7221E | AL128: 8.97E-05 | AM128: 8.03E-04 | AO128: 4.31E-07 | AQ128: 7.22E+01
A129: 120 | B129: 2.66E-02 | C129: 7.10E-04 | D129: 7.01E-02 | E129: -2.657435901 | F129: -0.3548508081 | G129: 0.6498E | H129: 9.87E-05 | I129: 0.0009797418073 | K129: 8.94E-07 | L129: 64.98 | AE129: 120 | AF129: 2.56E-02 | AG129: 6.56E-04 | AH129: 7.24E-02 | AI129: -2.62577664 | AJ129: -0.4185017266 | AK129: 0.7282E | AL129: 8.85E-05 | AM129: 7.92E-04 | AO129: 4.33E-07 | AQ129: 7.28E+01
A130: 121 | B130: 2.68E-02 | C130: 7.19E-04 | D130: 6.94E-02 | E130: -2.667615756 | F130: -0.3650306626 | G130: 0.6553E | H130: 9.69E-05 | I130: 0.0009623634558 | K130: 9.09E-07 | L130: 65.53 | AE130: 121 | AF130: 2.58E-02 | AG130: 6.64E-04 | AH130: 7.22E-02 | AI130: -2.628984412 | AJ130: -0.4217094991 | AK130: 0.7344E | AL130: 8.73E-05 | AM130: 7.81E-04 | AO130: 4.37E-07 | AQ130: 7.34E+01
A131: 122 | B131: 2.70E-02 | C131: 7.28E-04 | D131: 6.90E-02 | E131: -2.673621943 | F131: -0.3710368503 | G131: 0.6608E | H131: 9.52E-05 | I131: 0.0009449851043 | K131: 9.23E-07 | L131: 66.08 | AE131: 122 | AF131: 2.59E-02 | AG131: 6.73E-04 | AH131: 7.15E-02 | AI131: -2.637529488 | AJ131: -0.4302545746 | AK131: 0.7405E | AL131: 8.61E-05 | AM131: 7.70E-04 | AO131: 4.40E-07 | AQ131: 7.41E+01
A132: 123 | B132: 2.72E-02 | C132: 7.38E-04 | D132: 6.90E-02 | E132: -2.674141277 | F132: -0.3715561843 | G132: 0.6662E | H132: 9.34E-05 | I132: 0.000927408143 | K132: 9.38E-07 | L132: 66.62 | AE132: 123 | AF132: 2.61E-02 | AG132: 6.82E-04 | AH132: 7.10E-02 | AI132: -2.645296015 | AJ132: -0.4380211018 | AK132: 0.7466E | AL132: 8.49E-05 | AM132: 7.60E-04 | AO132: 4.43E-07 | AQ132: 7.47E+01
A133: 124 | B133: 2.73E-02 | C133: 7.47E-04 | D133: 6.83E-02 | E133: -2.683913581 | F133: -0.3813284878 | G133: 0.6717E | H133: 9.16E-05 | I133: 0.0009098311817 | K133: 9.52E-07 | L133: 67.17 | AE133: 124 | AF133: 2.63E-02 | AG133: 6.91E-04 | AH133: 7.06E-02 | AI133: -2.65075533 | AJ133: -0.4434804172 | AK133: 0.7527E | AL133: 8.36E-05 | AM133: 7.49E-04 | AO133: 4.47E-07 | AQ133: 7.53E+01
A134: 125 | B134: 2.75E-02 | C134: 7.57E-04 | D134: 6.82E-02 | E134: -2.685290293 | F134: -0.3827051996 | G134: 0.6771E | H134: 8.99E-05 | I134: 0.0008922542205 | K134: 9.66E-07 | L134: 67.71 | AE134: 125 | AF134: 2.65E-02 | AG134: 7.01E-04 | AH134: 7.00E-02 | AI134: -2.65936839 | AJ134: -0.4520934768 | AK134: 0.7588E | AL134: 8.24E-05 | AM134: 7.38E-04 | AO134: 4.50E-07 | AQ134: 7.59E+01
A135: 126 | B135: 2.77E-02 | C135: 7.66E-04 | D135: 6.80E-02 | E135: -2.688772015 | F135: -0.3861869219 | G135: 0.6826E | H135: 8.81E-05 | I135: 0.0008746772592 | K135: 9.79E-07 | L135: 68.26 | AE135: 126 | AF135: 2.66E-02 | AG135: 7.10E-04 | AH135: 6.97E-02 | AI135: -2.664002342 | AJ135: -0.4567274289 | AK135: 0.7650E | AL135: 8.12E-05 | AM135: 7.27E-04 | AO135: 4.54E-07 | AQ135: 7.65E+01
A136: 127 | B136: 2.79E-02 | C136: 7.76E-04 | D136: 6.73E-02 | E136: -2.699186698 | F136: -0.3966016047 | G136: 0.6881E | H136: 8.63E-05 | I136: 0.0008571996028 | K136: 9.92E-07 | L136: 68.81 | AE136: 127 | AF136: 2.68E-02 | AG136: 7.19E-04 | AH136: 6.93E-02 | AI136: -2.669716922 | AJ136: -0.4624420083 | AK136: 0.7711E | AL136: 8.00E-05 | AM136: 7.17E-04 | AO136: 4.58E-07 | AQ136: 7.71E+01
A137: 128 | B137: 2.80E-02 | C137: 7.85E-04 | D137: 6.74E-02 | E137: -2.697268332 | F137: -0.3946832387 | G137: 0.6935E | H137: 8.46E-05 | I137: 0.0008396226415 | K137: 1.00E-06 | L137: 69.35 | AE137: 128 | AF137: 2.70E-02 | AG137: 7.28E-04 | AH137: 6.88E-02 | AI137: -2.676559206 | AJ137: -0.4692842928 | AK137: 0.7772E | AL137: 7.88E-05 | AM137: 7.06E-04 | AO137: 4.62E-07 | AQ137: 7.77E+01
A138: 129 | B138: 2.82E-02 | C138: 7.95E-04 | D138: 6.76E-02 | E138: -2.694507433 | F138: -0.39192234 | G138: 0.6990E | H138: 8.28E-05 | I138: 0.00082224429 | K138: 1.02E-06 | L138: 69.9 | AE138: 129 | AF138: 2.72E-02 | AG138: 7.38E-04 | AH138: 6.84E-02 | AI138: -2.682489621 | AJ138: -0.475214708 | AK138: 0.7833E | AL138: 7.77E-05 | AM138: 6.95E-04 | AO138: 4.66E-07 | AQ138: 7.83E+01
A139: 130 | B139: 2.84E-02 | C139: =B139^2 -> 8.05E-04 | D139: 6.70E-02 | E139: =LN(D139) -> -2.703778309 | F139: =LN(D139/$B$7) -> -0.4011932157 | G139: 0.7044E | H139: 8.11E-05 | I139: =H139/$E$7 -> 0.0008048659384 | K139: 1.03E-06 | L139: 70.44 | AE139: 130 | AF139: 2.73E-02 | AG139: =AF139^2 -> 7.47E-04 | AH139: 6.79E-02 | AI139: =LN(AH139) -> -2.689879307 | AJ139: =LN(AH139/$AF$7) -> -0.4826043941 | AK139: 0.7894E | AL139: 7.65E-05 | AM139: 6.85E-04 | AO139: 4.70E-07 | AQ139: 7.89E+01
A140: 131 | B140: 2.85E-02 | C140: 8.15E-04 | D140: 6.64E-02 | E140: -2.711842143 | F140: -0.4092570499 | G140: 0.7099E | H140: 7.93E-05 | I140: 0.0007875868918 | K140: 1.03E-06 | L140: 70.99 | AE140: 131 | AF140: 2.75E-02 | AG140: 7.57E-04 | AH140: 6.79E-02 | AI140: -2.690194729 | AJ140: -0.4829198161 | AK140: 0.7956E | AL140: 7.53E-05 | AM140: =AL140/$AI$7 -> 6.74E-04 | AO140: 4.74E-07 | AQ140: 7.96E+01
A141: 132 | B141: 2.87E-02 | C141: 8.25E-04 | D141: 6.60E-02 | E141: -2.718624108 | F141: -0.416039015 | G141: 0.7154E | H141: 7.76E-05 | I141: 0.00077040715 | K141: 1.04E-06 | L141: 71.54 | AE141: 132 | AF141: 2.77E-02 | AG141: 7.66E-04 | AH141: 6.76E-02 | AI141: -2.693651253 | AJ141: -0.4863763401 | AK141: 0.8017E | AL141: 7.41E-05 | AM141: 6.64E-04 | AO141: 4.78E-07 | AQ141: 8.02E+01
A142: 133 | B142: 2.89E-02 | C142: 8.35E-04 | D142: 6.58E-02 | E142: -2.721163549 | F142: -0.4185784557 | G142: 0.7208E | H142: 7.59E-05 | I142: 0.0007534260179 | K142: 1.05E-06 | L142: 72.08 | AE142: 133 | AF142: 2.79E-02 | AG142: 7.76E-04 | AH142: 6.67E-02 | AI142: -2.70809676 | AJ142: -0.5008218473 | AK142: 0.8078E | AL142: 7.30E-05 | AM142: 6.53E-04 | AO142: 4.82E-07 | AQ142: 8.08E+01
A143: 134 | B143: 2.91E-02 | C143: 8.45E-04 | D143: 6.54E-02 | E143: -2.727590808 | F143: -0.4250057153 | G143: 0.7263E | H143: 7.42E-05 | I143: 0.0007365441907 | K143: 1.05E-06 | L143: 72.63 | AE143: 134 | AF143: 2.80E-02 | AG143: 7.85E-04 | AH143: 6.58E-02 | AI143: -2.721809564 | AJ143: -0.5145346511 | AK143: 0.8139E | AL143: 7.18E-05 | AM143: 6.43E-04 | AO143: 4.86E-07 | AQ143: 8.14E+01
A144: 135 | B144: 2.92E-02 | C144: 8.55E-04 | D144: 6.49E-02 | E144: -2.734796668 | F144: -0.4322115751 | G144: 0.7317E | H144: 7.25E-05 | I144: 0.0007197616683 | K144: 1.06E-06 | L144: 73.17 | AE144: 135 | AF144: 2.82E-02 | AG144: 7.95E-04 | AH144: 6.56E-02 | AI144: -2.724474548 | AJ144: -0.5171996352 | AK144: 0.8200E | AL144: 7.07E-05 | AM144: 6.33E-04 | AO144: 4.89E-07 | AQ144: 8.20E+01
A145: 136 | B145: 2.94E-02 | C145: 8.65E-04 | D145: 6.48E-02 | E145: -2.736386481 | F145: -0.433801388 | G145: 0.7372E | H145: 7.08E-05 | I145: 0.0007032770606 | K145: 1.06E-06 | L145: 73.72 | AE145: 136 | AF145: 2.84E-02 | AG145: 8.05E-04 | AH145: 6.54E-02 | AI145: -2.726789898 | AJ145: -0.5195149845 | AK145: 0.8262E | AL145: 6.95E-05 | AM145: 6.23E-04 | AO145: 4.93E-07 | AQ145: 8.26E+01
A146: 137 | B146: 2.96E-02 | C146: 8.75E-04 | D146: 6.44E-02 | E146: -2.743182025 | F146: -0.4405969318 | G146: 0.7427E | H146: 6.92E-05 | I146: 0.0006868917577 | K146: 1.07E-06 | L146: 74.27 | AE146: 137 | AF146: 2.85E-02 | AG146: 8.15E-04 | AH146: 6.52E-02 | AI146: -2.730442546 | AJ146: -0.5231676328 | AK146: 0.8323E | AL146: 6.84E-05 | AM146: 6.13E-04 | AO146: 4.97E-07 | AQ146: 8.32E+01
A147: 138 | B147: 2.98E-02 | C147: 8.85E-04 | D147: 6.41E-02 | E147: -2.747844172 | F147: -0.4452590794 | G147: 0.7481E | H147: 6.75E-05 | I147: 0.0006706057597 | K147: 1.07E-06 | L147: 74.81 | AE147: 138 | AF147: 2.87E-02 | AG147: 8.25E-04 | AH147: 6.50E-02 | AI147: -2.733921495 | AJ147: -0.5266465822 | AK147: 0.8384E | AL147: 6.73E-05 | AM147: 6.03E-04 | AO147: 5.00E-07 | AQ147: 8.38E+01
A148: 139 | B148: 2.99E-02 | C148: 8.96E-04 | D148: 6.37E-02 | E148: -2.753653323 | F148: -0.4510682301 | G148: 0.7536E | H148: 6.59E-05 | I148: 0.0006546176763 | K148: 1.07E-06 | L148: 75.36 | AE148: 139 | AF148: 2.89E-02 | AG148: 8.35E-04 | AH148: 6.49E-02 | AI148: -2.735644452 | AJ148: -0.5283695392 | AK148: 0.8445E | AL148: 6.62E-05 | AM148: 5.93E-04 | AO148: 5.04E-07 | AQ148: 8.45E+01
A149: 140 | B149: 3.01E-02 | C149: 9.06E-04 | D149: 6.31E-02 | E149: -2.762864658 | F149: -0.4602795646 | G149: 0.7590E | H149: 6.43E-05 | I149: 0.0006388282026 | K149: 1.07E-06 | L149: 75.9 | AE149: 140 | AF149: 2.91E-02 | AG149: 8.45E-04 | AH149: 6.44E-02 | AI149: -2.74306624 | AJ149: -0.5357913265 | AK149: 0.8506E | AL149: 6.51E-05 | AM149: 5.83E-04 | AO149: 5.07E-07 | AQ149: 8.51E+01
A150: 141 | B150: 3.03E-02 | C150: 9.16E-04 | D150: 6.30E-02 | E150: -2.763962696 | F150: -0.4613776027 | G150: 0.7645E | H150: 6.28E-05 | I150: 0.0006233366435 | K150: 1.07E-06 | L150: 76.45 | AE150: 141 | AF150: 2.92E-02 | AG150: 8.55E-04 | AH150: 6.39E-02 | AI150: -2.750322909 | AJ150: -0.5430479956 | AK150: 0.8568E | AL150: 6.40E-05 | AM150: 5.73E-04 | AO150: 5.11E-07 | AQ150: 8.57E+01
A151: 142 | B151: 3.04E-02 | C151: 9.27E-04 | D151: 6.27E-02 | E151: -2.768942609 | F151: -0.4663575165 | G151: 0.7700E | H151: 6.12E-05 | I151: 0.0006079443893 | K151: 1.07E-06 | L151: 77 | AE151: 142 | AF151: 2.94E-02 | AG151: 8.65E-04 | AH151: 6.33E-02 | AI151: -2.759342897 | AJ151: -0.552067984 | AK151: 0.8629E | AL151: 6.30E-05 | AM151: 5.64E-04 | AO151: 5.14E-07 | AQ151: 8.63E+01
A152: 143 | B152: 3.06E-02 | C152: 9.38E-04 | D152: 6.25E-02 | E152: -2.772716518 | F152: -0.4701314249 | G152: 0.7754E | H152: 5.97E-05 | I152: 0.0005928500497 | K152: 1.06E-06 | L152: 77.54 | AE152: 143 | AF152: 2.96E-02 | AG152: 8.75E-04 | AH152: 6.29E-02 | AI152: -2.766302198 | AJ152: -0.5590272845 | AK152: 0.8690E | AL152: 6.19E-05 | AM152: 5.54E-04 | AO152: 5.17E-07 | AQ152: 8.69E+01
A153: 144 | B153: 3.08E-02 | C153: 9.48E-04 | D153: 6.17E-02 | E153: -2.785593026 | F153: -0.4830079333 | G153: 0.7809E | H153: 5.82E-05 | I153: 0.0005779543198 | K153: 1.06E-06 | L153: 78.09 | AE153: 144 | AF153: 2.98E-02 | AG153: 8.85E-04 | AH153: 6.23E-02 | AI153: -2.775283593 | AJ153: -0.5680086801 | AK153: 0.8751E | AL153: 6.08E-05 | AM153: 5.45E-04 | AO153: 5.21E-07 | AQ153: 8.75E+01
A154: 145 | B154: 3.10E-02 | C154: 9.59E-04 | D154: 6.16E-02 | E154: -2.787743855 | F154: -0.4851587617 | G154: 0.7864E | H154: 5.67E-05 | I154: 0.0005632571996 | K154: 1.06E-06 | L154: 78.64 | AE154: 145 | AF154: 2.99E-02 | AG154: 8.96E-04 | AH154: 6.20E-02 | AI154: -2.781250002 | AJ154: -0.5739750888 | AK154: 0.8812E | AL154: 5.98E-05 | AM154: 5.35E-04 | AO154: 5.24E-07 | AQ154: 8.81E+01
A155: 146 | B155: 3.11E-02 | C155: 9.70E-04 | D155: 6.15E-02 | E155: -2.788468469 | F155: -0.4858833758 | G155: 0.7918E | H155: 5.53E-05 | I155: 0.000548857994 | K155: 1.06E-06 | L155: 79.18 | AE155: 146 | AF155: 3.01E-02 | AG155: 9.06E-04 | AH155: 6.18E-02 | AI155: -2.784447666 | AJ155: -0.5771727528 | AK155: 0.8874E | AL155: 5.88E-05 | AM155: 5.26E-04 | AO155: 5.27E-07 | AQ155: 8.87E+01
A156: 147 | B156: 3.13E-02 | C156: 9.80E-04 | D156: 6.16E-02 | E156: -2.787369853 | F156: -0.4847847595 | G156: 0.7973E | H156: 5.39E-05 | I156: 0.0005347567031 | K156: 1.05E-06 | L156: 79.73 | AE156: 147 | AF156: 3.03E-02 | AG156: 9.16E-04 | AH156: 6.10E-02 | AI156: -2.796987575 | AJ156: -0.5897126622 | AK156: 0.8935E | AL156: 5.78E-05 | AM156: 5.17E-04 | AO156: 5.30E-07 | AQ156: 8.94E+01
A157: 148 | B157: 3.15E-02 | C157: 9.91E-04 | D157: 6.13E-02 | E157: -2.792500267 | F157: -0.4899151744 | G157: 0.8027E | H157: 5.25E-05 | I157: 0.0005208540218 | K157: 1.05E-06 | L157: 80.27 | AE157: 148 | AF157: 3.04E-02 | AG157: 9.27E-04 | AH157: 6.01E-02 | AI157: -2.812341953 | AJ157: -0.6050670397 | AK157: 0.8996E | AL157: 5.67E-05 | AM157: 5.08E-04 | AO157: 5.33E-07 | AQ157: 9.00E+01
A158: 149 | B158: 3.17E-02 | C158: 1.00E-03 | D158: 6.06E-02 | E158: -2.802876191 | F158: -0.5002910981 | G158: 0.8082E | H158: 5.11E-05 | I158: 0.0005072492552 | K158: 1.05E-06 | L158: 80.82 | AE158: 149 | AF158: 3.06E-02 | AG158: 9.38E-04 | AH158: 6.02E-02 | AI158: -2.809398674 | AJ158: -0.602123761 | AK158: 0.9057E | AL158: 5.57E-05 | AM158: 4.99E-04 | AO158: 5.35E-07 | AQ158: 9.06E+01
A159: 150 | B159: 3.18E-02 | C159: 1.01E-03 | D159: 6.01E-02 | E159: -2.811322991 | F159: -0.5087378984 | G159: 0.8137E | H159: 4.97E-05 | I159: 0.0004938430983 | K159: 1.04E-06 | L159: 81.37 | AE159: 150 | AF159: 3.08E-02 | AG159: 9.48E-04 | AH159: 6.02E-02 | AI159: -2.809813531 | AJ159: -0.6025386176 | AK159: 0.9118E | AL159: 5.48E-05 | AM159: 4.90E-04 | AO159: 5.38E-07 | AQ159: 9.12E+01
A160: 151 | B160: 3.20E-02 | C160: 1.02E-03 | D160: 6.00E-02 | E160: -2.813025686 | F160: -0.5104405926 | G160: 0.8191E | H160: 4.84E-05 | I160: 0.000480734856 | K160: 1.04E-06 | L160: 81.91 | AE160: 151 | AF160: 3.10E-02 | AG160: 9.59E-04 | AH160: 5.96E-02 | AI160: -2.820864182 | AJ160: -0.6135892692 | AK160: 0.9180E | AL160: 5.38E-05 | AM160: 4.82E-04 | AO160: 5.41E-07 | AQ160: 9.18E+01
A161: 152 | B161: 3.22E-02 | C161: 1.04E-03 | D161: 5.92E-02 | E161: -2.82667076 | F161: -0.5240856674 | G161: 0.8246E | H161: 4.71E-05 | I161: 0.0004678252234 | K161: 1.04E-06 | L161: 82.46 | AE161: 152 | AF161: 3.11E-02 | AG161: 9.70E-04 | AH161: 5.89E-02 | AI161: -2.83256955 | AJ161: -0.625294637 | AK161: 0.9241E | AL161: 5.28E-05 | AM161: 4.73E-04 | AO161: 5.43E-07 | AQ161: 9.24E+01
A162: 153 | B162: 3.23E-02 | C162: 1.05E-03 | D162: 5.86E-02 | E162: -2.83621541 | F162: -0.5336303171 | G162: 0.8300E | H162: 4.58E-05 | I162: 0.0004552135055 | K162: 1.04E-06 | L162: 83 | AE162: 153 | AF162: 3.13E-02 | AG162: 9.80E-04 | AH162: 5.90E-02 | AI162: -2.830373409 | AJ162: -0.6230984954 | AK162: 0.9302E | AL162: 5.19E-05 | AM162: 4.64E-04 | AO162: 5.45E-07 | AQ162: 9.30E+01
A163: 154 | B163: 3.25E-02 | C163: 1.06E-03 | D163: 5.83E-02 | E163: -2.842986872 | F163: -0.5404017792 | G163: 0.8355E | H163: 4.46E-05 | I163: 0.0004428997021 | K163: 1.04E-06 | L163: 83.55 | AE163: 154 | AF163: 3.15E-02 | AG163: 9.91E-04 | AH163: 5.86E-02 | AI163: -2.836719733 | AJ163: -0.6294448202 | AK163: 0.9363E | AL163: 5.09E-05 | AM163: 4.56E-04 | AO163: 5.47E-07 | AQ163: 9.36E+01
A164: 155 | B164: 3.27E-02 | C164: 1.07E-03 | D164: 5.81E-02 | E164: -2.844781361 | F164: -0.542196268 | G164: 0.8410E | H164: 4.34E-05 | I164: 0.0004307845084 | K164: 1.05E-06 | L164: 84.1 | AE164: 155 | AF164: 3.17E-02 | AG164: 1.00E-03 | AH164: 5.79E-02 | AI164: -2.849832944 | AJ164: -0.6425580308 | AK164: 0.9424E | AL164: 5.00E-05 | AM164: 4.48E-04 | AO164: 5.49E-07 | AQ164: 9.42E+01
A165: 156 | B165: 3.29E-02 | C165: 1.08E-03 | D165: 5.82E-02 | E165: -2.843168155 | F165: -0.5405830622 | G165: 0.8464E | H165: 4.22E-05 | I165: 0.0004189672294 | K165: 1.05E-06 | L165: 84.64 | AE165: 156 | AF165: 3.18E-02 | AG165: 1.01E-03 | AH165: 5.76E-02 | AI165: -2.85503766 | AJ165: -0.6477627472 | AK165: 0.9486E | AL165: 4.91E-05 | AM165: 4.39E-04 | AO165: 5.51E-07 | AQ165: 9.49E+01
A166: 157 | B166: 3.30E-02 | C166: 1.09E-03 | D166: 5.84E-02 | E166: -2.841213988 | F166: -0.5386288952 | G166: 0.8519E | H166: 4.10E-05 | I166: 0.0004074478649 | K166: 1.06E-06 | L166: 85.19 | AE166: 157 | AF166: 3.20E-02 | AG166: 1.02E-03 | AH166: 5.75E-02 | AI166: -2.855854566 | AJ166: -0.6485796526 | AK166: 0.9547E | AL166: 4.82E-05 | AM166: 4.31E-04 | AO166: 5.53E-07 | AQ166: 9.55E+01
A167: 158 | B167: 3.32E-02 | C167: 1.10E-03 | D167: 5.74E-02 | E167: -2.857010532 | F167: -0.5544254393 | G167: 0.8573E | H167: 3.99E-05 | I167: 0.0003961271102 | K167: 1.06E-06 | L167: 85.73 | AE167: 158 | AF167: 3.22E-02 | AG167: 1.04E-03 | AH167: 5.70E-02 | AI167: -2.864404913 | AJ167: -0.65713 | AK167: 0.9608E | AL167: 4.73E-05 | AM167: 4.23E-04 | AO167: 5.54E-07 | AQ167: 9.61E+01
A168: 159 | B168: 3.34E-02 | C168: 1.11E-03 | D168: 5.71E-02 | E168: -2.86289396 | F168: -0.5603088667 | G168: 0.8628E | H168: 3.88E-05 | I168: 0.0003851042701 | K168: 1.07E-06 | L168: 86.28 | AE168: 159 | AF168: 3.23E-02 | AG168: 1.05E-03 | AH168: 5.65E-02 | AI168: -2.874303945 | AJ168: -0.6670290316 | AK168: 0.9669E | AL168: 4.64E-05 | AM168: 4.15E-04 | AO168: 5.56E-07 | AQ168: 9.67E+01
A169: 160 | B169: 3.36E-02 | C169: 1.13E-03 | D169: 5.65E-02 | E169: -2.872894148 | F169: -0.5703090552 | G169: 0.8683E | H169: 3.77E-05 | I169: 0.0003742800397 | K169: 1.08E-06 | L169: 86.83 | AE169: 160 | AF169: 3.25E-02 | AG169: 1.06E-03 | AH169: 5.60E-02 | AI169: -2.88291829 | AJ169: -0.6756433768 | AK169: 0.9730E | AL169: 4.55E-05 | AM169: 4.07E-04 | AO169: 5.57E-07 | AQ169: 9.73E+01
A170: 161 | B170: 3.37E-02 | C170: 1.14E-03 | D170: 5.62E-02 | E170: -2.878708698 | F170: -0.5761236048 | G170: 0.8737E | H170: 3.66E-05 | I170: 0.0003637537239 | K170: 1.10E-06 | L170: 87.37 | AE170: 161 | AF170: 3.27E-02 | AG170: 1.07E-03 | AH170: 5.59E-02 | AI170: -2.883302666 | AJ170: -0.6760277526 | AK170: 0.9791E | AL170: 4.46E-05 | AM170: 4.00E-04 | AO170: 5.57E-07 | AQ170: 9.79E+01
A171: 162 | B171: 3.39E-02 | C171: 1.15E-03 | D171: 5.63E-02 | E171: -2.87631288 | F171: -0.5737277873 | G171: 0.8792E | H171: 3.56E-05 | I171: 0.0003534260179 | K171: 1.11E-06 | L171: 87.92 | AE171: 162 | AF171: 3.29E-02 | AG171: 1.08E-03 | AH171: 5.55E-02 | AI171: -2.890624688 | AJ171: -0.6833497748 | AK171: 0.9853E | AL171: 4.38E-05 | AM171: 3.92E-04 | AO171: 5.58E-07 | AQ171: 9.85E+01
A172: 163 | B172: 3.41E-02 | C172: 1.16E-03 | D172: 5.62E-02 | E172: -2.878739384 | F172: -0.5761542907 | G172: 0.8846E | H172: 3.46E-05 | I172: 0.0003433962264 | K172: 1.12E-06 | L172: 88.46 | AE172: 163 | AF172: 3.30E-02 | AG172: 1.09E-03 | AH172: 5.54E-02 | AI172: -2.893024856 | AJ172: -0.6857499431 | AK172: 0.9914E | AL172: 4.29E-05 | AM172: 3.84E-04 | AO172: 5.59E-07 | AQ172: 9.91E+01
A173: 164 | B173: 3.43E-02 | C173: 1.17E-03 | D173: 5.57E-02 | E173: -2.887938709 | F173: -0.5853536161 | G173: 0.8901E | H173: 3.36E-05 | I173: 0.0003335650447 | K173: 1.14E-06 | L173: 89.01 | AE173: 164 | AF173: 3.32E-02 | AG173: 1.10E-03 | AH173: 5.49E-02 | AI173: -2.902448055 | AJ173: -0.6951731418 | AK173: 0.9975E | AL173: 4.21E-05 | AM173: 3.77E-04 | AO173: 5.59E-07 | AQ173: 9.98E+01
A174: 165 | B174: 3.44E-02 | C174: 1.19E-03 | D174: 5.54E-02 | E174: -2.894054867 | F174: -0.5914697743 | G174: 0.8956E | H174: 3.26E-05 | I174: 0.0003239324727 | K174: 1.16E-06 | L174: 89.56 | AE174: 165 | AF174: 3.34E-02 | AG174: 1.11E-03 | AH174: 5.42E-02 | AI174: -2.915283546 | AJ174: -0.7080086333 | AK174: 0.1004E | AL174: 4.13E-05 | AM174: 3.69E-04 | AO174: 5.59E-07 | AQ174: 1.00E+02
A175: 166 | B175: 3.46E-02 | C175: 1.20E-03 | D175: 5.49E-02 | E175: -2.902904039 | F175: -0.6003189455 | G175: 0.9010E | H175: 3.17E-05 | I175: 0.0003145978153 | K175: 1.17E-06 | L175: 90.1 | AE175: 166 | AF175: 3.36E-02 | AG175: 1.13E-03 | AH175: 5.43E-02 | AI175: -2.913862058 | AJ175: -0.7065871452 | AK175: 0.1010E | AL175: 4.04E-05 | AM175: 3.62E-04 | AO175: 5.59E-07 | AQ175: 1.01E+02
A176: 167 | B176: 3.48E-02 | C176: 1.21E-03 | D176: 5.45E-02 | E176: -2.909112007 | F176: -0.6065269143 | G176: 0.9065E | H176: 3.08E-05 | I176: 0.0003055610725 | K176: 1.19E-06 | L176: 90.65 | AE176: 167 | AF176: 3.37E-02 | AG176: 1.14E-03 | AH176: 5.37E-02 | AI176: -2.923695145 | AJ176: -0.716420232 | AK176: 0.1016E | AL176: 3.96E-05 | AM176: 3.55E-04 | AO176: 5.59E-07 | AQ176: 1.02E+02
A177: 168 | B177: 3.49E-02 | C177: 1.22E-03 | D177: 5.39E-02 | E177: -2.920132349 | F177: -0.6175472562 | G177: 0.9120E | H177: 2.99E-05 | I177: 0.0002967229394 | K177: 1.21E-06 | L177: 91.2 | AE177: 168 | AF177: 3.39E-02 | AG177: 1.15E-03 | AH177: 5.32E-02 | AI177: -2.932758238 | AJ177: -0.7254833249 | AK177: 0.1022E | AL177: 3.88E-05 | AM177: 3.47E-04 | AO177: 5.59E-07 | AQ177: 1.02E+02
A178: 169 | B178: 3.51E-02 | C178: 1.23E-03 | D178: 5.34E-02 | E178: -2.930509123 | F178: -0.6279240297 | G178: 0.9174E | H178: 2.90E-05 | I178: 0.0002880834161 | K178: 1.23E-06 | L178: 91.74 | AE178: 169 | AF178: 3.41E-02 | AG178: 1.16E-03 | AH178: 5.30E-02 | AI178: -2.937330078 | AJ178: -0.7300551653 | AK178: 0.1028E | AL178: 3.80E-05 | AM178: 3.40E-04 | AO178: 5.58E-07 | AQ178: 1.03E+02
A179: 170 | B179: 3.53E-02 | C179: 1.25E-03 | D179: 5.32E-02 | E179: -2.933753784 | F179: -0.6311686908 | G179: 0.9229E | H179: 2.82E-05 | I179: 0.0002796425025 | K179: 1.24E-06 | L179: 92.29 | AE179: 170 | AF179: 3.43E-02 | AG179: 1.17E-03 | AH179: 5.32E-02 | AI179: -2.93455743 | AJ179: -0.7272825168 | AK179: 0.1034E | AL179: 3.72E-05 | AM179: 3.33E-04 | AO179: 5.58E-07 | AQ179: 1.03E+02
A180: 171 | B180: 3.55E-02 | C180: 1.26E-03 | D180: 5.30E-02 | E180: -2.937735089 | F180: -0.6351499959 | G180: 0.9283E | H180: 2.73E-05 | I180: 0.0002714001986 | K180: 1.26E-06 | L180: 92.83 | AE180: 171 | AF180: 3.44E-02 | AG180: 1.19E-03 | AH180: 5.23E-02 | AI180: -2.951615783 | AJ180: -0.7443408697 | AK180: 0.1040E | AL180: 3.64E-05 | AM180: 3.26E-04 | AO180: 5.57E-07 | AQ180: 1.04E+02
A181: 172 | B181: 3.56E-02 | C181: 1.27E-03 | D181: 5.29E-02 | E181: -2.940218245 | F181: -0.6376331518 | G181: 0.9338E | H181: 2.65E-05 | I181: 0.0002634558093 | K181: 1.28E-06 | L181: 93.38 | AE181: 172 | AF181: 3.46E-02 | AG181: 1.20E-03 | AH181: 5.12E-02 | AI181: -2.971480198 | AJ181: -0.7642052847 | AK181: 0.1046E | AL181: 3.57E-05 | AM181: 3.19E-04 | AO181: 5.56E-07 | AQ181: 1.05E+02
A182: 173 | B182: 3.58E-02 | C182: 1.28E-03 | D182: 5.29E-02 | E182: -2.939587542 | F182: -0.6370024487 | G182: 0.9393E | H182: 2.58E-05 | I182: 0.0002557100298 | K182: 1.29E-06 | L182: 93.93 | AE182: 173 | AF182: 3.48E-02 | AG182: 1.21E-03 | AH182: 5.10E-02 | AI182: -2.976791382 | AJ182: -0.7695164691 | AK182: 0.1053E | AL182: 3.49E-05 | AM182: 3.13E-04 | AO182: 5.56E-07 | AQ182: 1.05E+02
A183: 174 | B183: 3.60E-02 | C183: 1.29E-03 | D183: 5.26E-02 | E183: -2.945447008 | F183: -0.6428619147 | G183: 0.9447E | H183: 2.50E-05 | I183: 0.00024816286 | K183: 1.31E-06 | L183: 94.47 | AE183: 174 | AF183: 3.49E-02 | AG183: 1.22E-03 | AH183: 5.08E-02 | AI183: -2.980426421 | AJ183: -0.7731515076 | AK183: 0.1059E | AL183: 3.42E-05 | AM183: 3.06E-04 | AO183: 5.55E-07 | AQ183: 1.06E+02
A184: 175 | B184: 3.62E-02 | C184: 1.31E-03 | D184: 5.17E-02 | E184: -2.961938103 | F184: -0.6593530104 | G184: 0.9502E | H184: 2.43E-05 | I184: 0.0002408142999 | K184: 1.32E-06 | L184: 95.02 | AE184: 175 | AF184: 3.51E-02 | AG184: 1.23E-03 | AH184: 5.06E-02 | AI184: -2.983108674 | AJ184: -0.7758337612 | AK184: 0.1065E | AL184: 3.34E-05 | AM184: 2.99E-04 | AO184: 5.55E-07 | AQ184: 1.07E+02
A185: 176 | B185: 3.63E-02 | C185: 1.32E-03 | D185: 5.11E-02 | E185: -2.973318504 | F185: -0.6707334112 | G185: 0.9556E | H185: 2.35E-05 | I185: 0.0002336643496 | K185: 1.34E-06 | L185: 95.56 | AE185: 176 | AF185: 3.53E-02 | AG185: 1.25E-03 | AH185: 5.05E-02 | AI185: -2.986572722 | AJ185: -0.7792978089 | AK185: 0.1071E | AL185: 3.27E-05 | AM185: 2.93E-04 | AO185: 5.54E-07 | AQ185: 1.07E+02
A186: 177 | B186: 3.65E-02 | C186: 1.33E-03 | D186: 5.10E-02 | E186: -2.975880298 | F186: -0.6732952052 | G186: 0.9611E | H186: 2.28E-05 | I186: 0.0002267130089 | K186: 1.35E-06 | L186: 96.11 | AE186: 177 | AF186: 3.55E-02 | AG186: 1.26E-03 | AH186: 5.00E-02 | AI186: -2.996491503 | AJ186: -0.7892165896 | AK186: 0.1077E | AL186: 3.20E-05 | AM186: 2.86E-04 | AO186: 5.53E-07 | AQ186: 1.08E+02
A187: 178 | B187: 3.67E-02 | C187: 1.34E-03 | D187: 5.10E-02 | E187: -2.975675899 | F187: -0.6730908057 | G187: 0.9666E | H187: 2.21E-05 | I187: 0.0002198609732 | K187: 1.37E-06 | L187: 96.66 | AE187: 178 | AF187: 3.56E-02 | AG187: 1.27E-03 | AH187: 4.95E-02 | AI187: -3.005837754 | AJ187: -0.7985628406 | AK187: 0.1083E | AL187: 3.12E-05 | AM187: 2.80E-04 | AO187: 5.53E-07 | AQ187: 1.08E+02
A188: 179 | B188: 3.68E-02 | C188: 1.36E-03 | D188: 5.06E-02 | E188: -2.984562677 | F188: -0.6819775838 | G188: 0.9720E | H188: 2.15E-05 | I188: 0.000213306852 | K188: 1.38E-06 | L188: 97.2 | AE188: 179 | AF188: 3.58E-02 | AG188: 1.28E-03 | AH188: 4.93E-02 | AI188: -3.010618336 | AJ188: -0.8033434228 | AK188: 0.1089E | AL188: 3.05E-05 | AM188: 2.73E-04 | AO188: 5.52E-07 | AQ188: 1.09E+02
A189: 180 | B189: 3.70E-02 | C189: 1.37E-03 | D189: 4.96E-02 | E189: -3.00380542 | F189: -0.7012203271 | G189: 0.9775E | H189: 2.08E-05 | I189: 0.0002069513406 | K189: 1.39E-06 | L189: 97.75 | AE189: 180 | AF189: 3.60E-02 | AG189: 1.29E-03 | AH189: 4.87E-02 | AI189: -3.022932519 | AJ189: -0.8156576063 | AK189: 0.1095E | AL189: 2.98E-05 | AM189: 2.67E-04 | AO189: 5.52E-07 | AQ189: 1.10E+02
A190: 181 | B190: 3.72E-02 | C190: 1.38E-03 | D190: 4.97E-02 | E190: -3.001566354 | F190: -0.6989812612 | G190: 0.9829E | H190: 2.02E-05 | I190: 0.0002006951341 | K190: 1.40E-06 | L190: 98.29 | AE190: 181 | AF190: 3.62E-02 | AG190: 1.31E-03 | AH190: 4.82E-02 | AI190: -3.032563513 | AJ190: -0.8252886 | AK190: 0.1102E | AL190: 2.91E-05 | AM190: 2.61E-04 | AO190: 5.52E-07 | AQ190: 1.10E+02
A191: 182 | B191: 3.74E-02 | C191: 1.40E-03 | D191: 4.97E-02 | E191: -3.001891456 | F191: -0.6993063628 | G191: 0.9884E | H191: 1.96E-05 | I191: 0.0001946375372 | K191: 1.41E-06 | L191: 98.84 | AE191: 182 | AF191: 3.63E-02 | AG191: 1.32E-03 | AH191: 4.80E-02 | AI191: -3.037309195 | AJ191: -0.8300342815 | AK191: 0.1108E | AL191: 2.85E-05 | AM191: 2.55E-04 | AO191: 5.52E-07 | AQ191: 1.11E+02
A192: 183 | B192: 3.75E-02 | C192: 1.41E-03 | D192: 4.98E-02 | E192: -2.99987966 | F192: -0.6972945672 | G192: 0.9939E | H192: 1.90E-05 | I192: 0.0001887785501 | K192: 1.41E-06 | L192: 99.39 | AE192: 183 | AF192: 3.65E-02 | AG192: 1.33E-03 | AH192: 4.77E-02 | AI192: -3.043542862 | AJ192: -0.8362679488 | AK192: 0.1114E | AL192: 2.78E-05 | AM192: 2.49E-04 | AO192: 5.52E-07 | AQ192: 1.11E+02
A193: 184 | B193: 3.77E-02 | C193: 1.42E-03 | D193: 4.92E-02 | E193: -3.012319666 | F193: -0.7097345725 | G193: 0.9993E | H193: 1.84E-05 | I193: 0.0001831181728 | K193: 1.42E-06 | L193: 99.93 | AE193: 184 | AF193: 3.67E-02 | AG193: 1.34E-03 | AH193: 4.72E-02 | AI193: -3.052699646 | AJ193: -0.8454247328 | AK193: 0.1120E | AL193: 2.71E-05 | AM193: 2.43E-04 | AO193: 5.52E-07 | AQ193: 1.12E+02
A194: 185 | B194: 3.79E-02 | C194: 1.44E-03 | D194: 4.86E-02 | E194: -3.023635207 | F194: -0.7210501139 | G194: 0.1005E | H194: 1.79E-05 | I194: 0.0001775571003 | K194: 1.43E-06 | L194: 100.5 | AE194: 185 | AF194: 3.68E-02 | AG194: 1.36E-03 | AH194: 4.68E-02 | AI194: -3.062135758 | AJ194: -0.8548608449 | AK194: 0.1126E | AL194: 2.65E-05 | AM194: 2.37E-04 | AO194: 5.53E-07 | AQ194: 1.13E+02
A195: 186 | B195: 3.81E-02 | C195: 1.45E-03 | D195: 4.84E-02 | E195: -3.027856507 | F195: -0.7252714141 | G195: 0.1010E | H195: 1.73E-05 | I195: 0.0001721946375 | K195: 1.43E-06 | L195: 101 | AE195: 186 | AF195: 3.70E-02 | AG195: 1.37E-03 | AH195: 4.64E-02 | AI195: -3.069971705 | AJ195: -0.8626967916 | AK195: 0.1132E | AL195: 2.58E-05 | AM195: 2.31E-04 | AO195: 5.53E-07 | AQ195: 1.13E+02
A196: 187 | B196: 3.82E-02 | C196: 1.46E-03 | D196: 4.80E-02 | E196: -3.037564755 | F196: -0.7349796621 | G196: 0.1016E | H196: 1.68E-05 | I196: 0.0001669314796 | K196: 1.44E-06 | L196: 101.6 | AE196: 187 | AF196: 3.72E-02 | AG196: 1.38E-03 | AH196: 4.60E-02 | AI196: -3.080173244 | AJ196: -0.8728983313 | AK196: 0.1138E | AL196: 2.52E-05 | AM196: 2.26E-04 | AO196: 5.54E-07 | AQ196: 1.14E+02
A197: 188 | B197: 3.84E-02 | C197: 1.47E-03 | D197: 4.75E-02 | E197: -3.047298219 | F197: -0.7447131259 | G197: 0.1021E | H197: 1.63E-05 | I197: 0.0001618669315 | K197: 1.44E-06 | L197: 102.1 | AE197: 188 | AF197: 3.74E-02 | AG197: 1.40E-03 | AH197: 4.59E-02 | AI197: -3.081498672 | AJ197: -0.8742237592 | AK197: 0.1144E | AL197: 2.46E-05 | AM197: 2.20E-04 | AO197: 5.55E-07 | AQ197: 1.14E+02
A198: 189 | B198: 3.86E-02 | C198: 1.49E-03 | D198: 4.72E-02 | E198: -3.054145067 | F198: -0.7515599741 | G198: 0.1027E | H198: 1.58E-05 | I198: 0.0001569016882 | K198: 1.44E-06 | L198: 102.7 | AE198: 189 | AF198: 3.75E-02 | AG198: 1.41E-03 | AH198: 4.51E-02 | AI198: -3.09910074 | AJ198: -0.8918258272 | AK198: 0.1151E | AL198: 2.40E-05 | AM198: 2.15E-04 | AO198: 5.56E-07 | AQ198: 1.15E+02
A199: 190 | B199: 3.87E-02 | C199: 1.50E-03 | D199: 4.75E-02 | E199: -3.047397978 | F199: -0.7448128849 | G199: 0.1032E | H199: 1.53E-05 | I199: 0.0001520357498 | K199: 1.44E-06 | L199: 103.2 | AE199: 190 | AF199: 3.77E-02 | AG199: 1.42E-03 | AH199: 4.47E-02 | AI199: -3.108510265 | AJ199: -0.9012353516 | AK199: 0.1157E | AL199: 2.34E-05 | AM199: 2.09E-04 | AO199: 5.57E-07 | AQ199: 1.16E+02
A200: 191 | B200: 3.89E-02 | C200: 1.51E-03 | D200: 4.65E-02 | E200: -3.068591945 | F200: -0.7660068525 | G200: 0.1038E | H200: 1.48E-05 | I200: 0.0001473684211 | K200: 1.44E-06 | L200: 103.8 | AE200: 191 | AF200: 3.79E-02 | AG200: 1.44E-03 | AH200: 4.47E-02 | AI200: -3.107257095 | AJ200: -0.8999821818 | AK200: 0.1163E | AL200: 2.28E-05 | AM200: 2.04E-04 | AO200: 5.58E-07 | AQ200: 1.16E+02
A201: 192 | B201: 3.91E-02 | C201: 1.53E-03 | D201: 4.63E-02 | E201: -3.07163691 | F201: -0.7690518174 | G201: 0.1043E | H201: 1.44E-05 | I201: 0.0001428003972 | K201: 1.44E-06 | L201: 104.3 | AE201: 192 | AF201: 3.81E-02 | AG201: 1.45E-03 | AH201: 4.46E-02 | AI201: -3.109640344 | AJ201: -0.9023654306 | AK201: 0.1169E | AL201: 2.22E-05 | AM201: 1.98E-04 | AO201: 5.60E-07 | AQ201: 1.17E+02
... 1308 more rows
